Workbook

Sheet AER only (hidden)
B1: Data in these columns used for data validation and database purposes.
B2: Date last modified: | C2: 2016-08-08 | D2: added new business names, improved column heading formatting
AC4: FOR ELECTRICITY BUSINESSES ONLY
AC5: Feeder Types | AG5: TasNetworks (D) | AH5: MAIFI flag | AI5: Feeder Names
AC6: CBD | AD6: Urban | AE6: Short rural | AF6: long rural | AG6: EXTRA
B7: dms_TradingName_List | C7: dms_TradingNameFull_List | D7: dms_ABN_List | E7: dms_JurisdictionList | F7: dms_Sector_List | G7: dms_Segment_List | H7: dms_FormControl_List | I7: dms_RPT_List | J7: dms_RPTMonth_List | K7: dms_CRCPlength_List | L7: dms_FRCPlength_List | M7: dms_663_List | N7: dms_DeterminationRef_List | O7: dms_Addr1_List | P7: dms_Addr2_List | Q7: dms_Suburb_List | R7: dms_State_List | S7: dms_PostCode_List | T7: dms_PAddr1_List | U7: dms_PAddr2_List | V7: dms_PSuburb_List | W7: dms_PState_List | X7: dms_PPostCode_List | Y7: dms_ContactName1_List | Z7: dms_ContactPh1_List | AA7: dms_ContactEmail_List | AC7: dms_CBD_flag | AD7: dms_Urban_flag | AE7: dms_ShortRural_flag | AF7: dms_LongRural_flag | AG7: dms_FeederType_5_flag | AH7: dms_MAIFI_flag_List | AI7: dms_FeederName_1 | AJ7: dms_FeederName_2 | AK7: dms_FeederName_3 | AL7: dms_FeederName_4 | AM7: dms_FeederName_5
B8: ActewAGL Distribution | C8: ActewAGL Distribution | D8: 76670568688 | E8: ACT | F8: Electricity | G8: Distribution | H8: Revenue cap | I8: Financial | J8: June | K8: 5 | L8: 5 | M8: 5 | N8: 2014-19 Distribution Determination | O8: 40 Bunda Street | Q8: CANBERRA | R8: ACT | S8: 2600 | T8: GPO BOX 366 | V8: CANBERRA | W8: ACT | X8: 2601 | Y8: Robert Walker | Z8: 02 6248 3847 | AA8: robert.walker@actewagle.com.au | AC8: NO | AD8: YES | AE8: YES | AF8: NO | AG8: NO | AI8: CBD | AJ8: Urban | AK8: Short rural | AL8: Long rural | AN8: ActewAGL Distribution
B9: ActewAGL Distribution (Tx Assets) | C9: ActewAGL Distribution (Tx Assets) | D9: 76670568688 | E9: ACT | F9: Electricity | G9: Distribution | H9: Revenue cap | I9: Financial | J9: June | K9: 5 | L9: 5 | M9: 5 | N9: distribution determination | O9: 40 Bunda Street | Q9: CANBERRA | R9: ACT | S9: 2600 | T9: GPO BOX 366 | V9: CANBERRA | W9: ACT | X9: 2601 | Y9: Robert Walker | Z9: 02 6248 3847 | AA9: robert.walker@actewagle.com.au | AI9: CBD | AJ9: Urban | AK9: Short rural | AL9: Long rural | AN9: ActewAGL Distribution (Tx Assets)
B10: ActewAGL Gas | C10: ActewAGL Gas | D10: 76670568688 | E10: ACT | F10: Gas | G10: Distribution | H10: Weighted average price cap | I10: Financial | J10: June | K10: 5 | L10: 5 | M10: x | O10: 40 Bunda Street | Q10: CANBERRA | R10: ACT | S10: 2600 | T10: GPO BOX 366 | V10: CANBERRA | W10: ACT | X10: 2601 | Y10: Philip Deamer | Z10: 02 6248 3438 | AA10: GasAAReview@actewagl.com.au | AN10: ActewAGL Gas
B11: AGN (SA) | C11: AGN (SA) | D11: 78551685 | E11: SA | F11: Gas | G11: Distribution | H11: Revenue cap | I11: Financial | J11: June | K11: 5 | L11: 5 | M11: 5 | N11: distribution determination | R11: SA | AI11: CBD | AJ11: Urban | AK11: Short rural | AL11: Long rural | AN11: AGN (SA)
B12: AGN (Victoria) | C12: Australian Gas Networks Limited | D12: 19078551685 | E12: Vic | F12: Gas | G12: Distribution | H12: Weighted average price cap | I12: Calendar | J12: December | K12: 5 | L12: 5 | M12: x | O12: Level 10 | P12: 81 Flinders Street | Q12: ADELAIDE | R12: SA | S12: 5000 | Z12: 08 8227 1500 | AN12: AGN (Victoria)
B13: Amadeus | C13: APT Pipelines (NT) Pty Ltd | D13: 39009737393 | E13: NT | F13: Gas | G13: Transmission | H13: Weighted average price cap | I13: Financial | J13: June | K13: 5 | L13: 5 | M13: x | N13: n/a | O13: Level 19, HSBC Building | P13: 580 George Street | Q13: SYDNEY | R13: NSW | S13: 2000 | T13: Level 19, HSBC Building | U13: 580 George Street | V13: SYDNEY | W13: NSW | X13: 2000 | Y13: Alexandra Curran | Z13: 02 9275 0020 | AA13: alexandra.curran@apa.com.au | AN13: Amadeus
B14: APA GasNet | C14: APA VTS Australia Limited | D14: 79096457868 | E14: Vic | F14: Gas | G14: Transmission | H14: Weighted average price cap | I14: Calendar | J14: December | K14: 5 | L14: 5 | M14: x | O14: Level 19, HSBC Building | P14: 580 George Street | Q14: SYDNEY | R14: NSW | S14: 2000 | T14: PO Box R41 | V14: ROYAL EXCHANGE | W14: NSW | X14: 1225 | Z14: 02 9693 0000 | AN14: APA GasNet
B15: Ausgrid | C15: Ausgrid | D15: 67505337385 | E15: NSW | F15: Electricity | G15: Distribution | H15: Revenue cap | I15: Financial | J15: June | K15: 5 | L15: 5 | M15: 5 | N15: 2014-19 Distribution Determination | O15: 570 George St | Q15: SYDNEY | R15: NSW | S15: 2000 | Y15: John Thomson | Z15: (02) 9269 2312 | AA15: john.thomson@ausgrid.com.au | AC15: YES | AD15: YES | AE15: YES | AF15: YES | AG15: NO | AI15: CBD | AJ15: Urban | AK15: Short rural | AL15: Long rural | AN15: Ausgrid
B16: Ausgrid (Tx Assets) | C16: Ausgrid (Tx Assets) | D16: 67505337385 | E16: NSW | F16: Electricity | G16: Distribution | H16: Revenue cap | I16: Financial | J16: June | K16: 5 | L16: 5 | M16: 5 | N16: distribution determination | R16: NSW | AI16: CBD | AJ16: Urban | AK16: Short rural | AL16: Long rural | AN16: Ausgrid (Tx Assets)
B17: AusNet (D) | C17: AusNet Services (D) | D17: 91064651118 | E17: Vic | F17: Electricity | G17: Distribution | H17: Revenue cap | I17: Calendar | J17: December | K17: 5 | L17: 5 | M17: 2 | N17: 2016-20 Distribution Determination | O17: Level 32 | P17: 2 Southbank Boulevard | Q17: SOUTHBANK | R17: Vic | S17: 3006 | T17: Locked Bag 14051 | V17: MELBOURNE CITY MAIL CENTRE | W17: VIC | X17: 8001 | Y17: Hannah Williams | Z17: 03 9683 4088 | AA17: hwilliams@powercor.com.au | AD17: YES | AE17: YES | AF17: YES | AG17: NO | AI17: CBD | AJ17: Urban | AK17: Short rural | AL17: Long rural | AN17: AusNet (D)
B18: AusNet (Gas) | C18: AusNet Gas Services | E18: Vic | F18: Gas | G18: Distribution | H18: Weighted average price cap | I18: Calendar | J18: December | K18: 5 | L18: 5 | M18: X | AN18: AusNet (Gas)
B19: AusNet (T) | C19: AusNet (T) | D19: 78079798173 | E19: Vic | F19: Electricity | G19: Transmission | H19: Revenue cap | I19: Financial | J19: March | K19: 5 | L19: 5 | M19: 2 | N19: transmission determination | O19: Level 32 | P19: 2 Southbank Boulevard | Q19: SOUTHBANK | R19: Vic | S19: 3006 | Y19: Tom Hallam | Z19: 03 9695 6617 | AA19: Thomas.hallam@SP-Ausnet.com.au | AI19: CBD | AJ19: Urban | AK19: Short rural | AL19: Long rural | AN19: AusNet (T)
B20: Australian Distribution Co. | C20: Australian Distribution Co. | D20: 11222333444 | E20: - | F20: Electricity | G20: Distribution | H20: Revenue cap | I20: Financial | J20: June | K20: 5 | L20: 5 | M20: 2 | N20: distribution determination | O20: 123 Straight Street | Q20: SYDNEY | R20: NSW | S20: 2000 | T20: PO Box 123 | V20: SYDNEY | W20: NSW | X20: 2000 | Y20: Bob Smith | Z20: 02 1234 5678 | AA20: bob@auselec.net.au | AI20: CBD | AJ20: Urban | AK20: Short rural | AL20: Long rural | AN20: Australian Distribution Co.
B21: Australian Transmission Co. | C21: Australian Transmission Co. | D21: 11222333444 | E21: - | F21: Electricity | G21: Transmission | H21: Revenue cap | I21: Financial | J21: June | K21: 5 | L21: 5 | M21: 5 | N21: transmission determination | O21: 123 Straight Street | Q21: SYDNEY | R21: NSW | S21: 2000 | T21: PO Box 123 | V21: SYDNEY | W21: NSW | X21: 2000 | Y21: Bob Smith | Z21: 02 1234 5678 | AA21: bob@auselec.net.au | AI21: CBD | AJ21: Urban | AK21: Short rural | AL21: Long rural | AN21: Australian Transmission Co.
B22: CitiPower | C22: CitiPower | D22: 76064651056 | E22: Vic | F22: Electricity | G22: Distribution | H22: Revenue cap | I22: Calendar | J22: December | K22: 5 | L22: 5 | M22: 2 | N22: 2016-20 Distribution Determination | O22: 40 Market Street | Q22: MELBOURNE | R22: Vic | S22: 3000 | T22: Locked Bag 14090 | V22: MELBOURNE | W22: VIC | X22: 8001 | Y22: Hannah Williams | Z22: 03 9683 4088 | AA22: hwilliams@powercor.com.au | AC22: YES | AD22: YES | AE22: NO | AF22: NO | AG22: NO | AI22: CBD | AJ22: Urban | AK22: Short rural | AL22: Long rural | AN22: CitiPower
B23: Directlink | C23: Directlink | D23: 16779340889 | E23: Qld | F23: Electricity | G23: Transmission | H23: Revenue cap | I23: Financial | J23: June | K23: 9 | L23: 5 | M23: 5 | N23: transmission determination | R23: NSW | AI23: CBD | AJ23: Urban | AK23: Short rural | AL23: Long rural | AN23: Directlink
B24: ElectraNet | C24: ElectraNet | D24: 41094482416 | E24: SA | F24: Electricity | G24: Transmission | H24: Revenue cap | I24: Financial | J24: June | K24: 5 | L24: 5 | M24: 5 | N24: transmission determination | O24: 52-55 East Terrace | P24: Rymill Park | Q24: ADELAIDE | R24: SA | S24: 5000 | T24: PO Box 7096 | U24: Hutt Street Post Office | V24: ADELAIDE | W24: SA | X24: 5000 | Y24: Bill Jackson | Z24: 08 8404 7969 | AA24: jackson.bill@electranet.com.au | AI24: CBD | AJ24: Urban | AK24: Short rural | AL24: Long rural | AN24: ElectraNet
B25: Endeavour Energy | C25: Endeavour Energy | D25: 59253130878 | E25: NSW | F25: Electricity | G25: Distribution | H25: Revenue cap | I25: Financial | J25: June | K25: 5 | L25: 5 | M25: 5 | N25: 2014-19 Distribution Determination | O25: 51 Huntingwood Drive | Q25: HUNTINGWOOD | R25: NSW | S25: 2148 | T25: PO Box 811 | V25: SEVEN HILLS | W25: NSW | X25: 1730 | Y25: Jon Hocking | Z25: 02 9853 4386 / 0407 348 156 | AA25: Jon.Hocking@Endeavourenergy.com.au | AC25: NO | AD25: YES | AE25: YES | AF25: YES | AG25: NO | AI25: CBD | AJ25: Urban | AK25: Short rural | AL25: Long rural | AN25: Endeavour Energy
B26: Energex | C26: Energex | D26: 40078849055 | E26: Qld | F26: Electricity | G26: Distribution | H26: Revenue cap | I26: Financial | J26: June | K26: 5 | L26: 5 | M26: 5 | N26: 2015-20 Distribution Determination | O26: 26 Reddacliff Street | Q26: NEWSTEAD | R26: Qld | S26: 4006 | T26: 26 Reddacliff Street | V26: NEWSTEAD | W26: QLD | X26: 4006 | Y26: Nicola Roscoe | Z26: 07 3664 5891 | AA26: nicolaroscoe@energex.com.au | AC26: YES | AD26: YES | AE26: YES | AF26: NO | AG26: NO | AI26: CBD | AJ26: Urban | AK26: Short rural | AL26: Long rural | AN26: Energex
B27: Ergon Energy | C27: Ergon Energy | D27: 50087646062 | E27: Qld | F27: Electricity | G27: Distribution | H27: Revenue cap | I27: Financial | J27: June | K27: 5 | L27: 5 | M27: 5 | N27: 2015-20 Distribution Determination | O27: 22 Walker Street | Q27: TOWNSVILLE | R27: Qld | S27: 4810 | T27: Po Box 264 | V27: FORTITUDE VALLEY | W27: QLD | X27: 4006 | Y27: Jenny Doyle, Group Manager Regulatory Affairs | Z27: (07) 3851 6416 | AA27: jenny.doyle@ergon.com.au | AC27: NO | AD27: YES | AE27: YES | AF27: YES | AG27: NO | AI27: CBD | AJ27: Urban | AK27: Short rural | AL27: Long rural | AN27: Ergon Energy
B28: Essential Energy | C28: Essential Energy | D28: 37428185226 | E28: NSW | F28: Electricity | G28: Distribution | H28: Revenue cap | I28: Financial | J28: June | K28: 5 | L28: 5 | M28: 5 | N28: 2014-19 Distribution Determination | O28: 8 Buller Street | Q28: PORT MACQUARIE | R28: NSW | S28: 2444 | T28: PO Box 5730 | V28: PORT MACQUARIE | W28: NSW | X28: 2444 | Y28: Catherine Waddell | Z28: 02 6338 3553 | AA28: catherine.waddell@essentialenergy.com.au | AE28: YES | AF28: YES | AG28: NO | AI28: CBD | AJ28: Urban | AK28: Short rural | AL28: Long rural | AN28: Essential Energy
B29: Jemena Electricity | C29: Jemena Electricity | D29: 82064651083 | E29: Vic | F29: Electricity | G29: Distribution | H29: Revenue cap | I29: Calendar | J29: December | K29: 5 | L29: 5 | M29: 2 | N29: 2016-20 Distribution Determination | O29: Level 16 | P29: 567 Collins Street | Q29: MELBOURNE | R29: VIC | S29: 3000 | T29: PO Box 16182 | V29: MELBOURNE | W29: VIC | X29: 8001 | Y29: Robert McMillan | Z29: 03 9173 7000 | AA29: robert.mcmillan@jemena.com.au | AE29: YES | AF29: NO | AG29: NO | AI29: CBD | AJ29: Urban | AK29: Short rural | AL29: Long rural | AN29: Jemena Electricity
B30: JGN | C30: Jemena Gas Networks | E30: NSW | F30: Gas | G30: Distribution | H30: Weighted average price cap | I30: Financial | J30: June | K30: 5 | L30: 5 | AN30: JGN
B31: Multinet Gas | C31: Multinet Gas (DB No.1) Pty Ltd (ACN 086 026 986), Multinet Gas (DB No.2) Pty Ltd (ACN 086 230 122) | D31: 86026986 | E31: Vic | F31: Gas | G31: Distribution | H31: Weighted average price cap | I31: Calendar | J31: December | K31: 5 | L31: 5 | M31: x | AN31: Multinet Gas
B32: Murraylink | C32: Murraylink | D32: 79181207909 | E32: SA | F32: Electricity | G32: Transmission | H32: Revenue cap | I32: Financial | J32: June | K32: 5 | L32: 5 | M32: 5 | N32: transmission determination | AI32: CBD | AJ32: Urban | AK32: Short rural | AL32: Long rural | AN32: Murraylink
B33: Powercor Australia | C33: Powercor Australia | D33: 89064651109 | E33: Vic | F33: Electricity | G33: Distribution | H33: Revenue cap | I33: Calendar | J33: December | K33: 5 | L33: 5 | M33: 2 | N33: 2016-20 Distribution Determination | O33: 40 Market Street | Q33: MELBOURNE | R33: Vic | S33: 3000 | T33: Locked bag 14090 | V33: MELBOURNE | W33: VIC | X33: 8001 | Y33: Hannah Williams | Z33: 03 9683 4088 | AA33: hwilliams@powercor.com.au | AE33: YES | AF33: YES | AG33: NO | AI33: CBD | AJ33: Urban | AK33: Short rural | AL33: Long rural | AN33: Powercor Australia
B34: Powerlink | C34: Queensland Electricity Transmission Corporation Limited trading as Powerlink Queensland | D34: 82078849233 | E34: Qld | F34: Electricity | G34: Transmission | H34: Revenue cap | I34: Financial | J34: June | K34: 5 | L34: 5 | M34: 5 | N34: transmission determination | O34: 33 Harold St | Q34: VIRGINIA | R34: Qld | S34: 4014 | T34: PO Box 1193 | V34: VIRGINIA | W34: QLD | X34: 4014 | Y34: Jennifer Harris | Z34: 07 3860 2667 | AA34: jharris@powerlink.com.au | AI34: CBD | AJ34: Urban | AK34: Short rural | AL34: Long rural | AN34: Powerlink
B35: Roma to Brisbane Pipeline | C35: APT Petroleum Pipelines Limited t/a Roma to Brisbane Pipeline | D35: 009 737 393 | E35: Qld | F35: Gas | G35: Transmission | H35: Revenue cap | I35: Financial | J35: June | K35: 5 | L35: 5 | M35: x | N35: n/a | AI35: CBD | AJ35: Urban | AK35: Short rural | AL35: Long rural | AN35: Roma to Brisbane Pipeline
B36: SA Power Networks | C36: SA Power Networks | D36: 13332330749 | E36: SA | F36: Electricity | G36: Distribution | H36: Revenue cap | I36: Financial | J36: June | K36: 5 | L36: 5 | M36: 5 | N36: 2015-20 Distribution Determination | O36: 1 Anzac Highway | Q36: KESWICK | R36: SA | S36: 5035 | T36: GPO Box 77 | V36: ADELAIDE | W36: SA | X36: 5000 | Y36: Damien O'Connor | Z36: 08 8404 5066 | AA36: damien.oconnor@sapowernetworks.com.au | AE36: YES | AF36: YES | AG36: NO | AI36: CBD | AJ36: Urban | AK36: Short rural | AL36: Long rural | AN36: SA Power Networks
B37: TasNetworks (D) | C37: TasNetworks (D) | D37: 24167357299 | E37: Tas | F37: Electricity | G37: Distribution | H37: Revenue cap | I37: Financial | J37: June | K37: 5 | L37: 5 | M37: 5 | N37: distribution determination | O37: 21 Kirksway Place | Q37: HOBART | R37: Tas | S37: 7000 | T37: GPO Box 191 | V37: HOBART | W37: Tas | X37: 7000 | Y37: Leigh Mayne | Z37: 03 6270 3691 | AA37: rrp2012@auroraenergy.com.au | AE37: YES | AF37: YES | AG37: YES | AI37: Critical Infrastructure | AJ37: High density commercial | AK37: Urban | AL37: High density rural | AM37: Low density rural | AN37: TasNetworks (D)
B38: TasNetworks (T) | C38: TasNetworks (T) | D38: 24167357299 | E38: Tas | F38: Electricity | G38: Transmission | H38: Revenue cap | I38: Financial | J38: March | K38: 5 | L38: 5 | M38: 5 | N38: transmission determination | O38: 1-7 Maria Street | Q38: LENAH VALLEY | R38: Tas | S38: 7008 | T38: PO Box 606 | V38: MOONAH | W38: Tas | X38: 7009 | Y38: Heath Dillon | Z38: 03 6274 3664 | AA38: heath.dillon@transend.com.au | AI38: CBD | AJ38: Urban | AK38: Short rural | AL38: Long rural | AN38: TasNetworks (T)
B39: TransGrid | C39: TransGrid | D39: 19622755774 | E39: NSW | F39: Electricity | G39: Transmission | H39: Revenue cap | I39: Financial | J39: June | K39: 4 | L39: 5 | M39: 5 | N39: transmission determination | O39: 180 Thomas Street | Q39: HAYMARKET | R39: NSW | S39: 2000 | T39: PO Box A1000 | V39: SYDNEY SOUTH | W39: NSW | X39: 1235 | Y39: Andrew Kingsmill | Z39: 02 9284 3149 | AA39: andrew.kingsmill@transgrid.com.au | AI39: CBD | AJ39: Urban | AK39: Short rural | AL39: Long rural | AN39: TransGrid
B40: United Energy | C40: United Energy | D40: 70064651029 | E40: Vic | F40: Electricity | G40: Distribution | H40: Revenue cap | I40: Calendar | J40: December | K40: 5 | L40: 5 | M40: 2 | N40: 2016-20 Distribution Determination | O40: Level 3 | P40: 6 Nexus Court | Q40: MULGRAVE | R40: Vic | S40: 3149 | T40: PO Box 449 | V40: MOUNT WAVERLEY | W40: VIC | X40: 3170 | Y40: Mathew Abraham | Z40: 03 8846 9758 | AA40: mathew.abraham@ue.com.au | AE40: YES | AF40: NO | AG40: NO | AI40: CBD | AJ40: Urban | AK40: Short rural | AL40: Long rural | AN40: United Energy
B41: Western Power (D) | C41: Western Power (D) | D41: 18540492861 | E41: WA | F41: Electricity | G41: Distribution | H41: Revenue cap | I41: Financial | J41: June | K41: 12 | L41: 4 | M41: x | N41: distribution determination | O41: 363 Wellington Street | Q41: PERTH | R41: WA | S41: 6000 | T41: GPO Box L921 | V41: PERTH | W41: WA | X41: 6842 | Y41: Judy Hunter | Z41: 08 9326 6239 | AA41: judy.hunter@westernpower.com.au | AE41: YES | AF41: YES | AG41: NO | AH41: NO | AI41: CBD | AJ41: Urban | AK41: Short rural | AL41: Long rural | AN41: Western Power (D)
B42: Western Power (T) | C42: Western Power (T) | D42: 18540492861 | E42: WA | F42: Electricity | G42: Transmission | H42: Revenue cap | I42: Financial | J42: June | K42: 12 | L42: 4 | M42: x | N42: transmission determination | O42: 363 Wellington Street | Q42: PERTH | R42: WA | S42: 6000 | T42: GPO Box L921 | V42: PERTH | W42: WA | X42: 6842 | Y42: Judy Hunter | Z42: 08 9326 6239 | AA42: judy.hunter@westernpower.com.au | AE42: YES | AF42: YES | AG42: NO | AI42: CBD | AJ42: Urban | AK42: Short rural | AL42: Long rural | AN42: Western Power (T)
W45: For EB & Reset RINs only
B46: The Reg Year Ending (dms_RYE) must be set to the last year of the regulatory period. For forecast data is is usually (FRCP_y5) for actual it is a single year (CRY). For historical actual data the RYE will need to be set manually in the business details sheet by setting the dms_Multiyear_flag to 1 and putting the correct value in 'dms_Specified_FinalYear. See cells C67:C68 | G46: =IF(dms_RPT="financial",VALUE(LEFT(CRCP_y1,4)-1)&"-"&TEXT(VALUE(RIGHT(CRCP_y1,2)-1),"00"),VALUE(LEFT(CRCP_y1,4)-1)) -> 2012-13 | N46: Drop down selector box for CA & Reset RINs. | O46: For CA & Reset RINs only | W46: for DNSP only | AI46: Reason for interruption | AJ46: dms_Reason_Interruption_Detailed | AK46: dms_Reason_Interruption
B47: dms_Model_List | C47: DELETE NR 'CRY' IF NOT AN ANNUAL RIN (EB, CA , ARR) | E47: dms_RYE_Formula_Result | N47: dms_0203_ProjectType | O47: dms_020303_01_UOM | P47: dms_020501_01_UOM | Q47: dms_020501_02_UOM | R47: dms_020501_03_UOM | S47: dms_020501_04_UOM | T47: dms_020603_01_UOM | U47: dms_040102_01_UOM | V47: dms_040102_04_UOM | W47: dms_030601_01_UOM | X47: dms_030601_02_UOM | Y47: dms_030701_01_UOM | Z47: dms_030702_01_UOM | AA47: dms_030703_01_UOM | AI47: Animal | AJ47: Animal impact | AK47: Animal
B48: ARR | C48: ANNUAL REPORTING STATEMENT | E48: =LEFT(dms_SingleYear_FinalYear_Result,2)&RIGHT(dms_SingleYear_FinalYear_Result,2) ->  | F48: =LEFT(dms_SingleYear_FinalYear_Result,2)&RIGHT(dms_SingleYear_FinalYear_Result,2) | H48: Formula errors are OK | N48: New line on new route - single circuit | O48: Circuit line length in km | P48: 0's | Q48: 0's | R48: 0's | S48: 0's | T48: 0's | U48: 0's | V48: days | W48: minutes/customer | X48: minutes/customer | Y48: Customer / km | Z48: % | AA48: km | AJ48: Animal nesting/burrowing, etc and other | AK48: Asset failure
B49: CA | C49: CATEGORY ANALYSIS | E49: =LEFT(dms_SingleYear_FinalYear_Result,2)&RIGHT(dms_SingleYear_FinalYear_Result,2) ->  | F49: =LEFT(dms_SingleYear_FinalYear_Result,2)&RIGHT(dms_SingleYear_FinalYear_Result,2) | H49: Formula errors are OK | N49: New line on new route - dual circuit | O49: Circuit line length in km | P49: 0's | Q49: 0's | R49: 0's | S49: 0's | T49: 0's | U49: 0's | V49: 0's | W49: minutes/customer | X49: minutes/customer | Y49: MWh/customer | Z49: Number of spans | AJ49: Other | AK49: Other
B50: CPI | C50: CPI | N50: New line on new route - other | O50: Circuit line length in km | P50: MVA added | Q50: MVA added | R50: MVA added | S50: MVA added | T50: 0's | U50: 0's | V50: $0s real | W50: interruptions/customer | X50: interruptions/customer | Y50: kVA / customer | Z50: Number of spans | AI50: Asset failure | AJ50: LV | AK50: Overloads
B51: EB | C51: ECONOMIC BENCHMARKING | E51: =LEFT(dms_SingleYear_FinalYear_Result,2)&RIGHT(dms_SingleYear_FinalYear_Result,2) ->  | F51: =LEFT(dms_SingleYear_FinalYear_Result,2)&RIGHT(dms_SingleYear_FinalYear_Result,2) | H51: Formula errors are OK | N51: Line rebuild over existing route - single circuit | O51: Circuit line length in km | P51: 0's | Q51: 0's | R51: 0's | S51: 0's | T51: 0's | U51: $0s real | V51: 0's | W51: interruptions/customer | X51: interruptions/customer | Z51: Number of spans | AJ51: Distribution substation | AK51: Planned
B52: PTRM | C52: POST TAX REVENUE MODEL | E52: =LEFT(dms_MultiYear_FinalYear_Result,2)&RIGHT(dms_MultiYear_FinalYear_Result,2) -> 2023 | F52: =LEFT(dms_MultiYear_FinalYear_Result,2)&RIGHT(dms_MultiYear_FinalYear_Result,2) | N52: Line rebuild over existing route - dual circuit | O52: Number | P52: total spend $0s real | Q52: total spend $0s real | R52: total spend $0s real | S52: total spend $0s real | T52: (per cent) | Z52: Number of spans | AJ52: HV | AK52: Network business
B53: Reset | C53: REGULATORY REPORTING STATEMENT | E53: =LEFT(dms_MultiYear_FinalYear_Result,2)&RIGHT(dms_MultiYear_FinalYear_Result,2) -> 2023 | F53: =LEFT(dms_MultiYear_FinalYear_Result,2)&RIGHT(dms_MultiYear_FinalYear_Result,2) | H53: Formula errors are OK | N53: Reconductor - Single circuit | O53: Number | P53: net circuit km added | Q53: net circuit km added | R53: net circuit km added | S53: net circuit km added | Z53: Years | AJ53: Zone substation | AK53: Third party
B54: RFM | C54: ROLL FORWARD MODEL | E54: =LEFT(dms_CRCP_FinalYear_Result,2)&RIGHT(dms_CRCP_FinalYear_Result,2) -> 2018 | F54: =LEFT(dms_CRCP_FinalYear_Result,2)&RIGHT(dms_CRCP_FinalYear_Result,2) | N54: Reconductor - Dual circuit | O54: Number | P54: total spend $0s real | Q54: total spend $0s real | R54: total spend $0s real | S54: total spend $0s real | Z54: Years | AJ54: Subtransmission | AK54: Unknown
B55: WACC | C55: WEIGHTED AVERAGE COST OF CAPITAL | E55: =LEFT(dms_MultiYear_FinalYear_Result,2)&RIGHT(dms_MultiYear_FinalYear_Result,2) -> 2023 | F55: =LEFT(dms_MultiYear_FinalYear_Result,2)&RIGHT(dms_MultiYear_FinalYear_Result,2) | N55: Other | P55: net circuit km added | Q55: net circuit km added | R55: net circuit km added | S55: net circuit km added | Z55: Trees | AI55: Other | AJ55: insert description of 'other' | AK55: Vegetation
P56: total spend $0s real | Q56: total spend $0s real | R56: total spend $0s real | S56: total spend $0s real | Z56: Trees | AI56: Overloads | AJ56: - | AK56: Weather
P57: 0's | R57: $0s real | Z57: Defects | AI57: Planned | AJ57: - | AK57: 2 - STPIS Exclusion (3.3)(a)
P58: 0's | Z58: Defects | AI58: Network business | AJ58: Network error | AK58: 3 - STPIS Exclusion (3.3)(a)
P59: 0's | Z59: Spans | AJ59: Switching and protection error | AK59: 4 - STPIS Exclusion (3.3)(a)
P60: $0s real | Z60: km | AI60: Third party | AJ60: Fire | AK60: 5 - STPIS Exclusion (3.3)(a)
Z61: Spans | AJ61: Other | AK61: 6 - STPIS Exclusion (3.3)(a)
AJ62: Dig-in | AK62: 7 - STPIS Exclusion (3.3)(a)
AJ63: Unauthorised access
B64: For all files either AER or business needs to be able to specify the type of submission | C64: For PTRM & RFM templates we must provide a choice in case they change their form of control - otherwise it is drawn from the business specific lookup table above. | E64: These are indeces and lookup values for various dates. All step from the value placed in FRCP_y1 on the business and other details worksheet | W64: for TNSP only | AJ64: Vehicle impact
B65: dms_SourceList | C65: dms_FormControl_Choices | E65: dms_FRCPlength_Num_List | F65: dms_FinalYear_List | G65: dms_CRCPlength_Num_List | H65: dms_CFinalYear_List | I65: dms_FRCP_years | K65: dms_CRCP_years | M65: dms_CRCP_index | W65: dms_030601_01_UOM | Y65: dms_030701_01_UOM | Z65: dms_030702_01_UOM | AI65: Unknown | AJ65: Unknown
B66: After appeal | C66: Revenue cap | E66: 1 | F66: dms_FRCP_y1 | G66: 1 | H66: CRCP_y1 | I66: =FRCP_y1 -> 2018-19 | J66: dms_FRCP_y1 | K66: =IF(dms_RPT="financial",VALUE(LEFT(dms_FRCP_y1,4)-1)&"-"&TEXT(VALUE(MID(dms_FRCP_y1,3,2)),"00"),VALUE(LEFT(dms_FRCP_y1,4)-1)) -> 2017-18 | L66: dms_CRCP_yZ | M66: 1 | W66: % | Y66: Number of spans | Z66: km | AI66: Vegetation | AJ66: Blow-in/Fall-in - NSP responsibility
B67: Draft decision | C67: Revenue yield | E67: 2 | F67: dms_FRCP_y2 | G67: 2 | H67: CRCP_y2 | I67: =IF(dms_RPT="financial",VALUE(LEFT(dms_FRCP_y1,4)+1)&"-"&TEXT(VALUE(RIGHT(dms_FRCP_y1,2)+1),"00"),VALUE(LEFT(dms_FRCP_y1,4)+1)) -> 2019-20 | J67: dms_FRCP_y2 | K67: =IF(dms_RPT="financial",VALUE(LEFT(dms_CRCP_yZ,4)-1)&"-"&TEXT(VALUE(MID(dms_CRCP_yZ,3,2)),"00"),VALUE(LEFT(dms_CRCP_yZ,4)-1)) -> 2016-17 | L67: dms_CRCP_yY | M67: 2 | W67: number | Y67: Years | Z67: % | AJ67: Grow-in - NSP responsibility
B68: Final decision | C68: Weighted average price cap | E68: 3 | F68: dms_FRCP_y3 | G68: 3 | H68: CRCP_y3 | I68: =IF(dms_RPT="financial",VALUE(LEFT(dms_FRCP_y2,4)+1)&"-"&TEXT(VALUE(RIGHT(dms_FRCP_y2,2)+1),"00"),VALUE(LEFT(dms_FRCP_y2,4)+1)) -> 2020-21 | J68: dms_FRCP_y3 | K68: =IF(dms_RPT="financial",VALUE(LEFT(dms_CRCP_yY,4)-1)&"-"&TEXT(VALUE(MID(dms_CRCP_yY,3,2)),"00"),VALUE(LEFT(dms_CRCP_yY,4)-1)) -> 2015-16 | L68: dms_CRCP_yX | M68: 3 | W68: number | Y68: Trees | Z68: km | AJ68: Blow-in/Fall-in - Other responsible party
B69: PTRM update 1 | E69: 4 | F69: dms_FRCP_y4 | G69: 4 | H69: CRCP_y4 | I69: =IF(dms_RPT="financial",VALUE(LEFT(dms_FRCP_y3,4)+1)&"-"&TEXT(VALUE(RIGHT(dms_FRCP_y3,2)+1),"00"),VALUE(LEFT(dms_FRCP_y3,4)+1)) -> 2021-22 | J69: dms_FRCP_y4 | K69: =IF(dms_RPT="financial",VALUE(LEFT(dms_CRCP_yX,4)-1)&"-"&TEXT(VALUE(MID(dms_CRCP_yX,3,2)),"00"),VALUE(LEFT(dms_CRCP_yX,4)-1)) -> 2014-15 | L69: dms_CRCP_yW | M69: 4 | W69: % | Y69: Defects | Z69: number | AJ69: Grow-in - Other responsible party
B70: PTRM update 2 | E70: 5 | F70: dms_FRCP_y5 | G70: 5 | H70: CRCP_y5 | I70: =IF(dms_RPT="financial",VALUE(LEFT(dms_FRCP_y4,4)+1)&"-"&TEXT(VALUE(RIGHT(dms_FRCP_y4,2)+1),"00"),VALUE(LEFT(dms_FRCP_y4,4)+1)) -> 2022-23 | J70: dms_FRCP_y5 | K70: =IF(dms_RPT="financial",VALUE(LEFT(dms_CRCP_yW,4)-1)&"-"&TEXT(VALUE(MID(dms_CRCP_yW,3,2)),"00"),VALUE(LEFT(dms_CRCP_yW,4)-1)) -> 2013-14 | L70: dms_CRCP_yV | M70: 5 | W70: number | Y70: Number of spans | AI70: Weather
B71: PTRM update 3 | E71: 6 | F71: dms_FRCP_y6 | G71: 6 | H71: CRCP_y6 | I71: =IF(dms_RPT="financial",VALUE(LEFT(dms_FRCP_y5,4)+1)&"-"&TEXT(VALUE(RIGHT(dms_FRCP_y5,2)+1),"00"),VALUE(LEFT(dms_FRCP_y5,4)+1)) -> 2023-24 | J71: dms_FRCP_y6 | K71: =IF(dms_RPT="financial",VALUE(LEFT(dms_CRCP_yV,4)-1)&"-"&TEXT(VALUE(MID(dms_CRCP_yV,3,2)),"00"),VALUE(LEFT(dms_CRCP_yV,4)-1)) -> 2012-13 | L71: dms_CRCP_yU | M71: 6 | W71: number | Y71: km | AI71: 2 - STPIS Exclusion (3.3)(a)
B72: PTRM update 4 | E72: 7 | F72: dms_FRCP_y7 | G72: 7 | H72: CRCP_y7 | I72: =IF(dms_RPT="financial",VALUE(LEFT(dms_FRCP_y6,4)+1)&"-"&TEXT(VALUE(RIGHT(dms_FRCP_y6,2)+1),"00"),VALUE(LEFT(dms_FRCP_y6,4)+1)) -> 2024-25 | J72: dms_FRCP_y7 | K72: =IF(dms_RPT="financial",VALUE(LEFT(dms_CRCP_yU,4)-1)&"-"&TEXT(VALUE(MID(dms_CRCP_yU,3,2)),"00"),VALUE(LEFT(dms_CRCP_yU,4)-1)) -> 2011-12 | L72: dms_CRCP_yT | M72: 7 | W72: % | Y72: km | AI72: 3 - STPIS Exclusion (3.3)(a)
B73: PTRM update 5 | E73: 8 | F73: dms_FRCP_y8 | G73: 8 | H73: CRCP_y8 | I73: =IF(dms_RPT="financial",VALUE(LEFT(dms_FRCP_y7,4)+1)&"-"&TEXT(VALUE(RIGHT(dms_FRCP_y7,2)+1),"00"),VALUE(LEFT(dms_FRCP_y7,4)+1)) -> 2025-26 | J73: dms_FRCP_y8 | K73: =IF(dms_RPT="financial",VALUE(LEFT(dms_CRCP_yT,4)-1)&"-"&TEXT(VALUE(MID(dms_CRCP_yT,3,2)),"00"),VALUE(LEFT(dms_CRCP_yT,4)-1)) -> 2010-11 | L73: dms_CRCP_yS | M73: 8 | W73: number | Y73: Number of spans | AI73: 4 - STPIS Exclusion (3.3)(a)
B74: PTRM update 6 | E74: 9 | F74: dms_FRCP_y9 | G74: 9 | H74: CRCP_y9 | I74: =IF(dms_RPT="financial",VALUE(LEFT(dms_FRCP_y8,4)+1)&"-"&TEXT(VALUE(RIGHT(dms_FRCP_y8,2)+1),"00"),VALUE(LEFT(dms_FRCP_y8,4)+1)) -> 2026-27 | J74: dms_FRCP_y9 | K74: =IF(dms_RPT="financial",VALUE(LEFT(dms_CRCP_yS,4)-1)&"-"&TEXT(VALUE(MID(dms_CRCP_yS,3,2)),"00"),VALUE(LEFT(dms_CRCP_yS,4)-1)) -> 2009-10 | L74: dms_CRCP_yR | M74: 9 | W74: number | AI74: 5 - STPIS Exclusion (3.3)(a)
B75: PTRM update 7 | E75: 10 | F75: dms_FRCP_y10 | G75: 10 | H75: CRCP_y10 | I75: =IF(dms_RPT="financial",VALUE(LEFT(dms_FRCP_y9,4)+1)&"-"&TEXT(VALUE(RIGHT(dms_FRCP_y9,2)+1),"00"),VALUE(LEFT(dms_FRCP_y9,4)+1)) -> 2027-28 | J75: dms_FRCP_y10 | K75: =IF(dms_RPT="financial",VALUE(LEFT(dms_CRCP_yR,4)-1)&"-"&TEXT(VALUE(MID(dms_CRCP_yR,3,2)),"00"),VALUE(LEFT(dms_CRCP_yR,4)-1)) -> 2008-09 | L75: dms_CRCP_yQ | M75: 10 | W75: % | AI75: 6 - STPIS Exclusion (3.3)(a)
B76: Regulatory proposal | E76: 11 | F76: dms_FRCP_y11 | G76: 11 | H76: CRCP_y11 | I76: =IF(dms_RPT="financial",VALUE(LEFT(dms_FRCP_y10,4)+1)&"-"&TEXT(VALUE(RIGHT(dms_FRCP_y10,2)+1),"00"),VALUE(LEFT(dms_FRCP_y10,4)+1)) -> 2028-29 | J76: dms_FRCP_y11 | K76: =IF(dms_RPT="financial",VALUE(LEFT(dms_CRCP_yQ,4)-1)&"-"&TEXT(VALUE(MID(dms_CRCP_yQ,3,2)),"00"),VALUE(LEFT(dms_CRCP_yQ,4)-1)) -> 2007-08 | L76: dms_CRCP_yP | M76: 11 | W76: number | AI76: 7 - STPIS Exclusion (3.3)(a)
B77: Reporting | E77: 12 | F77: dms_FRCP_y12 | G77: 12 | H77: CRCP_y12 | I77: =IF(dms_RPT="financial",VALUE(LEFT(dms_FRCP_y11,4)+1)&"-"&TEXT(VALUE(RIGHT(dms_FRCP_y11,2)+1),"00"),VALUE(LEFT(dms_FRCP_y11,4)+1)) -> 2029-30 | J77: dms_FRCP_y12 | K77: =IF(dms_RPT="financial",VALUE(LEFT(dms_CRCP_yP,4)-1)&"-"&TEXT(VALUE(MID(dms_CRCP_yP,3,2)),"00"),VALUE(LEFT(dms_CRCP_yP,4)-1)) -> 2006-07 | L77: dms_CRCP_yO | M77: 12 | W77: %
B78: Revised regulatory proposal | E78: 13 | F78: dms_FRCP_y13 | G78: 13 | H78: CRCP_y13 | I78: =IF(dms_RPT="financial",VALUE(LEFT(dms_FRCP_y12,4)+1)&"-"&TEXT(VALUE(RIGHT(dms_FRCP_y12,2)+1),"00"),VALUE(LEFT(dms_FRCP_y12,4)+1)) -> 2030-31 | J78: dms_FRCP_y13 | K78: =IF(dms_RPT="financial",VALUE(LEFT(dms_CRCP_yO,4)-1)&"-"&TEXT(VALUE(MID(dms_CRCP_yO,3,2)),"00"),VALUE(LEFT(dms_CRCP_yO,4)-1)) -> 2005-06 | L78: dms_CRCP_yN | M78: 13 | W78: number
E79: 14 | F79: dms_FRCP_y14 | G79: 14 | H79: CRCP_y14 | I79: =IF(dms_RPT="financial",VALUE(LEFT(dms_FRCP_y13,4)+1)&"-"&TEXT(VALUE(RIGHT(dms_FRCP_y13,2)+1),"00"),VALUE(LEFT(dms_FRCP_y13,4)+1)) -> 2031-32 | J79: dms_FRCP_y14 | K79: =IF(dms_RPT="financial",VALUE(LEFT(dms_CRCP_yN,4)-1)&"-"&TEXT(VALUE(MID(dms_CRCP_yN,3,2)),"00"),VALUE(LEFT(dms_CRCP_yN,4)-1)) -> 2004-05 | L79: dms_CRCP_yM | M79: 14 | W79: %
E80: 15 | F80: dms_FRCP_y15 | G80: 15 | H80: CRCP_y15 | I80: =IF(dms_RPT="financial",VALUE(LEFT(dms_FRCP_y14,4)+1)&"-"&TEXT(VALUE(RIGHT(dms_FRCP_y14,2)+1),"00"),VALUE(LEFT(dms_FRCP_y14,4)+1)) -> 2032-33 | J80: dms_FRCP_y15 | K80: =IF(dms_RPT="financial",VALUE(LEFT(dms_CRCP_yM,4)-1)&"-"&TEXT(VALUE(MID(dms_CRCP_yM,3,2)),"00"),VALUE(LEFT(dms_CRCP_yM,4)-1)) -> 2003-04 | L80: dms_CRCP_yL | M80: 15 | W80: number
E82: These are drop down lists for businesses to select the correct FRCP_y1 on the business and other details worksheet. This also populates the column headings in the worksheets
B83: dms_DataQuality_List | E83: dms_RCP_fyear_list | F83: dms_CRY_ListF | G83: dms_CRY_ListC | H83: dms_RCP_cyear_list | I83: dms_FRCP_fyear_list | J83: dms_FRCP_ListF | K83: dms_FRCP_ListC | L83: dms_FRCP_cyear_list
B84: Actual | E84: dms_fy1 | F84: 2006-07 | G84: 2007 | H84: dms_cy1 | I84: dms_frcp_fy1 | J84: 2016-17 | K84: 2017 | L84: dms_crcp_cy1
B85: Estimate | E85: dms_fy2 | F85: 2007-08 | G85: 2008 | H85: dms_cy2 | I85: dms_frcp_fy2 | J85: 2017-18 | K85: 2018 | L85: dms_crcp_cy2
B86: Consolidated | E86: dms_fy3 | F86: 2008-09 | G86: 2009 | H86: dms_cy3 | I86: dms_frcp_fy3 | J86: 2018-19 | K86: 2019 | L86: dms_crcp_cy3
B87: Recast | E87: dms_fy4 | F87: 2009-10 | G87: 2010 | H87: dms_cy4 | I87: dms_frcp_fy4 | J87: 2019-20 | K87: 2020 | L87: dms_crcp_cy4
B88: Public | E88: dms_fy5 | F88: 2010-11 | G88: 2011 | H88: dms_cy5 | I88: dms_frcp_fy5 | J88: 2020-21 | K88: 2021 | L88: dms_crcp_cy5
E89: dms_fy6 | F89: 2011-12 | G89: 2012 | H89: dms_cy6 | I89: dms_frcp_fy6 | J89: 2021-22 | K89: 2022 | L89: dms_crcp_cy6
E90: dms_fy7 | F90: 2012-13 | G90: 2013 | H90: dms_cy7 | I90: dms_frcp_fy7 | J90: 2022-23 | K90: 2023 | L90: dms_crcp_cy7
E91: dms_fy8 | F91: 2013-14 | G91: 2014 | H91: dms_cy8 | I91: dms_frcp_fy8 | J91: 2023-24 | K91: 2024 | L91: dms_crcp_cy8
E92: dms_fy9 | F92: 2014-15 | G92: 2015 | H92: dms_cy9 | I92: dms_frcp_fy9 | J92: 2024-25 | K92: 2025 | L92: dms_crcp_cy9
E93: dms_fy10 | F93: 2015-16 | G93: 2016 | H93: dms_cy10 | I93: dms_frcp_fy10 | J93: 2025-26 | K93: 2026 | L93: dms_crcp_cy10
E94: dms_fy11 | F94: 2016-17 | G94: 2017 | H94: dms_cy11 | I94: dms_frcp_fy11 | J94: 2026-27 | K94: 2027 | L94: dms_crcp_cy11
E95: dms_fy12 | F95: 2017-18 | G95: 2018 | H95: dms_cy12 | I95: dms_frcp_fy12 | J95: 2027-28 | K95: 2028 | L95: dms_crcp_cy12
E96: dms_fy13 | F96: 2018-19 | G96: 2019 | H96: dms_cy13 | I96: dms_frcp_fy13 | J96: 2028-29 | K96: 2029 | L96: dms_crcp_cy13
E97: dms_fy14 | F97: 2019-20 | G97: 2020 | H97: dms_cy14 | I97: dms_frcp_fy14 | J97: 2029-30 | K97: 2030 | L97: dms_crcp_cy14
E98: dms_fy15 | F98: 2020-21 | G98: 2021 | H98: dms_cy15 | I98: dms_frcp_fy15 | J98: 2030-31 | K98: 2031 | L98: dms_crcp_cy15

Sheet Instructions
B2: =CONCATENATE(dms_Segment," Network Service Provider") -> Transmission Network Service Provider
B3: =IF(dms_Model="Reset","Regulatory Proposal RIN Template","Annual Reporting RIN") -> Regulatory Proposal RIN Template
C4: =CONCATENATE("This template is to be used by ",dms_TradingName," to fulfil its reporting obligations to the AER.") -> This template is to be used by TransGrid to fulfil its reporting obligations to the AER.
C5: INSTRUCTIONS
C6: Complete the Business & other details worksheet before entering data or values in any other worksheets. The Business & other details worksheet is linked to other worksheets within the workbook and automatically generates certain column headings and conditional formatting.
C8: Identifying CONFIDENTIAL INFORMATION: Please use the macro at the top of each worksheet to identify confidential information.
C9: -Do this by selecting the cell or cells that contain confidential information and then run the Mark selection CONFIDENTIAL macro. This will format the cells a specific colour that is identified by the AER's database which in turn marks that information as confidential. -To reverse this, select the cell or cells and run the Return selection to NON-CONFIDENTIAL macro.
C11: UNITS OF MEASURE All amounts are to be unrounded and reported on a one for one basis: that is 1000 is to be entered as '1000'. Applicable units of measure may be identified in the table column headings or row descriptors.
C13: COLOUR CODING OF INPUT / NON-INPUT CELLS:
D14: Yellow = Input cell (mandatory)
D15: Darker yellow = input cell (mandatory)
D16: Orange = input cell (if data available)
D17: Grey = Not applicable/No inputs required
D18: PLEASE DO NOT ENTER TEXT into cells that are to contain numeric data.
C21: WORKSHEET NAVIGATION Many tables in the worksheets have been "grouped" to allow for easy navigation. To ungroup or group data use the outline symbols in the left margin (for Row groupings) or above the columns (for column groupings).
C23: RETURNING COMPLETED RESPONSES Please return two (2) files to the AER: 1. A confidential version which must contain a complete set of all responses with confidential information marked using the Mark selected cells CONFIDENTIAL macro and which has been completed using the locked template file provided by the AER. 2. A public version with confidential information either removed completely or aggregated in some form together with writtten consent to disclose the public version of the response. Use the drop down box on the Business and other details worksheet to identify the file as either confidential ('consolidated') or public.
C25: SUBMITTING AMENDED DATA TO THE AER If an NSP wishes to correct data previously submitted to the AER it should resubmit that data using the original completed submission as the starting point. Please make any necessary changes to the data. Data that is not being amended should be left unchanged. NSPs must identify the reason for the amendments in the Amendment Reason box on the Business and other details worksheet. NSPs may provide further details regarding any amendments in the Amendments worksheet. .
C26: NSP may use Amended Data macro to highlight cells that contain amended data. NB: if data is also CONFIDENTIAL, re-apply the Confidentiality macro after applying the Amended macro
C27: Please resubmit two (2) files - a confidential version and a public version of the amended submission to the AER

Sheet Contents
C1: REGULATORY REPORTING STATEMENT
C2: =dms_TradingName -> TransGrid
C3: =CONCATENATE(FRCP_y1," to ",FRCP_y5) -> 2018-19 to 2022-23
C4: Contents
F7: 1. Business details | M7: 2. Expenditure | T7: 3. Economic benchmarking
F26: 5. Network information | T26: 7. Other templates

Sheet Business & other details
B1: =IF(dms_DataQuality="backcast",INDEX(dms_Worksheet_List,MATCH(dms_Model,dms_Model_List))&" BACKCAST",INDEX(dms_Worksheet_List,MATCH(dms_Model,dms_Model_List))) -> REGULATORY REPORTING STATEMENT
B2: =INDEX(dms_TradingNameFull_List,MATCH(dms_TradingName,dms_TradingName_List)) -> TransGrid
B3: =IF(SUM(dms_SingleYear_Model)>0,CRY,CONCATENATE(FRCP_y1," to ",dms_MultiYear_FinalYear_Result)) -> 2018-19 to 2022-23
B4: BUSINESS & OTHER DETAILS
B7: Instructions
B8: Complete the following business details regulatory template before entering data or values in any other regulatory template. This regulatory template is linked to other cells within the spreadsheet and automatically generates column headings and conditional formatting to distinguish business specific input and non-input cells.
B10: SUBMISSION PARTICULARS INPUT SHEETS
B12: ENTITY DETAILS
B14: Short name | C14: TransGrid
B15: ACN / ABN | C15: 70250995390
B18: Business address | C18: Address 1 | E18: =INDEX(dms_Addr1_List,MATCH(dms_TradingName,dms_TradingName_List)) -> 180 Thomas Street
D19: Address 2 | E19: =IF(ISBLANK(INDEX(dms_Addr2_List,MATCH(dms_TradingName,dms_TradingName_List))),"",INDEX(dms_Addr2_List,MATCH(dms_TradingName,dms_TradingName_List))) -> 
C20: Suburb | E20: =INDEX(dms_Suburb_List,MATCH(dms_TradingName,dms_TradingName_List)) -> HAYMARKET
D21: State | E21: =INDEX(dms_State_List,MATCH(dms_TradingName,dms_TradingName_List)) -> NSW | F21: p/code | G21: =INDEX(dms_PostCode_List,MATCH(dms_TradingName,dms_TradingName_List)) -> 2000
B23: Postal address | C23: Address 1 | E23: =INDEX(dms_PAddr1_List,MATCH(dms_TradingName,dms_TradingName_List)) -> PO Box A1000
D24: Address 2 | E24: =IF(ISBLANK(INDEX(dms_PAddr2_List,MATCH(dms_TradingName,dms_TradingName_List))),"",INDEX(dms_PAddr2_List,MATCH(dms_TradingName,dms_TradingName_List))) -> 
C25: Suburb | E25: =INDEX(dms_PSuburb_List,MATCH(dms_TradingName,dms_TradingName_List)) -> SYDNEY SOUTH
D26: State | E26: =INDEX(dms_PState_List,MATCH(dms_TradingName,dms_TradingName_List)) -> NSW | F26: p/code | G26: =INDEX(dms_PPostCode_List,MATCH(dms_TradingName,dms_TradingName_List)) -> 1235
B29: Contact name/s | C29: NicolaTully
B30: Contact phone/s | C30: 02 9284 3120
B31: Contact email address/s | C31: nicola.tully@transgrid.com.au
B33: REGULATORY CONTROL PERIODS
B35: Forthcoming regulatory control period | C35: 2018-19 | D35: =dms_FRCP_y2 -> 2019-20 | E35: =dms_FRCP_y3 -> 2020-21 | F35: =dms_FRCP_y4 -> 2021-22 | G35: =dms_FRCP_y5 -> 2022-23 | H35: =dms_FRCP_y6 -> 2023-24 | I35: =dms_FRCP_y7 -> 2024-25 | J35: =dms_FRCP_y8 -> 2025-26 | K35: =dms_FRCP_y9 -> 2026-27 | L35: =dms_FRCP_y10 -> 2027-28
B38: Current regulatory control period | C38: 2013-14 | D38: =IF(dms_RPT="financial",VALUE(LEFT(CRCP_y1,4)+1)&"-"&TEXT(MID(CRCP_y1,3,2)+2,"00"),VALUE(LEFT(CRCP_y1,4)+1)) -> 2014-15 | E38: =IF(dms_RPT="financial",VALUE(LEFT(CRCP_y2,4)+1)&"-"&TEXT(VALUE(MID(CRCP_y2,3,2)+2),"00"),VALUE(LEFT(CRCP_y2,4)+1)) -> 2015-16 | F38: =IF(dms_RPT="financial",VALUE(LEFT(CRCP_y3,4)+1)&"-"&TEXT(VALUE(MID(CRCP_y3,3,2)+2),"00"),VALUE(LEFT(CRCP_y3,4)+1)) -> 2016-17 | G38: =IF(dms_RPT="financial",VALUE(LEFT(CRCP_y4,4)+1)&"-"&TEXT(VALUE(MID(CRCP_y4,3,2)+2),"00"),VALUE(LEFT(CRCP_y4,4)+1)) -> 2017-18 | H38: =IF(dms_RPT="financial",VALUE(LEFT(CRCP_y5,4)+1)&"-"&TEXT(VALUE(MID(CRCP_y5,3,2)+2),"00"),VALUE(LEFT(CRCP_y5,4)+1)) -> 2018-19 | I38: =IF(dms_RPT="financial",VALUE(LEFT(CRCP_y6,4)+1)&"-"&TEXT(VALUE(MID(CRCP_y6,3,2)+2),"00"),VALUE(LEFT(CRCP_y6,4)+1)) -> 2019-20 | J38: =IF(dms_RPT="financial",VALUE(LEFT(CRCP_y7,4)+1)&"-"&TEXT(VALUE(MID(CRCP_y7,3,2)+2),"00"),VALUE(LEFT(CRCP_y7,4)+1)) -> 2020-21 | K38: =IF(dms_RPT="financial",VALUE(LEFT(CRCP_y8,4)+1)&"-"&TEXT(VALUE(MID(CRCP_y8,3,2)+2),"00"),VALUE(LEFT(CRCP_y8,4)+1)) -> 2021-22 | L38: =IF(dms_RPT="financial",VALUE(LEFT(CRCP_y9,4)+1)&"-"&TEXT(VALUE(MID(CRCP_y9,3,2)+2),"00"),VALUE(LEFT(CRCP_y9,4)+1)) -> 2022-23
B41: Previous regulatory control period | C41: =IF(dms_RPT="financial",VALUE(LEFT(PRCP_y2,4)-1)&"-"&TEXT(VALUE(MID(PRCP_y2,3,2)),"00"),VALUE(LEFT(PRCP_y2,4)-1)) -> 2008-09 | D41: =IF(dms_RPT="financial",VALUE(LEFT(PRCP_y3,4)-1)&"-"&TEXT(VALUE(MID(PRCP_y3,3,2)),"00"),VALUE(LEFT(PRCP_y3,4)-1)) -> 2009-10 | E41: =IF(dms_RPT="financial",VALUE(LEFT(PRCP_y4,4)-1)&"-"&TEXT(VALUE(MID(PRCP_y4,3,2)),"00"),VALUE(LEFT(PRCP_y4,4)-1)) -> 2010-11 | F41: =IF(dms_RPT="financial",VALUE(LEFT(PRCP_y5,4)-1)&"-"&TEXT(VALUE(RIGHT(PRCP_y5,2)-1),"00"),VALUE(LEFT(PRCP_y5,4)-1)) -> 2011-12 | G41: =IF(dms_RPT="financial",VALUE(LEFT(CRCP_y1,4)-1)&"-"&TEXT(VALUE(RIGHT(CRCP_y1,2)-1),"00"),VALUE(LEFT(CRCP_y1,4)-1)) -> 2012-13
B44: Current regulatory year | C44: 2013-14 | D44: CRY
C47: DELETE NR 'CRY' IF NOT AN ANNUAL RIN (EB, CA , ARR)
C48: APPLY NR 'CRY' IF AN ANNUAL RIN (EB, CA , ARR) - including multi year annual RINs eg. Recast CA. EB
B50: Source | C50: Regulatory proposal | E50: Please select the correct submission type from the dropdown list.
B51: Data quality (actual, estimate, public, consolidated) | C51: Consolidated
B52: Amended RIN submission - amendment reason
B53: Submission Date | C53: dd/mm/yyyy | D53: dms_SubmissionDate | E53: Please enter date this file submitted to AER (dd/mm/yyyy)
B54: EBSS - First application of scheme in forthcoming period? | C54: Yes
B55: Sector | C55: =INDEX(dms_Sector_List,MATCH(dms_TradingName,dms_TradingName_List)) -> Electricity | D55: dms_Sector | E55: =INDEX(dms_Sector_List,MATCH(dms_TradingName,dms_TradingName_List))
B56: Segment | C56: =INDEX(dms_Segment_List,MATCH(dms_TradingName,dms_TradingName_List)) -> Transmission | D56: dms_Segment | E56: =INDEX(dms_Segment_List,MATCH(dms_TradingName,dms_TradingName_List))
B57: Regulatory Year Ending | C57: =IF(dms_MultiYear_Flag=1,LEFT(dms_Specified_FinalYear,2)&RIGHT(dms_Specified_FinalYear,2),INDEX(dms_RYE_Formula_Result,MATCH(dms_Model,dms_Model_List))) -> 2023 | D57: dms_RYE | E57: =IF(dms_MultiYear_Flag=1,LEFT(dms_Specified_FinalYear,2)&RIGHT(dms_Specified_FinalYear,2),INDEX(dms_RYE_Formula_Result,MATCH(dms_Model,dms_Model_List)))
B58: Reporting Period Type | C58: =INDEX(dms_RPT_List,MATCH(dms_TradingName,dms_TradingName_List)) -> Financial | D58: dms_RPT | E58: =INDEX(dms_RPT_List,MATCH(dms_TradingName,dms_TradingName_List))
B59: Model or RIN Type | C59: Reset | D59: dms_Model | E59: Drop down selection
B60: Security Classification | C60: Public | D60: dms_Classification | E60: Always Public
B61: Template - version no. | C61: 5 | D61: dms_TemplateNumber
B62: Dollar $ real month | C62: =INDEX(dms_RPTMonth_List,MATCH(dms_TradingName,dms_TradingName_List)) -> June | D62: dms_RPTMonth | E62: =INDEX(dms_RPTMonth_List,MATCH(dms_TradingName,dms_TradingName_List))
B63: Dollar $ real (the last month before the FRCP_y1) | C63: =CONCATENATE(dms_RPTMonth)&" "&VALUE((LEFT(dms_CRCP_FinalYear_Result,2)&RIGHT(dms_CRCP_FinalYear_Result,2))) -> June 2018 | D63: dms_DollarReal | E63: =IF(SUM(dms_SingleYear_Model)>0,CONCATENATE(dms_RPTMonth)&" "&VALUE((LEFT(CRY,2))&RIGHT(CRY,2)),CONCATENATE(dms_RPTMonth)&" "&VALUE((LEFT(dms_CRCP_FinalYear_Result,2)&RIGHT(dms_CRCP_FinalYear_Result,2))))
B64: Form of control | C64: =INDEX(dms_FormControl_List,MATCH(dms_TradingName,dms_TradingName_List)) -> Revenue cap | D64: dms_FormControl | E64: =INDEX(dms_FormControl_List,MATCH(dms_TradingName,dms_TradingName_List))
B65: RIN response - version no. | C65: 1 | D65: dms_RINversion
B66: Jurisdiction | C66: =INDEX(dms_JurisdictionList,MATCH(dms_TradingName,dms_TradingName_List)) -> NSW | D66: dms_Jurisdiction | E66: =INDEX(dms_JurisdictionList,MATCH(dms_TradingName,dms_TradingName_List))
B67: Backcast Multiyear EB, CA or ARR? | C67: 0 | D67: dms_MultiYear_Flag | E67: 1=y, 0-n
C68: 2013 | D68: dms_Specified_FinalYear | E68: The result here is returned to dms_CRCP_FinalYear_Result if dms_MultiYear_Flag is set to 1
B69: Single Year Model T/F | C69: =IF(dms_Model="EB",1,0) -> 0 | D69: dms_EB
C70: =IF(dms_Model="CA",1,0) -> 0 | D70: dms_CA | E70: =dms_SingleYear_Model
C71: =IF(dms_Model="ARR",1,0) -> 0 | D71: dms_ARR
B72: Single Year Final Year Reference | C72: CRY | D72: dms_SingleYear_FinalYear_Ref | E72: This is the reference for EB, CA & ARR RINs
B73: Single Year Final Year Result | C73: =INDIRECT(dms_SingleYear_FinalYear_Ref) ->  | D73: dms_SingleYear_FinalYear_Result | E73: =INDIRECT(dms_SingleYear_FinalYear_Ref) | I73: Formula errors OK
B74: FRCP length in years | C74: =INDEX(dms_FRCPlength_List,MATCH(dms_TradingName,dms_TradingName_List)) -> 5 | D74: dms_FRCPlength_Num | E74: =INDEX(dms_FRCPlength_List,MATCH(dms_TradingName,dms_TradingName_List))
B75: Multi Year Final Year Reference | C75: =INDEX(dms_FinalYear_List,MATCH(dms_FRCPlength_Num,dms_FRCPlength_Num_List)) -> dms_FRCP_y5 | D75: dms_MultiYear_FinalYear_Ref | E75: =INDEX(dms_FinalYear_List,MATCH(dms_FRCPlength_Num,dms_FRCPlength_Num_List))
B76: Multi Year Final Year Result | C76: =IF(dms_MultiYear_Flag=0,INDIRECT(dms_MultiYear_FinalYear_Ref),dms_Specified_FinalYear) -> 2022-23 | D76: dms_MultiYear_FinalYear_Result | E76: =IF(dms_MultiYear_Flag=0,INDIRECT(dms_MultiYear_FinalYear_Ref),dms_Specified_FinalYear) | I76: Formula errors OK
B77: CRCP length in years | C77: =INDEX(dms_CRCPlength_List,MATCH(dms_TradingName,dms_TradingName_List)) -> 4 | D77: dms_CRCPlength_Num | E77: =INDEX(dms_CRCPlength_List,MATCH(dms_TradingName,dms_TradingName_List))
B78: CRCP Final Year Reference | C78: =INDEX(dms_CFinalYear_List,MATCH(dms_CRCPlength_Num,dms_CRCPlength_Num_List)) -> CRCP_y4 | D78: dms_CRCP_FinalYear_Ref | E78: =INDEX(dms_CFinalYear_List,MATCH(dms_CRCPlength_Num,dms_CRCPlength_Num_List))
B79: CRCP First Year Result | C79: =INDEX(dms_CRCP_years,MATCH(dms_CRCPlength_Num,dms_CRCP_index)) -> 2014-15 | D79: dms_CRCP_FirstYear_Result | E79: =INDEX(dms_CRCP_years,MATCH(dms_CRCPlength_Num,dms_CRCP_index))
B80: CRCP Final Year Result | C80: =IF(dms_MultiYear_Flag=0,(IF(SUM(dms_SingleYear_Model)>0,CRY,dms_CRCP_yZ)),dms_Specified_FinalYear) -> 2017-18 | D80: dms_CRCP_FinalYear_Result | E80: =IF(dms_MultiYear_Flag=0,(IF(SUM(dms_SingleYear_Model)>0,CRY,dms_CRCP_yZ)),dms_Specified_FinalYear)
B81: Table 6.6.3 - Public lighting repair - no. business days | C81: =INDEX(dms_663_List,MATCH(dms_TradingName,dms_TradingName_List)) -> 5 | D81: dms_663
B82: Distribution Determination Reference | C82: =INDEX(dms_DeterminationRef_List,MATCH(dms_TradingName,dms_TradingName_List)) -> transmission determination
B83: Backcast templates only - unit of measure | C83: $0s | D83: dms_Backcast_UOM | E83: If the cover sheet is for Backcast data ensure to apply dms_Backcast_UOM named range to this field. Otherwise, do not apply this named range.
B84: EB/CA Unit of Measure for Monetary Values | C84: $0s | D84: dms_dollar_nom_UOM | E84: If the cover sheet is attached to an EB files make sure this field is set
B86: discard this record? | C86: NO | D86: dms_DISCARD | E86: If record is to be discarded from DB set this flag to YES
B88: USES NAMED RANGES FLAG | C88: yes | D88: dms_Defined_Names_Used

Sheet 2.1 Expenditure summary
B1: =(LOOKUP(dms_Model,dms_Model_List,dms_Worksheet_List)) -> REGULATORY REPORTING STATEMENT
B2: =INDEX(dms_TradingNameFull_List,MATCH(dms_TradingName,dms_TradingName_List)) -> TransGrid
B3: =IF(SUM(dms_SingleYear_Model)>0,CRY,CONCATENATE(FRCP_y1," to ",dms_MultiYear_FinalYear_Result)) -> 2018-19 to 2022-23
B4: 2.1 - EXPENDITURE SUMMARY AND RECONCILIATION
B6: There are four tables on this worksheet. Each has been grouped for ease of navigation. See the Instructions sheet on how to group or ungroup tables.
B8: 2.1.1 - PRESCRIBED TRANSMISSION SERVICES CAPEX (as incurred)
C9: =CONCATENATE("Forecast ($0's. real ",dms_DollarReal,")") -> Forecast ($0's. real June 2018)
C10: =CRCP_y4 -> 2016-17 | D10: =CRCP_y5 -> 2017-18 | E10: =FRCP_y1 -> 2018-19 | F10: =FRCP_y2 -> 2019-20 | G10: =FRCP_y3 -> 2020-21 | H10: =FRCP_y4 -> 2021-22 | I10: =FRCP_y5 -> 2022-23
B11: Replacement expenditure | C11: 150943348.1 | D11: 143625505.6 | E11: 119168641.7 | F11: 165393562.6 | G11: 200597757.2 | H11: 172332344.5 | I11: 182536454.5
B12: Connections | C12: 1294256.207 | D12: 133828.1582 | E12: 2211179.76 | F12: 1731897.177 | G12: 1140154.326 | H12: 1073017.556 | I12: 2742498.967
B13: Augmentation Expenditure | C13: 5205168.024 | D13: 8687275.77 | E13: 23668163.93 | F13: 72045418.78 | G13: 69708886.03 | H13: 145317938.2 | I13: 162040541.6
B14: Non-network | C14: 22354295.13 | D14: 27534112.44 | E14: 21339417.32 | F14: 38491926.9 | G14: 36820724.9 | H14: 21304505.19 | I14: 24396372.02
B15: Capitalised network overheads | C15: 27613658 | D15: 26769235 | E15: 26973054 | F15: 27227750 | G15: 27624134 | H15: 28057462 | I15: 28446935
B16: Capitalised corporate overheads | C16: 1984927 | D16: 1924228 | E16: 1938879 | F16: 1957187 | G16: 1985680 | H16: 2016829 | I16: 2044825
B17: TOTAL CAPEX | C17: =SUM(C11:C16) -> 209395652.4 | D17: 208674184.9 | E17: 195299335.7 | F17: 306847742.5 | G17: 337877336.4 | H17: 370102096.5 | I17: 402207627.1
B20: 2.1.2 - PRESCRIBED TRANSMISSION SERVICES OPEX
C21: =CONCATENATE("Forecast ($0's. real ",dms_DollarReal,")") -> Forecast ($0's. real June 2018)
C22: =CRCP_y4 -> 2016-17 | D22: =CRCP_y5 -> 2017-18 | E22: =FRCP_y1 -> 2018-19 | F22: =FRCP_y2 -> 2019-20 | G22: =FRCP_y3 -> 2020-21 | H22: =FRCP_y4 -> 2021-22 | I22: =FRCP_y5 -> 2022-23
B23: Vegetation management
B24: Maintenance
B25: Non-network
B26: Network overheads
B27: Corporate overheads
B28: TOTAL OPEX | C28: =SUM(C23:C27) -> 0 | D28: 0 | E28: 0 | F28: 0 | G28: 0 | H28: 0 | I28: 0
B31: 2.1.7 - PRESCRIBED TRANSMISSION SERVICES CAPCONS
C32: =CONCATENATE("Forecast ($0's. real ",dms_DollarReal,")") -> Forecast ($0's. real June 2018)
C33: =CRCP_y4 -> 2016-17 | D33: =CRCP_y5 -> 2017-18 | E33: =FRCP_y1 -> 2018-19 | F33: =FRCP_y2 -> 2019-20 | G33: =FRCP_y3 -> 2020-21 | H33: =FRCP_y4 -> 2021-22 | I33: =FRCP_y5 -> 2022-23
B34: Replacement expenditure
B35: Connections
B36: Augmentation Expenditure
B37: Non-network
B38: Capitalised network overheads
B39: Capitalised corporate overheads
B40: TOTAL CAPCONS | C40: =SUM(C34:C39) -> 0 | D40: 0 | E40: 0 | F40: 0 | G40: 0 | H40: 0 | I40: 0
B43: 2.1.8 - PRESCRIBED TRANSMISSION SERVICES CAPITALISED OVERHEADS
C44: =CONCATENATE("Forecast ($0's. real ",dms_DollarReal,")") -> Forecast ($0's. real June 2018)
C45: =CRCP_y4 -> 2016-17 | D45: =CRCP_y5 -> 2017-18 | E45: =FRCP_y1 -> 2018-19 | F45: =FRCP_y2 -> 2019-20 | G45: =FRCP_y3 -> 2020-21 | H45: =FRCP_y4 -> 2021-22 | I45: =FRCP_y5 -> 2022-23
B46: Replacement expenditure | C46: 24957178.4 | D46: 23387506.96 | E46: 23054573.15 | F46: 24084847.76 | G46: 24700888.98 | H46: 25120296.74 | I46: 24832346.13
B47: Connections | C47: 213994.081 | D47: 21792.13901 | E47: 427778.6907 | F47: 252201.3503 | G47: 140394.5179 | H47: 156410.1009 | I47: 373090.8645
B48: Augmentation Expenditure | C48: 731322.9643 | D48: 800599.2027 | E48: 1301220.29 | F48: 1532657.501 | G48: 2170981.83 | H48: 1692099.268 | I48: 1967428.945
B49: Non-network | C49: 3696089.551 | D49: 4483564.698 | E49: 4128360.872 | F49: 3315230.389 | G49: 2597548.675 | H49: 3105484.891 | I49: 3318894.059
B50: TOTAL CAPITALISED OVERHEADS | C50: =SUM(C46:C49) -> 29598585 | D50: 28693463 | E50: 28911933 | F50: 29184937 | G50: 29609814 | H50: 30074291 | I50: 30491760

Sheet 2.2 Repex
B1: =(LOOKUP(dms_Model,dms_Model_List,dms_Worksheet_List)) -> REGULATORY REPORTING STATEMENT
B2: =INDEX(dms_TradingNameFull_List,MATCH(dms_TradingName,dms_TradingName_List)) -> TransGrid
B3: =IF(SUM(dms_SingleYear_Model)>0,CRY,CONCATENATE(FRCP_y1," to ",dms_MultiYear_FinalYear_Result)) -> 2018-19 to 2022-23
B4: 2.2 REPEX
B6: There is ONE table (with three sub-tables) on this worksheet. See the Instructions sheet on how to group or ungroup tables.
B8: 2.2.1 - REPLACEMENT EXPENDITURE, VOLUMES AND ASSET FAILURES BY ASSET CATEGORY
B9: EXPENDITURE
D10: EXPENDITURE
D11: =CONCATENATE("($0's. real ",dms_DollarReal,")") -> ($0's. real June 2018)
B12: ASSET GROUP | C12: ASSET CATEGORY | D12: =CRCP_y4 -> 2016-17 | E12: =CRCP_y5 -> 2017-18 | F12: =FRCP_y1 -> 2018-19 | G12: =FRCP_y2 -> 2019-20 | H12: =FRCP_y3 -> 2020-21 | I12: =FRCP_y4 -> 2021-22 | J12: =FRCP_y5 -> 2022-23
B13: TRANSMISSION TOWERS Highest operating voltage; Circuit configuration | C13: < = 33 kV; Single Circuit | D13: 0 | E13: 0 | F13: 0 | G13: 0 | H13: 0 | I13: 0 | J13: 0
C14: > 33 kV & < = 66 kV ; Single Circuit | D14: 0 | E14: 0 | F14: 0 | G14: 0 | H14: 0 | I14: 0 | J14: 0
C15: > 66 kV & < = 132 kV ; Single Circuit | D15: 1672262.717 | E15: 1293509.431 | F15: 14766825.82 | G15: 14869954.76 | H15: 14884347.17 | I15: 14953998.2 | J15: 15043897.95
C16: > 132 kV & < = 275 kV ; Single Circuit | D16: 0 | E16: 0 | F16: 0 | G16: 0 | H16: 0 | I16: 0 | J16: 0
C17: > 275 kV & < = 330 kV ; Single Circuit | D17: 0 | E17: 0 | F17: 393486.8804 | G17: 8606705.712 | H17: 27485251.4 | I17: 21244766.4 | J17: 21767176.58
C18: > 330 kV & < = 500 kV ; Single Circuit | D18: 0 | E18: 0 | F18: 0 | G18: 0 | H18: 0 | I18: 0 | J18: 0
C19: > 500 kV ; Single Circuit | D19: 0 | E19: 0 | F19: 0 | G19: 0 | H19: 0 | I19: 0 | J19: 0
C20: < = 33 kV; Multiple Circuit | D20: 0 | E20: 0 | F20: 0 | G20: 0 | H20: 0 | I20: 0 | J20: 0
C21: > 33 kV & < = 66 kV ; Multiple Circuit | D21: 0 | E21: 0 | F21: 0 | G21: 0 | H21: 0 | I21: 0 | J21: 0
C22: > 66 kV & < = 132 kV ; Multiple Circuit | D22: 0 | E22: 0 | F22: 0 | G22: 0 | H22: 0 | I22: 0 | J22: 0
C23: > 132 kV & < = 275 kV ; Multiple Circuit | D23: 0 | E23: 0 | F23: 0 | G23: 0 | H23: 0 | I23: 0 | J23: 0
C24: > 275 kV & < = 330 kV ; Multiple Circuit | D24: 0 | E24: 0 | F24: 0 | G24: 0 | H24: 0 | I24: 0 | J24: 0
C25: > 330 kV & < = 500 kV ; Multiple Circuit | D25: 0 | E25: 0 | F25: 0 | G25: 0 | H25: 0 | I25: 0 | J25: 0
C26: > 500 kV ; Multiple Circuit | D26: 0 | E26: 0 | F26: 0 | G26: 0 | H26: 0 | I26: 0 | J26: 0
C27: Other | D27: 0 | E27: 120773.5531 | F27: 3647880.398 | G27: 12995344.85 | H27: 16121007.91 | I27: 16262080.33 | J27: 17987587.2
B28: TRANSMISSION TOWER SUPPORT STRUCTURES BY: Highest operating voltage; Circuit configuration | C28: < = 33 kV; Single Circuit | D28: 0 | E28: 0 | F28: 0 | G28: 0 | H28: 0 | I28: 0 | J28: 0
C29: > 33 kV & < = 66 kV ; Single Circuit | D29: 0 | E29: 0 | F29: 0 | G29: 0 | H29: 0 | I29: 0 | J29: 0
C30: > 66 kV & < = 132 kV ; Single Circuit | D30: 30314622.97 | E30: 23448618.63 | F30: 0 | G30: 0 | H30: 0 | I30: 0 | J30: 0
C31: > 132 kV & < = 275 kV ; Single Circuit | D31: 0 | E31: 0 | F31: 0 | G31: 0 | H31: 0 | I31: 0 | J31: 0
C32: > 275 kV & < = 330 kV ; Single Circuit | D32: 32413.00232 | E32: 1041776.091 | F32: 7115508.883 | G32: 8470336.98 | H32: 12012175.18 | I32: 10919271.24 | J32: 12387531
C33: > 330 kV & < = 500 kV ; Single Circuit | D33: 0 | E33: 0 | F33: 0 | G33: 0 | H33: 0 | I33: 0 | J33: 0
C34: > 500 kV ; Single Circuit | D34: 0 | E34: 0 | F34: 0 | G34: 0 | H34: 0 | I34: 0 | J34: 0
C35: < = 33 kV; Multiple Circuit | D35: 0 | E35: 0 | F35: 0 | G35: 0 | H35: 0 | I35: 0 | J35: 0
C36: > 33 kV & < = 66 kV ; Multiple Circuit | D36: 0 | E36: 0 | F36: 0 | G36: 0 | H36: 0 | I36: 0 | J36: 0
C37: > 66 kV & < = 132 kV ; Multiple Circuit | D37: 505567.7982 | E37: 391060.9906 | F37: 0 | G37: 0 | H37: 0 | I37: 0 | J37: 0
C38: > 132 kV & < = 275 kV ; Multiple Circuit | D38: 0 | E38: 0 | F38: 0 | G38: 0 | H38: 0 | I38: 0 | J38: 0
C39: > 275 kV & < = 330 kV ; Multiple Circuit | D39: 4269.706065 | E39: 116400.8751 | F39: 699900.1593 | G39: 0 | H39: 33771.68859 | I39: 583622.7532 | J39: 4353984.879
C40: > 330 kV & < = 500 kV ; Multiple Circuit | D40: 0 | E40: 0 | F40: 0 | G40: 0 | H40: 0 | I40: 0 | J40: 0
C41: > 500 kV ; Multiple Circuit | D41: 0 | E41: 0 | F41: 0 | G41: 0 | H41: 0 | I41: 0 | J41: 0
C42: Other | D42: 0 | E42: 0 | F42: 0 | G42: 0 | H42: 0 | I42: 0 | J42: 0
B43: CONDUCTORS BY: Voltage; Maximum continuous rating | C43: < = 33 kV ; < = 100 MVA | D43: 0 | E43: 0 | F43: 0 | G43: 0 | H43: 0 | I43: 0 | J43: 0
C44: < = 33 kV ; > 100 MVA & < = 400 MVA | D44: 0 | E44: 0 | F44: 0 | G44: 0 | H44: 0 | I44: 0 | J44: 0
C45: < = 33 kV ; > 400 MVA | D45: 0 | E45: 0 | F45: 0 | G45: 0 | H45: 0 | I45: 0 | J45: 0
C46: > 33 kV & < = 66 kV ; < = 100 MVA | D46: 0 | E46: 0 | F46: 0 | G46: 0 | H46: 0 | I46: 0 | J46: 0
C47: > 33 kV & < = 66 kV ; > 100 MVA & < = 400 MVA | D47: 0 | E47: 0 | F47: 0 | G47: 0 | H47: 0 | I47: 0 | J47: 0
C48: > 33 kV & < = 66 kV ; > 400 MVA | D48: 0 | E48: 0 | F48: 0 | G48: 0 | H48: 0 | I48: 0 | J48: 0
C49: > 66 kV & < = 132 kV ; < = 100 MVA | D49: 0 | E49: 0 | F49: 0 | G49: 0 | H49: 0 | I49: 0 | J49: 0
C50: > 66 kV & < = 132 kV ; > 100 MVA & < = 400 MVA | D50: 0 | E50: 0 | F50: 0 | G50: 0 | H50: 0 | I50: 0 | J50: 0
C51: > 66 kV & < = 132 kV ; > 400 MVA | D51: 0 | E51: 0 | F51: 0 | G51: 0 | H51: 0 | I51: 0 | J51: 0
C52: > 132 kV & < = 275 kV ; < = 200 MVA | D52: 0 | E52: 0 | F52: 0 | G52: 0 | H52: 0 | I52: 0 | J52: 0
C53: > 132 kV & < = 275 kV ; > 200 MVA & < = 600 MVA | D53: 0 | E53: 0 | F53: 0 | G53: 0 | H53: 0 | I53: 0 | J53: 0
C54: > 132 kV & < = 275 kV ; > 600 MVA | D54: 0 | E54: 0 | F54: 0 | G54: 0 | H54: 0 | I54: 0 | J54: 0
C55: > 275 kV & < = 330 kV ; < = 800 MVA | D55: 0 | E55: 0 | F55: 0 | G55: 0 | H55: 0 | I55: 0 | J55: 0
C56: > 275 kV & < = 330 kV ; > 800 MVA & < = 1200 MVA | D56: 0 | E56: 0 | F56: 0 | G56: 0 | H56: 0 | I56: 0 | J56: 0
C57: > 275 kV & < = 330 kV ; > 1200 MVA | D57: 0 | E57: 0 | F57: 84645.29569 | G57: 1837994.483 | H57: 5846247.628 | I57: 4448867.952 | J57: 0
C58: > 330 kV & < = 500 kV ; < = 1000 MVA | D58: 0 | E58: 0 | F58: 0 | G58: 0 | H58: 0 | I58: 0 | J58: 0
C59: > 330 kV & < = 500 kV ; > 1000 MVA & < = 1500 MVA | D59: 0 | E59: 0 | F59: 0 | G59: 0 | H59: 0 | I59: 0 | J59: 0
C60: > 330 kV & < = 500 kV ; > 1500 MVA | D60: 0 | E60: 0 | F60: 0 | G60: 0 | H60: 0 | I60: 0 | J60: 0
C61: > 500 kV ; < = 2000 MVA | D61: 0 | E61: 0 | F61: 0 | G61: 0 | H61: 0 | I61: 0 | J61: 0
C62: > 500 kV ; > 2000 MVA & < = 3000 MVA | D62: 0 | E62: 0 | F62: 0 | G62: 0 | H62: 0 | I62: 0 | J62: 0
C63: > 500 kV ; > 3000 MVA | D63: 0 | E63: 0 | F63: 0 | G63: 0 | H63: 0 | I63: 0 | J63: 0
C64: Other | D64: 0 | E64: 0 | F64: 0 | G64: 0 | H64: 0 | I64: 0 | J64: 0
B65: TRANSMISSION CABLES BY: Highest operating voltage; Insulation type | C65: < = 33 kV; Oil Filled | D65: 0 | E65: 0 | F65: 0 | G65: 0 | H65: 0 | I65: 0 | J65: 0
C66: > 33 kV & < = 66 kV ; Oil Filled | D66: 0 | E66: 0 | F66: 0 | G66: 0 | H66: 0 | I66: 0 | J66: 0
C67: > 66 kV & < = 132 kV ; Oil Filled | D67: 0 | E67: 0 | F67: 0 | G67: 0 | H67: 0 | I67: 0 | J67: 0
C68: > 132 kV & < = 275 kV ; Oil Filled | D68: 0 | E68: 0 | F68: 0 | G68: 0 | H68: 0 | I68: 0 | J68: 0
C69: > 275 kV & < = 330 kV ; Oil Filled | D69: 0 | E69: 0 | F69: 0 | G69: 0 | H69: 0 | I69: 0 | J69: 0
C70: > 330 kV & < = 500 kV ; Oil Filled | D70: 0 | E70: 0 | F70: 0 | G70: 0 | H70: 0 | I70: 0 | J70: 0
C71: > 500 kV ; Oil Filled | D71: 0 | E71: 0 | F71: 0 | G71: 0 | H71: 0 | I71: 0 | J71: 0
C72: < = 33 kV; XLPE Insulated | D72: 0 | E72: 0 | F72: 0 | G72: 0 | H72: 0 | I72: 0 | J72: 0
C73: > 33 kV & < = 66 kV ; XLPE Insulated | D73: 0 | E73: 0 | F73: 0 | G73: 0 | H73: 0 | I73: 0 | J73: 0
C74: > 66 kV & < = 132 kV ; XLPE Insulated | D74: 0 | E74: 0 | F74: 0 | G74: 0 | H74: 0 | I74: 0 | J74: 0
C75: > 132 kV & < = 275 kV ; XLPE Insulated | D75: 0 | E75: 0 | F75: 0 | G75: 0 | H75: 0 | I75: 0 | J75: 0
C76: > 275 kV & < = 330 kV ; XLPE Insulated | D76: 0 | E76: 0 | F76: 0 | G76: 0 | H76: 0 | I76: 0 | J76: 0
C77: > 330 kV & < = 500 kV ; XLPE Insulated | D77: 0 | E77: 0 | F77: 0 | G77: 0 | H77: 0 | I77: 0 | J77: 0
C78: > 500 kV ; XLPE Insulated | D78: 0 | E78: 0 | F78: 0 | G78: 0 | H78: 0 | I78: 0 | J78: 0
C79: < = 33 kV; Other Insulated | D79: 0 | E79: 0 | F79: 0 | G79: 0 | H79: 0 | I79: 0 | J79: 0
C80: > 33 kV & < = 66 kV ; Other Insulated | D80: 0 | E80: 0 | F80: 0 | G80: 0 | H80: 0 | I80: 0 | J80: 0
C81: > 66 kV & < = 132 kV ; Other Insulated | D81: 0 | E81: 0 | F81: 0 | G81: 0 | H81: 0 | I81: 0 | J81: 0
C82: > 132 kV & < = 275 kV ; Other Insulated | D82: 0 | E82: 0 | F82: 0 | G82: 0 | H82: 0 | I82: 0 | J82: 0
C83: > 275 kV & < = 330 kV ; Other Insulated | D83: 0 | E83: 0 | F83: 0 | G83: 0 | H83: 0 | I83: 0 | J83: 0
C84: > 330 kV & < = 500 kV ; Other Insulated | D84: 0 | E84: 0 | F84: 0 | G84: 0 | H84: 0 | I84: 0 | J84: 0
C85: > 500 kV ; Other Insulated | D85: 0 | E85: 0 | F85: 0 | G85: 0 | H85: 0 | I85: 0 | J85: 0
C86: Other | D86: 0 | E86: 14.56669455 | F86: 5957.097924 | G86: 46199.88405 | H86: 185289.8655 | I86: 21143.41265 | J86: 0
B87: SUBSTATION SWITCHBAYS BY: Highest operating voltage; Switch type | C87: < = 33 kV; Air Insulated circuit Breaker | D87: 1042905.592 | E87: 2007849.924 | F87: 60031.39591 | G87: 60575.63433 | H87: 60802.60066 | I87: 61279.1302 | J87: 61838.36695
C88: > 33 kV & < = 66 kV ; Air Insulated circuit Breaker | D88: 2317567.981 | E88: 4461888.721 | F88: 3781977.942 | G88: 3816264.963 | H88: 3830563.842 | I88: 3860585.202 | J88: 3895817.119
C89: > 66 kV & < = 132 kV ; Air Insulated circuit Breaker | D89: 347635.1972 | E89: 669283.3081 | F89: 4682448.881 | G89: 4724899.478 | H89: 4742602.852 | I89: 4779772.155 | J89: 4823392.623
C90: > 132 kV & < = 275 kV ; Air Insulated circuit Breaker | D90: 0 | E90: 0 | F90: 0 | G90: 0 | H90: 0 | I90: 0 | J90: 0
C91: > 275 kV & < = 330 kV ; Air Insulated circuit Breaker | D91: 1854054.385 | E91: 3569510.977 | F91: 5642951.215 | G91: 5694109.627 | H91: 5715444.463 | I91: 5760238.239 | J91: 5812806.494
C92: > 330 kV & < = 500 kV ; Air Insulated circuit Breaker | D92: 579391.9953 | E92: 1115472.18 | F92: 0 | G92: 0 | H92: 0 | I92: 0 | J92: 0
C93: > 500 kV ; Air Insulated circuit Breaker | D93: 0 | E93: 0 | F93: 0 | G93: 0 | H93: 0 | I93: 0 | J93: 0
C94: < = 33 kV; Air Insulated Isolators / Earth Switch | D94: 0 | E94: 0 | F94: 0 | G94: 0 | H94: 0 | I94: 0 | J94: 0
C95: > 33 kV & < = 66 kV ; Air Insulated Isolators / Earth Switch | D95: 538647.8951 | E95: 0 | F95: 0 | G95: 0 | H95: 0 | I95: 0 | J95: 0
C96: > 66 kV & < = 132 kV ; Air Insulated Isolators / Earth Switch | D96: 429235.0414 | E96: 0 | F96: 1031050.359 | G96: 1041914.143 | H96: 1047856.072 | I96: 1058386.641 | J96: 1070342.456
C97: > 132 kV & < = 275 kV ; Air Insulated Isolators / Earth Switch | D97: 0 | E97: 0 | F97: 0 | G97: 0 | H97: 0 | I97: 0 | J97: 0
C98: > 275 kV & < = 330 kV ; Air Insulated Isolators / Earth Switch | D98: 193576.5873 | E98: 0 | F98: 1210363.465 | G98: 1223116.603 | H98: 1230091.911 | I98: 1242453.883 | J98: 1256488.97
C99: > 330 kV & < = 500 kV ; Air Insulated Isolators / Earth Switch | D99: 0 | E99: 0 | F99: 0 | G99: 0 | H99: 0 | I99: 0 | J99: 0
C100: > 500 kV ; Air Insulated Isolators / Earth Switch | D100: 0 | E100: 0 | F100: 0 | G100: 0 | H100: 0 | I100: 0 | J100: 0
C101: < = 33 kV; VT | D101: 0 | E101: 0 | F101: 636687.1855 | G101: 643657.5693 | H101: 647679.708 | I101: 654587.6013 | J101: 662376.4215
C102: > 33 kV & < = 66 kV ; VT | D102: 999825.5781 | E102: 1078820.96 | F102: 1404457.027 | G102: 1419832.874 | H102: 1428705.238 | I102: 1443943.239 | J102: 1461124.459
C103: > 66 kV & < = 132 kV ; VT | D103: 187467.2959 | E103: 202278.93 | F103: 861400.3097 | G103: 870830.8291 | H103: 876272.5461 | I103: 885618.5194 | J103: 896156.335
C104: > 132 kV & < = 275 kV ; VT | D104: 0 | E104: 0 | F104: 93630.46845 | G104: 94655.52491 | H104: 95247.01587 | I104: 96262.88254 | J104: 97408.29728
C105: > 275 kV & < = 330 kV ; VT | D105: 468668.2397 | E105: 505697.325 | F105: 543056.717 | G105: 549002.0444 | H105: 552432.6921 | I105: 558324.7188 | J105: 564968.1242
C106: > 330 kV & < = 500 kV ; VT | D106: 62489.09863 | E106: 67426.31 | F106: 112356.5622 | G106: 113586.6299 | H106: 114296.419 | I106: 115515.459 | J106: 116889.9568
C107: > 500 kV ; VT | D107: 0 | E107: 0 | F107: 0 | G107: 0 | H107: 0 | I107: 0 | J107: 0
C108: < = 33 kV; CT | D108: 83318.79817 | E108: 89901.74666 | F108: 43111.43101 | G108: 43528.43994 | H108: 43726.69996 | I108: 44109.40023 | J108: 44551.57827
C109: > 33 kV & < = 66 kV ; CT | D109: 343690.0425 | E109: 370844.705 | F109: 776005.7581 | G109: 783511.919 | H109: 787080.5993 | I109: 793969.2042 | J109: 801928.4089
C110: > 66 kV & < = 132 kV ; CT | D110: 343690.0425 | E110: 370844.705 | F110: 2155571.55 | G110: 2176421.997 | H110: 2186334.998 | I110: 2205470.012 | J110: 2227578.914
C111: > 132 kV & < = 275 kV ; CT | D111: 62489.09863 | E111: 67426.31 | F111: 258668.586 | G111: 261170.6397 | H111: 262360.1998 | I111: 264656.4014 | J111: 267309.4696
C112: > 275 kV & < = 330 kV ; CT | D112: 1031070.127 | E112: 1112534.115 | F112: 1149638.16 | G112: 1160758.399 | H112: 1166045.332 | I112: 1176250.673 | J112: 1188042.087
C113: > 330 kV & < = 500 kV ; CT | D113: 0 | E113: 0 | F113: 0 | G113: 0 | H113: 0 | I113: 0 | J113: 0
C114: > 500 kV ; CT | D114: 0 | E114: 0 | F114: 0 | G114: 0 | H114: 0 | I114: 0 | J114: 0
C115: < = 33 kV; GIS Module | D115: 93733.64794 | E115: 101139.465 | F115: 0 | G115: 0 | H115: 0 | I115: 0 | J115: 0
C116: > 33 kV & < = 66 kV ; GIS Module | D116: 374934.5918 | E116: 404557.86 | F116: 0 | G116: 0 | H116: 0 | I116: 0 | J116: 0
C117: > 66 kV & < = 132 kV ; GIS Module | D117: 0 | E117: 0 | F117: 0 | G117: 0 | H117: 0 | I117: 0 | J117: 0
C118: > 132 kV & < = 275 kV ; GIS Module | D118: 0 | E118: 0 | F118: 0 | G118: 0 | H118: 0 | I118: 0 | J118: 0
C119: > 275 kV & < = 330 kV ; GIS Module | D119: 0 | E119: 0 | F119: 0 | G119: 0 | H119: 0 | I119: 0 | J119: 0
C120: > 330 kV & < = 500 kV ; GIS Module | D120: 0 | E120: 0 | F120: 0 | G120: 0 | H120: 0 | I120: 0 | J120: 0
C121: > 500 kV ; GIS Module | D121: 0 | E121: 0 | F121: 0 | G121: 0 | H121: 0 | I121: 0 | J121: 0
C122: Other | D122: 104148.4977 | E122: 112377.1833 | F122: 0 | G122: 0 | H122: 0 | I122: 0 | J122: 0
B123: SUBSTATION POWER TRANSFORMERS BY: Highest operating voltage; Ampere rating | C123: < = 33 kV ; < = 10 MVA | D123: 0 | E123: 0 | F123: 0 | G123: 0 | H123: 0 | I123: 0 | J123: 0
C124: < = 33 kV ; > 10 MVA & < = 30 MVA | D124: 0 | E124: 0 | F124: 0 | G124: 0 | H124: 0 | I124: 0 | J124: 0
C125: < = 33 kV ; > 30 MVA | D125: 0 | E125: 0 | F125: 0 | G125: 0 | H125: 0 | I125: 0 | J125: 0
C126: > 33 kV & < = 66 kV ; < = 10 MVA | D126: 0 | E126: 0 | F126: 0 | G126: 0 | H126: 0 | I126: 0 | J126: 0
C127: > 33 kV & < = 66 kV ; > 10 MVA & < = 30 MVA | D127: 0 | E127: 0 | F127: 0 | G127: 0 | H127: 0 | I127: 0 | J127: 0
C128: > 33 kV & < = 66 kV ; > 30 MVA | D128: 0 | E128: 0 | F128: 0 | G128: 0 | H128: 0 | I128: 0 | J128: 0
C129: > 66 kV & < = 132 kV ; < = 30 MVA | D129: 0 | E129: 0 | F129: 0 | G129: 0 | H129: 0 | I129: 0 | J129: 0
C130: > 66 kV & < = 132 kV ; > 30 MVA & < = 60 MVA | D130: 32281.48412 | E130: 44503.08704 | F130: 377802.9655 | G130: 3309038.441 | H130: 4889041.601 | I130: 640887.678 | J130: 0
C131: > 66 kV & < = 132 kV ; > 60 MVA | D131: 0 | E131: 0 | F131: 0 | G131: 0 | H131: 0 | I131: 0 | J131: 0
C132: > 132 kV & < = 220 kV ; < = 50 MVA | D132: 0 | E132: 0 | F132: 0 | G132: 0 | H132: 0 | I132: 0 | J132: 0
C133: > 132 kV & < = 220 kV ; > 50 MVA & < = 100 MVA | D133: 0 | E133: 0 | F133: 0 | G133: 0 | H133: 0 | I133: 0 | J133: 0
C134: > 132 kV & < = 220 kV ; > 100 MVA | D134: 0 | E134: 0 | F134: 0 | G134: 0 | H134: 0 | I134: 0 | J134: 0
C135: > 220 kV & < = 275 kV ; < = 50 MVA | D135: 0 | E135: 0 | F135: 0 | G135: 0 | H135: 0 | I135: 0 | J135: 0
C136: > 220 kV & < = 275 kV ; > 50 MVA & < = 100 MVA | D136: 0 | E136: 0 | F136: 0 | G136: 0 | H136: 0 | I136: 0 | J136: 0
C137: > 220 kV & < = 275 kV ; > 100 MVA | D137: 0 | E137: 0 | F137: 0 | G137: 0 | H137: 0 | I137: 0 | J137: 0
C138: > 275 kV & < = 330 kV ; < = 100 MVA | D138: 0 | E138: 0 | F138: 0 | G138: 0 | H138: 0 | I138: 0 | J138: 0
C139: > 275 kV & < = 330 kV ; > 100 MVA & < = 250 MVA | D139: 0 | E139: 0 | F139: 393210.2638 | G139: 395539.7182 | H139: 395361.3999 | I139: 396571.4298 | J139: 398319.3407
C140: > 275 kV & < = 330 kV ; > 250 MVA | D140: 24278.01535 | E140: 1557102.919 | F140: 650793.0895 | G140: 14685262.88 | H140: 0 | I140: 0 | J140: 0
C141: > 330 kV & < = 500 kV ; < = 150 MVA | D141: 0 | E141: 0 | F141: 0 | G141: 0 | H141: 0 | I141: 0 | J141: 0
C142: > 330 kV & < = 500 kV ; > 150 MVA & < = 300 MVA | D142: 0 | E142: 0 | F142: 0 | G142: 0 | H142: 0 | I142: 0 | J142: 0
C143: > 330 kV & < = 500 kV ; > 300 MVA | D143: 0 | E143: 0 | F143: 0 | G143: 0 | H143: 0 | I143: 0 | J143: 0
C144: > 500 kV ; < = 1000 MVA | D144: 0 | E144: 0 | F144: 0 | G144: 0 | H144: 0 | I144: 0 | J144: 0
C145: > 500 kV ; > 1000 MVA & < = 1500 MVA | D145: 0 | E145: 0 | F145: 0 | G145: 0 | H145: 0 | I145: 0 | J145: 0
C146: > 500 kV ; > 1500 MVA | D146: 0 | E146: 0 | F146: 0 | G146: 0 | H146: 0 | I146: 0 | J146: 0
C147: Other | D147: 4709996.719 | E147: 3787887.338 | F147: 3782896.67 | G147: 3803232.096 | H147: 3798719.699 | I147: 3807150.204 | J147: 3820748.938
B148: SUBSTATION REACTIVE PLANT BY: Highest operating voltage; Function | C148: < = 33 kV; SVCS | D148: 0 | E148: 0 | F148: 0 | G148: 0 | H148: 0 | I148: 0 | J148: 0
C149: > 33 kV & < = 66 kV ; SVCS | D149: 0 | E149: 0 | F149: 0 | G149: 0 | H149: 0 | I149: 0 | J149: 0
C150: > 66 kV & < = 132 kV ; SVCS | D150: 0 | E150: 0 | F150: 0 | G150: 0 | H150: 0 | I150: 0 | J150: 0
C151: > 132 kV & < = 275 kV ; SVCS | D151: 0 | E151: 0 | F151: 0 | G151: 0 | H151: 0 | I151: 0 | J151: 0
C152: > 275 kV & < = 330 kV ; SVCS | D152: 0 | E152: 0 | F152: 0 | G152: 0 | H152: 0 | I152: 0 | J152: 0
C153: > 330 kV & < = 500 kV ; SVCS | D153: 0 | E153: 0 | F153: 0 | G153: 0 | H153: 0 | I153: 0 | J153: 0
C154: > 500 kV ; SVCS | D154: 0 | E154: 0 | F154: 0 | G154: 0 | H154: 0 | I154: 0 | J154: 0
C155: < = 33 kV; Capacitors | D155: 0 | E155: 0 | F155: 0 | G155: 0 | H155: 0 | I155: 0 | J155: 0
C156: > 33 kV & < = 66 kV ; Capacitors | D156: 0 | E156: 0 | F156: 0 | G156: 0 | H156: 0 | I156: 0 | J156: 0
C157: > 66 kV & < = 132 kV ; Capacitors | D157: 0 | E157: 0 | F157: 0 | G157: 0 | H157: 0 | I157: 0 | J157: 0
C158: > 132 kV & < = 275 kV ; Capacitors | D158: 0 | E158: 0 | F158: 0 | G158: 0 | H158: 0 | I158: 0 | J158: 0
C159: > 275 kV & < = 330 kV ; Capacitors | D159: 0 | E159: 0 | F159: 0 | G159: 0 | H159: 0 | I159: 0 | J159: 0
C160: > 330 kV & < = 500 kV ; Capacitors | D160: 0 | E160: 0 | F160: 0 | G160: 0 | H160: 0 | I160: 0 | J160: 0
C161: > 500 kV ; Capacitors | D161: 0 | E161: 0 | F161: 0 | G161: 0 | H161: 0 | I161: 0 | J161: 0
C162: < = 33 kV; Oil Filled Reactors | D162: 0 | E162: 0 | F162: 0 | G162: 0 | H162: 0 | I162: 0 | J162: 0
C163: > 33 kV & < = 66 kV ; Oil Filled Reactors | D163: 0 | E163: 0 | F163: 0 | G163: 0 | H163: 0 | I163: 0 | J163: 0
C164: > 66 kV & < = 132 kV ; Oil Filled Reactors | D164: 0 | E164: 0 | F164: 0 | G164: 0 | H164: 0 | I164: 0 | J164: 0
C165: > 132 kV & < = 275 kV ; Oil Filled Reactors | D165: 0 | E165: 0 | F165: 0 | G165: 0 | H165: 0 | I165: 0 | J165: 0
C166: > 275 kV & < = 330 kV ; Oil Filled Reactors | D166: 0 | E166: 1802.777055 | F166: 89303.47566 | G166: 686735.7945 | H166: 3584625.638 | I166: 3777604.172 | J166: 0
C167: > 330 kV & < = 500 kV ; Oil Filled Reactors | D167: 0 | E167: 0 | F167: 0 | G167: 0 | H167: 0 | I167: 0 | J167: 0
C168: > 500 kV ; Oil Filled Reactors | D168: 0 | E168: 0 | F168: 0 | G168: 0 | H168: 0 | I168: 0 | J168: 0
C169: Other | D169: 0 | E169: 13030.35718 | F169: 641482.2686 | G169: 1392072.679 | H169: 9378347.072 | I169: 185250.3851 | J169: 5692526.504
B170: SCADA, NETWORK CONTROL AND PROTECTION SYSTEMS BY: Function | C170: Communications Network Assets | D170: 2052242.761 | E170: 1035433.929 | F170: 6736700.054 | G170: 6261469.049 | H170: 4246270.157 | I170: 4167757.521 | J170: 5282827.864
C171: Control equipment / systems | D171: 3585912.163 | E171: 5397231.469 | F171: 4275093.995 | G171: 8238184.267 | H171: 7888196.137 | I171: 5220458.207 | J171: 4710131.843
C172: Infrastructure: protection and control | D172: 0 | E172: 0 | F172: 0 | G172: 0 | H172: 0 | I172: 0 | J172: 0
C173: Metering systems | D173: 188260.8159 | E173: 665292.9318 | F173: 2024387.491 | G173: 2583470.446 | H173: 2757297.319 | I173: 2212035.704 | J173: 2008741.456
C174: OPGW | D174: 23427790.77 | E174: 24101001.53 | F174: 2451875.954 | G174: 4024524.463 | H174: 10611817.48 | I174: 10501474.58 | J174: 11126111.62
C175: Protection schemes / systems | D175: 22384443.43 | E175: 19151259.58 | F175: 20475375.66 | G175: 26774325.65 | H175: 25621753.66 | I175: 20317252.44 | J175: 18412678.69
C176: SCADA | D176: 0 | E176: 0 | F176: 0 | G176: 2835927.828 | H176: 5329892.82 | I176: 5325701.537 | J176: 2292097.804
C177: IEC 61850 | D177: 0 | E177: 0 | F177: 0 | G177: 0 | H177: 361006.2225 | I177: 1946816.353 | J177: 1577711.105
C178: 415v Distribution Systems | D178: 394560.0074 | E178: 4279987.726 | F178: 801257.3602 | G178: 5306017.043 | H178: 816132.5008 | I178: 815605.7366 | J178: 3403551.788
B179: OTHER BY: NSP defined | C179: Steelwork Renewal | D179: 0 | E179: 0 | F179: 9131499.712 | G179: 9219121.099 | H179: 9260163.435 | I179: 9340131.6 | J179: 9432695.636
C180: Transmission Line Asbestos Removal | D180: 0 | E180: 0 | F180: 8472856.577 | G180: 8535563.279 | H180: 8548583.972 | I180: 8594015.329 | J180: 8651075.963
C181: Air Cored Reactors 33kV | D181: 0 | E181: 1635.193106 | F181: 59227.64857 | G181: 93704.81127 | H181: 1408446.289 | I181: 0 | J181: 0
C182: TL Silmalec Fitting | D182: 0 | E182: 0 | F182: 0 | G182: 0 | H182: 0 | I182: 60072.89493 | J182: 3866922.694
D183: 0 | E183: 0 | F183: 0 | G183: 0 | H183: 0 | I183: 0 | J183: 0
C184: Substations - Use of Non-conventional IT's | D184: 0 | E184: 0 | F184: 44453.93395 | G184: 274705.2982 | H184: 632180.9747 | I184: 1627.921359 | J184: 0
D185: 0 | E185: 0 | F185: 0 | G185: 0 | H185: 0 | I185: 0 | J185: 0
C186: Spares/Failure | D186: 315898.559 | E186: 0 | F186: 6463973.431 | G186: 6655515.126 | H186: 6508591.46 | I186: 6457847.219 | J186: 7148659.947
C187: Misc Fixed Assets | D187: 0 | E187: 0 | F187: 2020196.406 | G187: 2027119.841 | H187: 2019404.736 | I187: 2017816.731 | J187: 2018976.444
C188: 50V and 110V Batteries | D188: 643110.9097 | E188: 130128.1818 | F188: 512085.7539 | G188: 516325.3171 | H188: 517718.3198 | I188: 521159.8284 | J188: 525305.5962
C189: Replacement of 110V Chargers | D189: 0 | E189: 0 | F189: 439716.1421 | G189: 444189.9735 | H189: 446509.3659 | I189: 450753.9336 | J189: 455605.8348
C190: Replacement of 50V RPS | D190: 0 | E190: 0 | F190: 1704367.4 | G190: 1717593.411 | H190: 1721037.67 | I190: 1731123.592 | J190: 1743550.727
C191: Substation Based PCs | D191: 0 | E191: 0 | F191: 105389.205 | G191: 106683.0774 | H191: 107537.6507 | I191: 108897.8261 | J191: 110404.2564
C192: Substation Security Zone (SSZ) Condition | D192: 0 | E192: 0 | F192: 0 | G192: 0 | H192: 0 | I192: 3502967.647 | J192: 1251749.407
C193: MISC 330kV line renewal | D193: 10785.64952 | E193: 351907.353 | F193: 2401520.849 | G193: 257411.5117 | H193: 2114962.716 | I193: 107394.7052 | J193: 591599.1085
C194: Substation Rebuilds | D194: 34952244.1 | E194: 22287326.14 | F194: 8993435.595 | G194: 0 | H194: 0 | I194: 0 | J194: 0
C195: Building Refirbishment | D195: 40811.64919 | E195: 0 | F195: 0 | G195: 0 | H195: 0 | I195: 0 | J195: 0
C196: Other | D196: 17207179.28 | E196: 10756471.66 | F196: 656505.1728 | G196: 0 | H196: 0 | I196: 0 | J196: 0
C197: Metering Systems | D197: 0 | E197: 0 | F197: 0 | G197: 0 | H197: 0 | I197: 0 | J197: 0
C198: Infrastructure: Protection and Control | D198: 0 | E198: 0 | F198: 0 | G198: 0 | H198: 0 | I198: 0 | J198: 0
D199: 0 | E199: 0 | F199: 0 | G199: 0 | H199: 0 | I199: 0 | J199: 0
D200: 0 | E200: 0 | F200: 0 | G200: 0 | H200: 0 | I200: 0 | J200: 0
D201: 0 | E201: 0 | F201: 0 | G201: 0 | H201: 0 | I201: 0 | J201: 0
D202: 0 | E202: 0 | F202: 0 | G202: 0 | H202: 0 | I202: 0 | J202: 0
... 381 more rows

Sheet 2.2 Repex unlocked
B1: =(LOOKUP(dms_Model,dms_Model_List,dms_Worksheet_List)) -> REGULATORY REPORTING STATEMENT
B2: =INDEX(dms_TradingNameFull_List,MATCH(dms_TradingName,dms_TradingName_List)) -> TransGrid
B3: =IF(SUM(dms_SingleYear_Model)>0,CRY,CONCATENATE(FRCP_y1," to ",dms_MultiYear_FinalYear_Result)) -> 2018-19 to 2022-23
B4: 2.2 REPEX
B6: There is ONE table (with three sub-tables) on this worksheet. See the Instructions sheet on how to group or ungroup tables.
B8: 2.2.1 - REPLACEMENT EXPENDITURE, VOLUMES AND ASSET FAILURES BY ASSET CATEGORY
B9: EXPENDITURE
D10: EXPENDITURE
D11: =CONCATENATE("($0's. real ",dms_DollarReal,")") -> ($0's. real June 2018)
B12: ASSET GROUP | C12: ASSET CATEGORY | D12: =CRCP_y4 -> 2016-17 | E12: =CRCP_y5 -> 2017-18 | F12: =FRCP_y1 -> 2018-19 | G12: =FRCP_y2 -> 2019-20 | H12: =FRCP_y3 -> 2020-21 | I12: =FRCP_y4 -> 2021-22 | J12: =FRCP_y5 -> 2022-23
B13: TRANSMISSION TOWERS Highest operating voltage; Circuit configuration | C13: < = 33 kV; Single Circuit | D13: 0 | E13: 0 | F13: 0 | G13: 0 | H13: 0 | I13: 0 | J13: 0
C14: > 33 kV & < = 66 kV ; Single Circuit | D14: 0 | E14: 0 | F14: 0 | G14: 0 | H14: 0 | I14: 0 | J14: 0
C15: > 66 kV & < = 132 kV ; Single Circuit | D15: 1434998.169 | E15: 1112374.079 | F15: 12373103.62 | G15: 12979815.43 | H15: 13252483.81 | I15: 13051522.4 | J15: 13242396.09
C16: > 132 kV & < = 275 kV ; Single Circuit | D16: 0 | E16: 0 | F16: 0 | G16: 0 | H16: 0 | I16: 0 | J16: 0
C17: > 275 kV & < = 330 kV ; Single Circuit | D17: 0 | E17: 0 | F17: 329702.1314 | G17: 7512696.129 | H17: 24471872.69 | I17: 18541967.22 | J17: 19160564.29
C18: > 330 kV & < = 500 kV ; Single Circuit | D18: 0 | E18: 0 | F18: 0 | G18: 0 | H18: 0 | I18: 0 | J18: 0
C19: > 500 kV ; Single Circuit | D19: 0 | E19: 0 | F19: 0 | G19: 0 | H19: 0 | I19: 0 | J19: 0
C20: < = 33 kV; Multiple Circuit | D20: 0 | E20: 0 | F20: 0 | G20: 0 | H20: 0 | I20: 0 | J20: 0
C21: > 33 kV & < = 66 kV ; Multiple Circuit | D21: 0 | E21: 0 | F21: 0 | G21: 0 | H21: 0 | I21: 0 | J21: 0
C22: > 66 kV & < = 132 kV ; Multiple Circuit | D22: 0 | E22: 0 | F22: 0 | G22: 0 | H22: 0 | I22: 0 | J22: 0
C23: > 132 kV & < = 275 kV ; Multiple Circuit | D23: 0 | E23: 0 | F23: 0 | G23: 0 | H23: 0 | I23: 0 | J23: 0
C24: > 275 kV & < = 330 kV ; Multiple Circuit | D24: 0 | E24: 0 | F24: 0 | G24: 0 | H24: 0 | I24: 0 | J24: 0
C25: > 330 kV & < = 500 kV ; Multiple Circuit | D25: 0 | E25: 0 | F25: 0 | G25: 0 | H25: 0 | I25: 0 | J25: 0
C26: > 500 kV ; Multiple Circuit | D26: 0 | E26: 0 | F26: 0 | G26: 0 | H26: 0 | I26: 0 | J26: 0
C27: Other | D27: 0 | E27: 103861.1444 | F27: 3056554.111 | G27: 11343489.62 | H27: 14353561.75 | I27: 14193187.86 | J27: 15833579.51
B28: TRANSMISSION TOWER SUPPORT STRUCTURES BY: Highest operating voltage; Circuit configuration | C28: < = 33 kV; Single Circuit | D28: 0 | E28: 0 | F28: 0 | G28: 0 | H28: 0 | I28: 0 | J28: 0
C29: > 33 kV & < = 66 kV ; Single Circuit | D29: 0 | E29: 0 | F29: 0 | G29: 0 | H29: 0 | I29: 0 | J29: 0
C30: > 66 kV & < = 132 kV ; Single Circuit | D30: 26013513.31 | E30: 20165013.82 | F30: 0 | G30: 0 | H30: 0 | I30: 0 | J30: 0
C31: > 132 kV & < = 275 kV ; Single Circuit | D31: 0 | E31: 0 | F31: 0 | G31: 0 | H31: 0 | I31: 0 | J31: 0
C32: > 275 kV & < = 330 kV ; Single Circuit | D32: 27814.16968 | E32: 895891.976 | F32: 5962075.386 | G32: 7393661.404 | H32: 10695205.86 | I32: 9530101.001 | J32: 10904128.21
C33: > 330 kV & < = 500 kV ; Single Circuit | D33: 0 | E33: 0 | F33: 0 | G33: 0 | H33: 0 | I33: 0 | J33: 0
C34: > 500 kV ; Single Circuit | D34: 0 | E34: 0 | F34: 0 | G34: 0 | H34: 0 | I34: 0 | J34: 0
C35: < = 33 kV; Multiple Circuit | D35: 0 | E35: 0 | F35: 0 | G35: 0 | H35: 0 | I35: 0 | J35: 0
C36: > 33 kV & < = 66 kV ; Multiple Circuit | D36: 0 | E36: 0 | F36: 0 | G36: 0 | H36: 0 | I36: 0 | J36: 0
C37: > 66 kV & < = 132 kV ; Multiple Circuit | D37: 433836.6556 | E37: 336299.14 | F37: 0 | G37: 0 | H37: 0 | I37: 0 | J37: 0
C38: > 132 kV & < = 275 kV ; Multiple Circuit | D38: 0 | E38: 0 | F38: 0 | G38: 0 | H38: 0 | I38: 0 | J38: 0
C39: > 275 kV & < = 330 kV ; Multiple Circuit | D39: 3663.910175 | E39: 100100.7903 | F39: 586445.4084 | G39: 0 | H39: 30069.08876 | I39: 509373.1678 | J39: 3832596.612
C40: > 330 kV & < = 500 kV ; Multiple Circuit | D40: 0 | E40: 0 | F40: 0 | G40: 0 | H40: 0 | I40: 0 | J40: 0
C41: > 500 kV ; Multiple Circuit | D41: 0 | E41: 0 | F41: 0 | G41: 0 | H41: 0 | I41: 0 | J41: 0
C42: Other | D42: 0 | E42: 0 | F42: 0 | G42: 0 | H42: 0 | I42: 0 | J42: 0
B43: CONDUCTORS BY: Voltage; Maximum continuous rating | C43: < = 33 kV ; < = 100 MVA | D43: 0 | E43: 0 | F43: 0 | G43: 0 | H43: 0 | I43: 0 | J43: 0
C44: < = 33 kV ; > 100 MVA & < = 400 MVA | D44: 0 | E44: 0 | F44: 0 | G44: 0 | H44: 0 | I44: 0 | J44: 0
C45: < = 33 kV ; > 400 MVA | D45: 0 | E45: 0 | F45: 0 | G45: 0 | H45: 0 | I45: 0 | J45: 0
C46: > 33 kV & < = 66 kV ; < = 100 MVA | D46: 0 | E46: 0 | F46: 0 | G46: 0 | H46: 0 | I46: 0 | J46: 0
C47: > 33 kV & < = 66 kV ; > 100 MVA & < = 400 MVA | D47: 0 | E47: 0 | F47: 0 | G47: 0 | H47: 0 | I47: 0 | J47: 0
C48: > 33 kV & < = 66 kV ; > 400 MVA | D48: 0 | E48: 0 | F48: 0 | G48: 0 | H48: 0 | I48: 0 | J48: 0
C49: > 66 kV & < = 132 kV ; < = 100 MVA | D49: 0 | E49: 0 | F49: 0 | G49: 0 | H49: 0 | I49: 0 | J49: 0
C50: > 66 kV & < = 132 kV ; > 100 MVA & < = 400 MVA | D50: 0 | E50: 0 | F50: 0 | G50: 0 | H50: 0 | I50: 0 | J50: 0
C51: > 66 kV & < = 132 kV ; > 400 MVA | D51: 0 | E51: 0 | F51: 0 | G51: 0 | H51: 0 | I51: 0 | J51: 0
C52: > 132 kV & < = 275 kV ; < = 200 MVA | D52: 0 | E52: 0 | F52: 0 | G52: 0 | H52: 0 | I52: 0 | J52: 0
C53: > 132 kV & < = 275 kV ; > 200 MVA & < = 600 MVA | D53: 0 | E53: 0 | F53: 0 | G53: 0 | H53: 0 | I53: 0 | J53: 0
C54: > 132 kV & < = 275 kV ; > 600 MVA | D54: 0 | E54: 0 | F54: 0 | G54: 0 | H54: 0 | I54: 0 | J54: 0
C55: > 275 kV & < = 330 kV ; < = 800 MVA | D55: 0 | E55: 0 | F55: 0 | G55: 0 | H55: 0 | I55: 0 | J55: 0
C56: > 275 kV & < = 330 kV ; > 800 MVA & < = 1200 MVA | D56: 0 | E56: 0 | F56: 0 | G56: 0 | H56: 0 | I56: 0 | J56: 0
C57: > 275 kV & < = 330 kV ; > 1200 MVA | D57: 0 | E57: 0 | F57: 70924.18016 | G57: 1604364.608 | H57: 5205287.213 | I57: 3882874.596 | J57: 0
C58: > 330 kV & < = 500 kV ; < = 1000 MVA | D58: 0 | E58: 0 | F58: 0 | G58: 0 | H58: 0 | I58: 0 | J58: 0
C59: > 330 kV & < = 500 kV ; > 1000 MVA & < = 1500 MVA | D59: 0 | E59: 0 | F59: 0 | G59: 0 | H59: 0 | I59: 0 | J59: 0
C60: > 330 kV & < = 500 kV ; > 1500 MVA | D60: 0 | E60: 0 | F60: 0 | G60: 0 | H60: 0 | I60: 0 | J60: 0
C61: > 500 kV ; < = 2000 MVA | D61: 0 | E61: 0 | F61: 0 | G61: 0 | H61: 0 | I61: 0 | J61: 0
C62: > 500 kV ; > 2000 MVA & < = 3000 MVA | D62: 0 | E62: 0 | F62: 0 | G62: 0 | H62: 0 | I62: 0 | J62: 0
C63: > 500 kV ; > 3000 MVA | D63: 0 | E63: 0 | F63: 0 | G63: 0 | H63: 0 | I63: 0 | J63: 0
C64: Other | D64: 0 | E64: 0 | F64: 0 | G64: 0 | H64: 0 | I64: 0 | J64: 0
B65: TRANSMISSION CABLES BY: Highest operating voltage; Insulation type | C65: < = 33 kV; Oil Filled | D65: 0 | E65: 0 | F65: 0 | G65: 0 | H65: 0 | I65: 0 | J65: 0
C66: > 33 kV & < = 66 kV ; Oil Filled | D66: 0 | E66: 0 | F66: 0 | G66: 0 | H66: 0 | I66: 0 | J66: 0
C67: > 66 kV & < = 132 kV ; Oil Filled | D67: 0 | E67: 0 | F67: 0 | G67: 0 | H67: 0 | I67: 0 | J67: 0
C68: > 132 kV & < = 275 kV ; Oil Filled | D68: 0 | E68: 0 | F68: 0 | G68: 0 | H68: 0 | I68: 0 | J68: 0
C69: > 275 kV & < = 330 kV ; Oil Filled | D69: 0 | E69: 0 | F69: 0 | G69: 0 | H69: 0 | I69: 0 | J69: 0
C70: > 330 kV & < = 500 kV ; Oil Filled | D70: 0 | E70: 0 | F70: 0 | G70: 0 | H70: 0 | I70: 0 | J70: 0
C71: > 500 kV ; Oil Filled | D71: 0 | E71: 0 | F71: 0 | G71: 0 | H71: 0 | I71: 0 | J71: 0
C72: < = 33 kV; XLPE Insulated | D72: 0 | E72: 0 | F72: 0 | G72: 0 | H72: 0 | I72: 0 | J72: 0
C73: > 33 kV & < = 66 kV ; XLPE Insulated | D73: 0 | E73: 0 | F73: 0 | G73: 0 | H73: 0 | I73: 0 | J73: 0
C74: > 66 kV & < = 132 kV ; XLPE Insulated | D74: 0 | E74: 0 | F74: 0 | G74: 0 | H74: 0 | I74: 0 | J74: 0
C75: > 132 kV & < = 275 kV ; XLPE Insulated | D75: 0 | E75: 0 | F75: 0 | G75: 0 | H75: 0 | I75: 0 | J75: 0
C76: > 275 kV & < = 330 kV ; XLPE Insulated | D76: 0 | E76: 0 | F76: 0 | G76: 0 | H76: 0 | I76: 0 | J76: 0
C77: > 330 kV & < = 500 kV ; XLPE Insulated | D77: 0 | E77: 0 | F77: 0 | G77: 0 | H77: 0 | I77: 0 | J77: 0
C78: > 500 kV ; XLPE Insulated | D78: 0 | E78: 0 | F78: 0 | G78: 0 | H78: 0 | I78: 0 | J78: 0
C79: < = 33 kV; Other Insulated | D79: 0 | E79: 0 | F79: 0 | G79: 0 | H79: 0 | I79: 0 | J79: 0
C80: > 33 kV & < = 66 kV ; Other Insulated | D80: 0 | E80: 0 | F80: 0 | G80: 0 | H80: 0 | I80: 0 | J80: 0
C81: > 66 kV & < = 132 kV ; Other Insulated | D81: 0 | E81: 0 | F81: 0 | G81: 0 | H81: 0 | I81: 0 | J81: 0
C82: > 132 kV & < = 275 kV ; Other Insulated | D82: 0 | E82: 0 | F82: 0 | G82: 0 | H82: 0 | I82: 0 | J82: 0
C83: > 275 kV & < = 330 kV ; Other Insulated | D83: 0 | E83: 0 | F83: 0 | G83: 0 | H83: 0 | I83: 0 | J83: 0
C84: > 330 kV & < = 500 kV ; Other Insulated | D84: 0 | E84: 0 | F84: 0 | G84: 0 | H84: 0 | I84: 0 | J84: 0
C85: > 500 kV ; Other Insulated | D85: 0 | E85: 0 | F85: 0 | G85: 0 | H85: 0 | I85: 0 | J85: 0
C86: Other | D86: 0 | E86: 12.52686145 | F86: 4991.444392 | G86: 40327.35656 | H86: 164975.3875 | I86: 18453.50789 | J86: 0
B87: SUBSTATION SWITCHBAYS BY: Highest operating voltage; Switch type | C87: < = 33 kV; Air Insulated circuit Breaker | D87: 894935.7053 | E87: 1726682.587 | F87: 50300.22642 | G87: 52875.78648 | H87: 54136.43416 | I87: 53483.08389 | J87: 54433.24271
C88: > 33 kV & < = 66 kV ; Air Insulated circuit Breaker | D88: 1988746.012 | E88: 3837072.415 | F88: 3168914.264 | G88: 3331174.549 | H88: 3410595.352 | I88: 3369434.285 | J88: 3429294.291
C89: > 66 kV & < = 132 kV ; Air Insulated circuit Breaker | D89: 298311.9018 | E89: 575560.8622 | F89: 3923417.661 | G89: 4124311.345 | H89: 4222641.865 | I89: 4171680.543 | J89: 4245792.932
C90: > 132 kV & < = 275 kV ; Air Insulated circuit Breaker | D90: 0 | E90: 0 | F90: 0 | G90: 0 | H90: 0 | I90: 0 | J90: 0
C91: > 275 kV & < = 330 kV ; Air Insulated circuit Breaker | D91: 1590996.809 | E91: 3069657.932 | F91: 4728221.284 | G91: 4970323.929 | H91: 5088824.811 | I91: 5027409.886 | J91: 5116724.815
C92: > 330 kV & < = 500 kV ; Air Insulated circuit Breaker | D92: 497186.5029 | E92: 959268.1037 | F92: 0 | G92: 0 | H92: 0 | I92: 0 | J92: 0
C93: > 500 kV ; Air Insulated circuit Breaker | D93: 0 | E93: 0 | F93: 0 | G93: 0 | H93: 0 | I93: 0 | J93: 0
C94: < = 33 kV; Air Insulated Isolators / Earth Switch | D94: 0 | E94: 0 | F94: 0 | G94: 0 | H94: 0 | I94: 0 | J94: 0
C95: > 33 kV & < = 66 kV ; Air Insulated Isolators / Earth Switch | D95: 462223.271 | E95: 0 | F95: 0 | G95: 0 | H95: 0 | I95: 0 | J95: 0
C96: > 66 kV & < = 132 kV ; Air Insulated Isolators / Earth Switch | D96: 368334.1691 | E96: 0 | F96: 863915.7186 | G96: 909475.0779 | H96: 932973.1072 | I96: 923736.6998 | J96: 942169.297
C97: > 132 kV & < = 275 kV ; Air Insulated Isolators / Earth Switch | D97: 0 | E97: 0 | F97: 0 | G97: 0 | H97: 0 | I97: 0 | J97: 0
C98: > 275 kV & < = 330 kV ; Air Insulated Isolators / Earth Switch | D98: 166111.488 | E98: 0 | F98: 1014161.931 | G98: 1067644.657 | H98: 1095229.3 | I98: 1084386.561 | J98: 1106024.827
C99: > 330 kV & < = 500 kV ; Air Insulated Isolators / Earth Switch | D99: 0 | E99: 0 | F99: 0 | G99: 0 | H99: 0 | I99: 0 | J99: 0
C100: > 500 kV ; Air Insulated Isolators / Earth Switch | D100: 0 | E100: 0 | F100: 0 | G100: 0 | H100: 0 | I100: 0 | J100: 0
C101: < = 33 kV; VT | D101: 0 | E101: 0 | F101: 533479.342 | G101: 561841.4166 | H101: 576670.5615 | I101: 571309.7343 | J101: 583057.0614
C102: > 33 kV & < = 66 kV ; VT | D102: 857967.9849 | E102: 927749.302 | F102: 1176792.666 | G102: 1239356.066 | H102: 1272067.415 | I102: 1260242.061 | J102: 1286155.283
C103: > 66 kV & < = 132 kV ; VT | D103: 160868.9972 | E103: 173952.9941 | F103: 721766.1686 | G103: 760138.3871 | H103: 780201.3479 | I103: 772948.4641 | J103: 788841.9066
C104: > 132 kV & < = 275 kV ; VT | D104: 0 | E104: 0 | F104: 78452.84441 | G104: 82623.73774 | H104: 84804.49434 | I104: 84016.13741 | J104: 85743.6855
C105: > 275 kV & < = 330 kV ; VT | D105: 402172.4929 | E105: 434882.4853 | F105: 455026.4976 | G105: 479217.6788 | H105: 491866.0672 | I105: 487293.597 | J105: 497313.3759
C106: > 330 kV & < = 500 kV ; VT | D106: 53622.99906 | E106: 57984.33137 | F106: 94143.41333 | G106: 99148.4853 | H106: 101765.3932 | I106: 100819.3649 | J106: 102892.4226
C107: > 500 kV ; VT | D107: 0 | E107: 0 | F107: 0 | G107: 0 | H107: 0 | I107: 0 | J107: 0
C108: < = 33 kV; CT | D108: 71497.33208 | E108: 77312.44183 | F108: 36123.01044 | G108: 37995.4832 | H108: 38932.67044 | I108: 38497.7193 | J108: 39216.54133
C109: > 33 kV & < = 66 kV ; CT | D109: 294926.4948 | E109: 318913.8225 | F109: 650214.1879 | G109: 683918.6975 | H109: 700788.0679 | I109: 692958.9474 | J109: 705897.7439
C110: > 66 kV & < = 132 kV ; CT | D110: 294926.4948 | E110: 318913.8225 | F110: 1806150.522 | G110: 1899774.16 | H110: 1946633.522 | I110: 1924885.965 | J110: 1960827.066
C111: > 132 kV & < = 275 kV ; CT | D111: 53622.99906 | E111: 57984.33137 | F111: 216738.0626 | G111: 227972.8992 | H111: 233596.0226 | I111: 230986.3158 | J111: 235299.248
C112: > 275 kV & < = 330 kV ; CT | D112: 884779.4844 | E112: 956741.4676 | F112: 963280.2784 | G112: 1013212.885 | H112: 1038204.545 | I112: 1026605.848 | J112: 1045774.435
C113: > 330 kV & < = 500 kV ; CT | D113: 0 | E113: 0 | F113: 0 | G113: 0 | H113: 0 | I113: 0 | J113: 0
C114: > 500 kV ; CT | D114: 0 | E114: 0 | F114: 0 | G114: 0 | H114: 0 | I114: 0 | J114: 0
C115: < = 33 kV; GIS Module | D115: 80434.49858 | E115: 86976.49706 | F115: 0 | G115: 0 | H115: 0 | I115: 0 | J115: 0
C116: > 33 kV & < = 66 kV ; GIS Module | D116: 321737.9943 | E116: 347905.9882 | F116: 0 | G116: 0 | H116: 0 | I116: 0 | J116: 0
C117: > 66 kV & < = 132 kV ; GIS Module | D117: 0 | E117: 0 | F117: 0 | G117: 0 | H117: 0 | I117: 0 | J117: 0
C118: > 132 kV & < = 275 kV ; GIS Module | D118: 0 | E118: 0 | F118: 0 | G118: 0 | H118: 0 | I118: 0 | J118: 0
C119: > 275 kV & < = 330 kV ; GIS Module | D119: 0 | E119: 0 | F119: 0 | G119: 0 | H119: 0 | I119: 0 | J119: 0
C120: > 330 kV & < = 500 kV ; GIS Module | D120: 0 | E120: 0 | F120: 0 | G120: 0 | H120: 0 | I120: 0 | J120: 0
C121: > 500 kV ; GIS Module | D121: 0 | E121: 0 | F121: 0 | G121: 0 | H121: 0 | I121: 0 | J121: 0
C122: Other | D122: 89371.66509 | E122: 96640.55229 | F122: 0 | G122: 0 | H122: 0 | I122: 0 | J122: 0
B123: SUBSTATION POWER TRANSFORMERS BY: Highest operating voltage; Ampere rating | C123: < = 33 kV ; < = 10 MVA | D123: 0 | E123: 0 | F123: 0 | G123: 0 | H123: 0 | I123: 0 | J123: 0
C124: < = 33 kV ; > 10 MVA & < = 30 MVA | D124: 0 | E124: 0 | F124: 0 | G124: 0 | H124: 0 | I124: 0 | J124: 0
C125: < = 33 kV ; > 30 MVA | D125: 0 | E125: 0 | F125: 0 | G125: 0 | H125: 0 | I125: 0 | J125: 0
C126: > 33 kV & < = 66 kV ; < = 10 MVA | D126: 0 | E126: 0 | F126: 0 | G126: 0 | H126: 0 | I126: 0 | J126: 0
C127: > 33 kV & < = 66 kV ; > 10 MVA & < = 30 MVA | D127: 0 | E127: 0 | F127: 0 | G127: 0 | H127: 0 | I127: 0 | J127: 0
C128: > 33 kV & < = 66 kV ; > 30 MVA | D128: 0 | E128: 0 | F128: 0 | G128: 0 | H128: 0 | I128: 0 | J128: 0
C129: > 66 kV & < = 132 kV ; < = 30 MVA | D129: 0 | E129: 0 | F129: 0 | G129: 0 | H129: 0 | I129: 0 | J129: 0
C130: > 66 kV & < = 132 kV ; > 30 MVA & < = 60 MVA | D130: 27701.3116 | E130: 38271.13995 | F130: 316560.6 | G130: 2888422.25 | H130: 4353025.625 | I130: 559352.7411 | J130: 0
C131: > 66 kV & < = 132 kV ; > 60 MVA | D131: 0 | E131: 0 | F131: 0 | G131: 0 | H131: 0 | I131: 0 | J131: 0
C132: > 132 kV & < = 220 kV ; < = 50 MVA | D132: 0 | E132: 0 | F132: 0 | G132: 0 | H132: 0 | I132: 0 | J132: 0
C133: > 132 kV & < = 220 kV ; > 50 MVA & < = 100 MVA | D133: 0 | E133: 0 | F133: 0 | G133: 0 | H133: 0 | I133: 0 | J133: 0
C134: > 132 kV & < = 220 kV ; > 100 MVA | D134: 0 | E134: 0 | F134: 0 | G134: 0 | H134: 0 | I134: 0 | J134: 0
C135: > 220 kV & < = 275 kV ; < = 50 MVA | D135: 0 | E135: 0 | F135: 0 | G135: 0 | H135: 0 | I135: 0 | J135: 0
C136: > 220 kV & < = 275 kV ; > 50 MVA & < = 100 MVA | D136: 0 | E136: 0 | F136: 0 | G136: 0 | H136: 0 | I136: 0 | J136: 0
C137: > 220 kV & < = 275 kV ; > 100 MVA | D137: 0 | E137: 0 | F137: 0 | G137: 0 | H137: 0 | I137: 0 | J137: 0
C138: > 275 kV & < = 330 kV ; < = 100 MVA | D138: 0 | E138: 0 | F138: 0 | G138: 0 | H138: 0 | I138: 0 | J138: 0
C139: > 275 kV & < = 330 kV ; > 100 MVA & < = 250 MVA | D139: 0 | E139: 0 | F139: 329470.3547 | G139: 345262.1489 | H139: 352015.4757 | I139: 346118.866 | J139: 350620.7298
C140: > 275 kV & < = 330 kV ; > 250 MVA | D140: 20833.39371 | E140: 1339055.505 | F140: 545298.6602 | G140: 12818599.97 | H140: 0 | I140: 0 | J140: 0
C141: > 330 kV & < = 500 kV ; < = 150 MVA | D141: 0 | E141: 0 | F141: 0 | G141: 0 | H141: 0 | I141: 0 | J141: 0
C142: > 330 kV & < = 500 kV ; > 150 MVA & < = 300 MVA | D142: 0 | E142: 0 | F142: 0 | G142: 0 | H142: 0 | I142: 0 | J142: 0
C143: > 330 kV & < = 500 kV ; > 300 MVA | D143: 0 | E143: 0 | F143: 0 | G143: 0 | H143: 0 | I143: 0 | J143: 0
C144: > 500 kV ; < = 1000 MVA | D144: 0 | E144: 0 | F144: 0 | G144: 0 | H144: 0 | I144: 0 | J144: 0
C145: > 500 kV ; > 1000 MVA & < = 1500 MVA | D145: 0 | E145: 0 | F145: 0 | G145: 0 | H145: 0 | I145: 0 | J145: 0
C146: > 500 kV ; > 1500 MVA | D146: 0 | E146: 0 | F146: 0 | G146: 0 | H146: 0 | I146: 0 | J146: 0
C147: Other | D147: 4041731.361 | E147: 3257454.169 | F147: 3169684.065 | G147: 3319798.306 | H147: 3382242.48 | I147: 3322797.388 | J147: 3363215.501
B148: SUBSTATION REACTIVE PLANT BY: Highest operating voltage; Function | C148: < = 33 kV; SVCS | D148: 0 | E148: 0 | F148: 0 | G148: 0 | H148: 0 | I148: 0 | J148: 0
C149: > 33 kV & < = 66 kV ; SVCS | D149: 0 | E149: 0 | F149: 0 | G149: 0 | H149: 0 | I149: 0 | J149: 0
C150: > 66 kV & < = 132 kV ; SVCS | D150: 0 | E150: 0 | F150: 0 | G150: 0 | H150: 0 | I150: 0 | J150: 0
C151: > 132 kV & < = 275 kV ; SVCS | D151: 0 | E151: 0 | F151: 0 | G151: 0 | H151: 0 | I151: 0 | J151: 0
C152: > 275 kV & < = 330 kV ; SVCS | D152: 0 | E152: 0 | F152: 0 | G152: 0 | H152: 0 | I152: 0 | J152: 0
C153: > 330 kV & < = 500 kV ; SVCS | D153: 0 | E153: 0 | F153: 0 | G153: 0 | H153: 0 | I153: 0 | J153: 0
C154: > 500 kV ; SVCS | D154: 0 | E154: 0 | F154: 0 | G154: 0 | H154: 0 | I154: 0 | J154: 0
C155: < = 33 kV; Capacitors | D155: 0 | E155: 0 | F155: 0 | G155: 0 | H155: 0 | I155: 0 | J155: 0
C156: > 33 kV & < = 66 kV ; Capacitors | D156: 0 | E156: 0 | F156: 0 | G156: 0 | H156: 0 | I156: 0 | J156: 0
C157: > 66 kV & < = 132 kV ; Capacitors | D157: 0 | E157: 0 | F157: 0 | G157: 0 | H157: 0 | I157: 0 | J157: 0
C158: > 132 kV & < = 275 kV ; Capacitors | D158: 0 | E158: 0 | F158: 0 | G158: 0 | H158: 0 | I158: 0 | J158: 0
C159: > 275 kV & < = 330 kV ; Capacitors | D159: 0 | E159: 0 | F159: 0 | G159: 0 | H159: 0 | I159: 0 | J159: 0
C160: > 330 kV & < = 500 kV ; Capacitors | D160: 0 | E160: 0 | F160: 0 | G160: 0 | H160: 0 | I160: 0 | J160: 0
C161: > 500 kV ; Capacitors | D161: 0 | E161: 0 | F161: 0 | G161: 0 | H161: 0 | I161: 0 | J161: 0
C162: < = 33 kV; Oil Filled Reactors | D162: 0 | E162: 0 | F162: 0 | G162: 0 | H162: 0 | I162: 0 | J162: 0
C163: > 33 kV & < = 66 kV ; Oil Filled Reactors | D163: 0 | E163: 0 | F163: 0 | G163: 0 | H163: 0 | I163: 0 | J163: 0
C164: > 66 kV & < = 132 kV ; Oil Filled Reactors | D164: 0 | E164: 0 | F164: 0 | G164: 0 | H164: 0 | I164: 0 | J164: 0
C165: > 132 kV & < = 275 kV ; Oil Filled Reactors | D165: 0 | E165: 0 | F165: 0 | G165: 0 | H165: 0 | I165: 0 | J165: 0
C166: > 275 kV & < = 330 kV ; Oil Filled Reactors | D166: 0 | E166: 1550.326899 | F166: 74827.26294 | G166: 599443.9124 | H166: 3191620.88 | I166: 3297010.258 | J166: 0
C167: > 330 kV & < = 500 kV ; Oil Filled Reactors | D167: 0 | E167: 0 | F167: 0 | G167: 0 | H167: 0 | I167: 0 | J167: 0
C168: > 500 kV ; Oil Filled Reactors | D168: 0 | E168: 0 | F168: 0 | G168: 0 | H168: 0 | I168: 0 | J168: 0
C169: Other | D169: 0 | E169: 11205.66362 | F169: 537497.1358 | G169: 1215124.506 | H169: 8350140.672 | I169: 161682.4823 | J169: 5010848.315
B170: SCADA, NETWORK CONTROL AND PROTECTION SYSTEMS BY: Function | C170: SCADA | D170: 0 | E170: 0 | F170: 0 | G170: 2475449.345 | H170: 4745543.588 | I170: 4648155.762 | J170: 2017619.841
C171: Control equipment / systems | D171: 3077134.552 | E171: 4641435.339 | F171: 3582095.546 | G171: 7191017.925 | H171: 7023364.234 | I171: 4556301.686 | J171: 4146095.094
C172: IEC 61850 | D172: 0 | E172: 0 | F172: 0 | G172: 0 | H172: 321426.8696 | I172: 1699138.711 | J172: 1388780.715
C173: Protection schemes / systems | D173: 19208486.21 | E173: 16469431.32 | F173: 17156289.91 | G173: 23371006.22 | H173: 22812681.78 | I173: 17732453.34 | J173: 16207766.43
C174: Infrastructure for protection and control | D174: 0 | E174: 0 | F174: 0 | G174: 0 | H174: 0 | I174: 0 | J174: 0
C175: - | D175: 0 | E175: 0 | F175: 0 | G175: 0 | H175: 0 | I175: 0 | J175: 0
B176: OTHER BY: NSP defined | C176: Metering systems | D176: 161549.9307 | E176: 572129.2744 | F176: 1696231.574 | G176: 2255082.15 | H176: 2454997.7 | I176: 1930616.357 | J176: 1768195.323
C177: Communications Network Assets | D177: 1761065.755 | E177: 890437.9325 | F177: 5644671.975 | G177: 5465565.556 | H177: 3780725.204 | I177: 3637527.564 | J177: 4650210.953
C178: OPGW | D178: 20103800.98 | E178: 20726040.9 | F178: 2054423.586 | G178: 3512961.912 | H178: 9448378.068 | I178: 9165457.211 | J178: 9793763.392
C179: 415v Distribution Systems | D179: 338578.91 | E179: 3680643.752 | F179: 671372.4716 | G179: 4631562.3 | H179: 726654.8291 | I179: 711842.8394 | J179: 2995977.573
C180: Steelwork Renewal | D180: 0 | E180: 0 | F180: 7651271.408 | G180: 8047266.597 | H180: 8244914.241 | I180: 8151862.474 | J180: 8303133.415
C181: Transmission Line Asbestos Removal | D181: 0 | E181: 0 | F181: 7099395.206 | G181: 7450596.703 | H181: 7611349.651 | I181: 7500668.52 | J181: 7615112.443
C182: Air Cored Reactors 33kV | D182: 0 | E182: 1406.210409 | F182: 49626.76761 | G182: 81793.87055 | H182: 1254029.58 | I182: 0 | J182: 0
C183: TL Silmalec Fitting | D183: 0 | E183: 0 | F183: 0 | G183: 0 | H183: 0 | I183: 52430.30815 | J183: 3403859.965
C184: Substations - Use of Non-conventional IT's | D184: 0 | E184: 0 | F184: 37247.89186 | G184: 239787.1496 | H184: 562871.0506 | I184: 1420.814139 | J184: 0
C185: Spares/Failure | D185: 271078.1321 | E185: 0 | F185: 5416154.701 | G185: 5809523.922 | H185: 5795014.181 | I185: 5636267.738 | J185: 6292610.254
C186: Misc Fixed Assets | D186: 0 | E186: 0 | F186: 1692719.869 | G186: 1769449.995 | H186: 1798004.861 | I186: 1761106.288 | J186: 1777204.674
C187: 50V and 110V Batteries | D187: 551864.8286 | E187: 111905.8067 | F187: 429075.969 | G187: 450694.5329 | H187: 460957.647 | I187: 454856.894 | J187: 462400.4226
C188: Replacement of 110V Chargers | D188: 0 | E188: 0 | F188: 368437.5679 | G188: 387728.4069 | H188: 397555.7727 | I188: 393408.1696 | J188: 401047.1849
C189: Replacement of 50V RPS | D189: 0 | E189: 0 | F189: 1428087.167 | G189: 1499267.874 | H189: 1532349.628 | I189: 1510886.79 | J189: 1534761.097
C190: Substation Based PCs | D190: 0 | E190: 0 | F190: 88305.47407 | G190: 93122.45238 | H190: 95747.63061 | I190: 95043.63965 | J190: 97183.38273
C191: Substation Security Zone (SSZ) Condition | D191: 0 | E191: 0 | F191: 0 | G191: 0 | H191: 0 | I191: 3057313.508 | J191: 1101852.825
C192: MISC 330kV line renewal | D192: 9255.356321 | E192: 302628.3445 | F192: 2012231.11 | G192: 224691.5989 | H192: 1883086.226 | I192: 93731.74864 | J192: 520755.3085
C193: Substation Rebuilds | D193: 29993137.9 | E193: 19166341.81 | F193: 7535587.669 | G193: 0 | H193: 0 | I193: 0 | J193: 0
C194: Building Refirbishment | D194: 35021.19688 | E194: 0 | F194: 0 | G194: 0 | H194: 0 | I194: 0 | J194: 0
C195: Other | D195: 14765784.41 | E195: 9250199.468 | F195: 550084.8071 | G195: 0 | H195: 0 | I195: 0 | J195: 0
C196: Security and Compliance | D196: 12086478 | E196: 23444948 | F196: 6167099 | G196: 6834983 | H196: 9775673 | I196: 10306717 | J196: 14134717
C197: NCIPAP | D197: 6724837 | E197: 2982667 | F197: 0 | G197: 0 | H197: 0 | I197: 0 | J197: 0
C198: Network Other | D198: 18407 | E198: 0 | F198: 0 | G198: 0 | H198: 0 | I198: 0 | J198: 0
C199: - | D199: 0 | E199: 0 | F199: 0 | G199: 0 | H199: 0 | I199: 0 | J199: 0
C200: - | D200: 0 | E200: 0 | F200: 0 | G200: 0 | H200: 0 | I200: 0 | J200: 0
C201: - | D201: 0 | E201: 0 | F201: 0 | G201: 0 | H201: 0 | I201: 0 | J201: 0
B205: ASSET REPLACEMENTS
... 385 more rows

Sheet 2.3 Augex (a)
B1: =(LOOKUP(dms_Model,dms_Model_List,dms_Worksheet_List)) -> REGULATORY REPORTING STATEMENT
B2: =INDEX(dms_TradingNameFull_List,MATCH(dms_TradingName,dms_TradingName_List)) -> TransGrid
B3: =IF(SUM(dms_SingleYear_Model)>0,CRY,CONCATENATE(FRCP_y1," to ",dms_MultiYear_FinalYear_Result)) -> 2018-19 to 2022-23
B4: 2.3 AUGEX PROJECTS
B6: There are TWO tables on this worksheet - each has been 'grouped' for easy navigation. Both ROWS and COLUMNS have been grouped. See the Instructions sheet on how to group or ungroup tables.
B8: NOTE: TNSP MUST PROVIDE EXPENDITURE INFORMATION ON A PROJECT CLOSE BASIS.
B9: 2.3.1 - AUGEX ASSET DATA - SUBSTATIONS
B10: SUBSTATION AND PROJECT SUMMARY | L10: PLANT AND EQUIPMENT EXPENDITURE AND VOLUME | Z10: OTHER EXPENDITURE | AB10: TOTAL DIRECT EXPENDITURE ($0's) | AC10: YEARS INCURRED | AD10: RELATED PARTY CONTRACTS | AF10: ALL NON RELATED PARTYCONTRACTS | AG10: LAND AND EASEMENTS | AI10: Comments
B11: SUBSTATION ID | C11: SUBSTATION TYPE (drop down) | D11: PROJECT ID | E11: PROJECT TYPE (drop down) | F11: PROJECT TRIGGER (drop down) | G11: VOLTAGE (KV) | H11: SUBSTATION RATING NORMAL CYCLIC (MVA) | J11: SUBSTATION RATING N-1 EMERGENCY (MVA) | L11: TRANSFORMERS | P11: SWITCHGEAR | S11: REACTIVE PLANT | W11: OTHER PLANT ITEM | X11: INSTALLATION (LABOUR) | Z11: CIVIL WORKS | AA11: OTHER DIRECT | AD11: RELATED PARTY MARGINS | AE11: TOTAL | AG11: LAND PURCHASES | AH11: EASEMENTS
H12: PRE | I12: POST | J12: PRE | K12: POST | L12: Units Added | M12: MVA Added | N12: OLTC INCLUDED? | O12: Expenditure ($0's) | P12: Insulation | Q12: Units Added | R12: Expenditure ($0's) | S12: Plant Type | U12: Units Added | V12: Expenditure ($0's) | W12: Expenditure ($0's) | X12: Volume | Y12: Expenditure ($0's) | Z12: Expenditure ($0's) | AD12: Expenditure ($0's) | AG12: Expenditure ($0's)
B13: BER | C13: Transmission substation | D13: 1316 | E13: Capacity upgrade | F13: Demand growth | G13: 132/66 | I13: 240 | K13: 120 | P13: Air | Q13: 6 | R13: 187092.7672 | S13: Static VAR compensator | T13: -10 to +50 Mvar | U13: 1 | V13: 14258240 | Y13: 1171315.853 | Z13: 82978.84495 | AB13: 9503185.32 | AC13: 2019,2020,2021 | AD13: 0 | AE13: 0 | AF13: 0 | AH13: 0 | AI13: Dynamic Voltage Support
B20: Project Totals | L20: =SUM(L13:L18) -> 0 | M20: =SUM(M13:M18) -> 0 | O20: =SUM(O13:O18) -> 0 | Q20: =SUM(Q13:Q18) -> 6 | R20: =SUM(R13:R18) -> 187092.7672 | T20: =SUM(T13:T18) -> 0 | U20: 1 | V20: 14258240 | W20: 0 | X20: 0 | Y20: 1171315.853 | Z20: 82978.84495 | AA20: =O18+R18+U18+V18+SUM(X18:Z18) -> 0 | AC20: =SUM(AC13:AC18) -> 0 | AD20: =SUM(AD13:AD18) -> 0 | AE20: =SUM(AE13:AE18) -> 0 | AF20: =SUM(AF13:AF18) -> 0 | AG20: =SUM(AG13:AG18) -> 0
B21: MAC | C21: Transmission substation | D21: 1438 | E21: Capacity upgrade | F21: Demand growth | G21: 132/66 | H21: 625 | I21: 875 | J21: 250 | K21: 500 | L21: 1 | M21: 250 | N21: Yes | O21: 3213041.964 | P21: Air | Q21: 20 | R21: 838808.0656 | Y21: 951973.1574 | AB21: 4078069.255 | AC21: 2019,2020,2021 2022 | AD21: 0 | AE21: 0 | AF21: 0 | AH21: 0 | AI21: New 250MVA 330/66kV TX
B28: Project Totals | L28: =SUM(L21:L26) -> 1 | M28: =SUM(M21:M26) -> 250 | O28: =SUM(O21:O26) -> 3213041.964 | Q28: =SUM(Q21:Q26) -> 20 | R28: =SUM(R21:R26) -> 838808.0656 | T28: =SUM(T21:T26) -> 0 | U28: 0 | V28: 0 | W28: 0 | X28: 0 | Y28: 951973.1574 | Z28: 0 | AA28: =O26+R26+U26+V26+SUM(X26:Z26) -> 0 | AC28: =SUM(AC21:AC26) -> 0 | AD28: =SUM(AD21:AD26) -> 0 | AE28: =SUM(AE21:AE26) -> 0 | AF28: =SUM(AF21:AF26) -> 0 | AG28: =SUM(AG21:AG26) -> 0
B29: STO | C29: Transmission substation | D29: DCN335 | E29: New substation establishment | F29: Other | G29: 330/132 | H29: 0 | I29: 375 | J29: 0 | K29: 0 | P29: Air | Q29: 86 | R29: 3162792.152 | Y29: 7155873.521 | Z29: 5701562.729 | AB29: 30257817.32 | AC29: 2017,2018,2019,2020 | AD29: 0 | AE29: 0 | AF29: 0 | AH29: 0
B36: Project Totals | L36: =SUM(L29:L34) -> 0 | M36: =SUM(M29:M34) -> 0 | O36: =SUM(O29:O34) -> 0 | Q36: =SUM(Q29:Q34) -> 86 | R36: =SUM(R29:R34) -> 3162792.152 | T36: =SUM(T29:T34) -> 0 | U36: 0 | V36: 0 | W36: 0 | X36: 0 | Y36: 7155873.521 | Z36: 5701562.729 | AA36: =O34+R34+U34+V34+SUM(X34:Z34) -> 0 | AC36: =SUM(AC29:AC34) -> 0 | AD36: =SUM(AD29:AD34) -> 0 | AE36: =SUM(AE29:AE34) -> 0 | AF36: =SUM(AF29:AF34) -> 0 | AG36: =SUM(AG29:AG34) -> 0
B37: TOM | C37: Transmission substation | D37: 1416 | E37: Capacity upgrade | F37: Demand growth | G37: 330/132 | H37: 1125 | I37: 750 | J37: 1125 | K37: 750 | P37: Air | Q37: 35 | R37: 1506073.034 | Y37: 1402716.614 | Z37: 11418.56065 | AB37: 3769424.991 | AC37: 2019,2019,2020,2021 | AD37: 0 | AE37: 0 | AF37: 0
B44: Project Totals | L44: =SUM(L37:L42) -> 0 | M44: =SUM(M37:M42) -> 0 | O44: =SUM(O37:O42) -> 0 | Q44: =SUM(Q37:Q42) -> 35 | R44: =SUM(R37:R42) -> 1506073.034 | T44: =SUM(T37:T42) -> 0 | U44: 0 | V44: 0 | W44: 0 | X44: 0 | Y44: 1402716.614 | Z44: 11418.56065 | AA44: =O42+R42+U42+V42+SUM(X42:Z42) -> 0 | AC44: =SUM(AC37:AC42) -> 0 | AD44: =SUM(AD37:AD42) -> 0 | AE44: =SUM(AE37:AE42) -> 0 | AF44: =SUM(AF37:AF42) -> 0 | AG44: =SUM(AG37:AG42) -> 0
B45: KEMPS CREEK 132 | C45: Switching station | D45: 1687 | E45: Capacity upgrade | F45: Demand growth | G45: 330/132 | H45: 0 | I45: 0 | J45: 0 | K45: 0 | P45: Air | Q45: 48 | R45: 997931.6256 | Y45: 1595288.439 | AB45: 4926001.871 | AC45: 2020,2021,202,2023,2024,2025 | AD45: 0 | AE45: 0 | AF45: 0
B52: Project Totals | L52: =SUM(L45:L50) -> 0 | M52: =SUM(M45:M50) -> 0 | O52: =SUM(O45:O50) -> 0 | Q52: =SUM(Q45:Q50) -> 48 | R52: =SUM(R45:R50) -> 997931.6256 | T52: =SUM(T45:T50) -> 0 | U52: 0 | V52: 0 | W52: 0 | X52: 0 | Y52: 1595288.439 | Z52: 0 | AA52: =O50+R50+U50+V50+SUM(X50:Z50) -> 0 | AC52: =SUM(AC45:AC50) -> 0 | AD52: =SUM(AD45:AD50) -> 0 | AE52: =SUM(AE45:AE50) -> 0 | AF52: =SUM(AF45:AF50) -> 0 | AG52: =SUM(AG45:AG50) -> 0
B53: YSN | C53: Transmission substation | D53: 1399 | E53: Capacity upgrade | F53: Net market benefit | G53: 330/132 | I53: 400 | K53: 200 | P53: Air | Q53: 29 | R53: 1006205.045 | Y53: 1347743.347 | AB53: 3794894.057 | AC53: 2021,2022,2023 | AD53: 0 | AE53: 0 | AF53: 0
B60: Project Totals | L60: =SUM(L53:L58) -> 0 | M60: =SUM(M53:M58) -> 0 | O60: =SUM(O53:O58) -> 0 | Q60: =SUM(Q53:Q58) -> 29 | R60: =SUM(R53:R58) -> 1006205.045 | T60: =SUM(T53:T58) -> 0 | U60: 0 | V60: 0 | W60: 0 | X60: 0 | Y60: 1347743.347 | Z60: 0 | AA60: =O58+R58+U58+V58+SUM(X58:Z58) -> 0 | AC60: =SUM(AC53:AC58) -> 0 | AD60: =SUM(AD53:AD58) -> 0 | AE60: =SUM(AE53:AE58) -> 0 | AF60: =SUM(AF53:AF58) -> 0 | AG60: =SUM(AG53:AG58) -> 0
B61: BKH | C61: Transmission substation | D61: 1698 | E61: Capacity upgrade | F61: Reactive power issue | G61: 220/22 | H61: 95 | I61: 170 | J61: 95 | K61: 170 | P61: Air | Q61: 24 | R61: 1134578.48 | Y61: 2367399.802 | Z61: 421156.7262 | AB61: 17411791.11 | AC61: 2018,2019,2020 | AD61: 0 | AE61: 0 | AF61: 0
B68: Project Totals | L68: =SUM(L61:L66) -> 0 | M68: =SUM(M61:M66) -> 0 | O68: =SUM(O61:O66) -> 0 | Q68: =SUM(Q61:Q66) -> 24 | R68: =SUM(R61:R66) -> 1134578.48 | T68: =SUM(T61:T66) -> 0 | U68: 0 | V68: 0 | W68: 0 | X68: 0 | Y68: 2367399.802 | Z68: 421156.7262 | AA68: =O66+R66+U66+V66+SUM(X66:Z66) -> 0 | AC68: =SUM(AC61:AC66) -> 0 | AD68: =SUM(AD61:AD66) -> 0 | AE68: =SUM(AE61:AE66) -> 0 | AF68: =SUM(AF61:AF66) -> 0 | AG68: =SUM(AG61:AG66) -> 0
B69: BRG,PKS | C69: Transmission substation | D69: 1650 | E69: Other | F69: Voltage issues | G69: 220132 | I69: 120 | K69: 60 | P69: Air | Q69: 15 | R69: 527766.0487 | S69: Static VAR compensator | T69: 150 Mvar | U69: 2 | V69: 27872000 | Y69: 2402922.234 | Z69: 272716.2586 | AB69: 21377500.14 | AC69: 11820.93395 | AD69: 0 | AE69: 0 | AF69: 0
B76: Project Totals | L76: =SUM(L69:L74) -> 0 | M76: =SUM(M69:M74) -> 0 | O76: =SUM(O69:O74) -> 0 | Q76: =SUM(Q69:Q74) -> 15 | R76: =SUM(R69:R74) -> 527766.0487 | T76: =SUM(T69:T74) -> 0 | U76: 2 | V76: 27872000 | W76: 0 | X76: 0 | Y76: 2402922.234 | Z76: 272716.2586 | AA76: =O74+R74+U74+V74+SUM(X74:Z74) -> 0 | AC76: =SUM(AC69:AC74) -> 11820.93395 | AD76: =SUM(AD69:AD74) -> 0 | AE76: =SUM(AE69:AE74) -> 0 | AF76: =SUM(AF69:AF74) -> 0 | AG76: =SUM(AG69:AG74) -> 0
B84: Project Totals | L84: =SUM(L77:L82) -> 0 | M84: =SUM(M77:M82) -> 0 | O84: =SUM(O77:O82) -> 0 | Q84: =SUM(Q77:Q82) -> 0 | R84: =SUM(R77:R82) -> 0 | T84: =SUM(T77:T82) -> 0 | U84: 0 | V84: 0 | W84: 0 | X84: 0 | Y84: 0 | Z84: 0 | AA84: =O82+R82+U82+V82+SUM(X82:Z82) -> 0 | AC84: =SUM(AC77:AC82) -> 0 | AD84: =SUM(AD77:AD82) -> 0 | AE84: =SUM(AE77:AE82) -> 0 | AF84: =SUM(AF77:AF82) -> 0 | AG84: =SUM(AG77:AG82) -> 0
B85: <Enter substation ID>
B92: Project Totals | L92: =SUM(L85:L90) -> 0 | M92: =SUM(M85:M90) -> 0 | O92: =SUM(O85:O90) -> 0 | Q92: =SUM(Q85:Q90) -> 0 | R92: =SUM(R85:R90) -> 0 | T92: =SUM(T85:T90) -> 0 | U92: 0 | V92: 0 | W92: 0 | X92: 0 | Y92: 0 | Z92: 0 | AA92: =O90+R90+U90+V90+SUM(X90:Z90) -> 0 | AC92: =SUM(AC85:AC90) -> 0 | AD92: =SUM(AD85:AD90) -> 0 | AE92: =SUM(AE85:AE90) -> 0 | AF92: =SUM(AF85:AF90) -> 0 | AG92: =SUM(AG85:AG90) -> 0
B93: <Enter substation ID>
B100: Project Totals | L100: =SUM(L93:L98) -> 0 | M100: =SUM(M93:M98) -> 0 | O100: =SUM(O93:O98) -> 0 | Q100: =SUM(Q93:Q98) -> 0 | R100: =SUM(R93:R98) -> 0 | T100: =SUM(T93:T98) -> 0 | U100: 0 | V100: 0 | W100: 0 | X100: 0 | Y100: 0 | Z100: 0 | AA100: =O98+R98+U98+V98+SUM(X98:Z98) -> 0 | AC100: =SUM(AC93:AC98) -> 0 | AD100: =SUM(AD93:AD98) -> 0 | AE100: =SUM(AE93:AE98) -> 0 | AF100: =SUM(AF93:AF98) -> 0 | AG100: =SUM(AG93:AG98) -> 0
B101: <Enter substation ID>
B108: Project Totals | L108: =SUM(L101:L106) -> 0 | M108: =SUM(M101:M106) -> 0 | O108: =SUM(O101:O106) -> 0 | Q108: =SUM(Q101:Q106) -> 0 | R108: =SUM(R101:R106) -> 0 | T108: =SUM(T101:T106) -> 0 | U108: 0 | V108: 0 | W108: 0 | X108: 0 | Y108: 0 | Z108: 0 | AA108: =O106+R106+U106+V106+SUM(X106:Z106) -> 0 | AC108: =SUM(AC101:AC106) -> 0 | AD108: =SUM(AD101:AD106) -> 0 | AE108: =SUM(AE101:AE106) -> 0 | AF108: =SUM(AF101:AF106) -> 0 | AG108: =SUM(AG101:AG106) -> 0
B109: <Enter substation ID>
B116: Project Totals | L116: =SUM(L109:L114) -> 0 | M116: =SUM(M109:M114) -> 0 | O116: =SUM(O109:O114) -> 0 | Q116: =SUM(Q109:Q114) -> 0 | R116: =SUM(R109:R114) -> 0 | T116: =SUM(T109:T114) -> 0 | U116: 0 | V116: 0 | W116: 0 | X116: 0 | Y116: 0 | Z116: 0 | AA116: =O114+R114+U114+V114+SUM(X114:Z114) -> 0 | AC116: =SUM(AC109:AC114) -> 0 | AD116: =SUM(AD109:AD114) -> 0 | AE116: =SUM(AE109:AE114) -> 0 | AF116: =SUM(AF109:AF114) -> 0 | AG116: =SUM(AG109:AG114) -> 0
B117: <Enter substation ID>
B124: Project Totals | L124: =SUM(L117:L122) -> 0 | M124: =SUM(M117:M122) -> 0 | O124: =SUM(O117:O122) -> 0 | Q124: =SUM(Q117:Q122) -> 0 | R124: =SUM(R117:R122) -> 0 | T124: =SUM(T117:T122) -> 0 | U124: 0 | V124: 0 | W124: 0 | X124: 0 | Y124: 0 | Z124: 0 | AA124: =O122+R122+U122+V122+SUM(X122:Z122) -> 0 | AC124: =SUM(AC117:AC122) -> 0 | AD124: =SUM(AD117:AD122) -> 0 | AE124: =SUM(AE117:AE122) -> 0 | AF124: =SUM(AF117:AF122) -> 0 | AG124: =SUM(AG117:AG122) -> 0
B125: <Enter substation ID>
B132: Project Totals | L132: =SUM(L125:L130) -> 0 | M132: =SUM(M125:M130) -> 0 | O132: =SUM(O125:O130) -> 0 | Q132: =SUM(Q125:Q130) -> 0 | R132: =SUM(R125:R130) -> 0 | T132: =SUM(T125:T130) -> 0 | U132: 0 | V132: 0 | W132: 0 | X132: 0 | Y132: 0 | Z132: 0 | AA132: =O130+R130+U130+V130+SUM(X130:Z130) -> 0 | AC132: =SUM(AC125:AC130) -> 0 | AD132: =SUM(AD125:AD130) -> 0 | AE132: =SUM(AE125:AE130) -> 0 | AF132: =SUM(AF125:AF130) -> 0 | AG132: =SUM(AG125:AG130) -> 0
K133: Non material projects | AB133: 5154139.058 | AF133: 0
K134: Non material projects
B136: NOTE: TNSP MUST PROVIDE EXPENDITURE INFORMATION ON A PROJECT CLOSE BASIS.
B137: 2.3.2 - AUGEX ASSET DATA - LINES
B138: LINE AND PROJECT SUMMARY | L138: PLANT AND EQUIPMENT EXPENDITURE AND VOLUME | Z138: OTHER EXPENDITURE | AB138: TOTAL DIRECT EXPENDITURE ($0's) | AC138: YEARS INCURRED | AD138: ALL RELATED PARTY CONTRACTS | AF138: ALL NON RELATED PARTYCONTRACTS | AG138: LAND AND EASEMENTS | AI138: Comments
B139: LINE ID | D139: PROJECT ID | E139: PROJECT TYPE (drop down) | F139: PROJECT TRIGGER (drop down) | G139: VOLTAGE (KV) (drop down) | H139: ROUTE LINE LENGTH ADDED | L139: TOWERS/POLES (INCLUDING STRUCTURES, AND CIVIL WORKS) | P139: LINES AND CABLES | W139: OTHER PLANT ITEM | X139: INSTALLATION (LABOUR) | Z139: CIVIL WORKS | AA139: OTHER DIRECT | AD139: RELATED PARTY MARGINS | AE139: TOTAL | AG139: LAND PURCHASES | AH139: EASEMENTS
P140: Type | Q140: Rating (MVA) | S140: N-1 Emergency Rating (MVA) | U140: Circuit KM Added | V140: Expenditure ($0's) | W140: Expenditure ($0's)
H141: KM ADDED | L141: Configuration | M141: Towers/Poles Added | N141: Towers/Poles Upgraded | O141: Expenditure ($0's) | Q141: PRE | R141: POST | S141: PRE | T141: POST | X141: Volume | Y141: Expenditure ($0's) | Z141: Expenditure ($0's) | AD141: Expenditure ($0's) | AG141: Expenditure ($0's)
B142: Powering Sydney's Future - 2 new 330kV Cables from Rookwood road to Beaconsfield | D142: DCN43 | E142: New Cable | F142: Other | G142: 330 | H142: 39 | P142: Underground cable | U142: 39 | V142: 65253114.16 | Y142: 2140219.601 | Z142: 14012.59631 | AC142: 2019,2020,2021 2020,2023 | AF142: 0
B149: Project Totals | M149: =SUM(M142:M148) -> 0 | N149: =SUM(N142:N148) -> 0 | O149: =SUM(O142:O148) -> 0 | U149: =SUM(U142:U148) -> 39 | V149: =SUM(V142:V148) -> 65253114.16 | W149: =SUM(W142:W147) -> 0 | X149: =SUM(X142:X147) -> 0 | Y149: =SUM(Y142:Y148) -> 2140219.601 | Z149: =SUM(Z142:Z148) -> 14012.59631 | AA149: =SUM(AA142:AA148) -> 0 | AB149: =K92+R92+S92+SUM(U92:W92) -> 0 | AD149: =SUM(AD142:AD148) -> 0 | AE149: =SUM(AE142:AE148) -> 0 | AF149: =SUM(AF142:AF148) -> 0 | AG149: =SUM(AG142:AG148) -> 0 | AH149: =SUM(AH142:AH148) -> 0
B150: 9S4 | D150: DCN43 | E150: Acquire cable and convert from 132 to 330 kV | F150: Other | G150: 330 | H150: 4.862 | P150: Underground cable | U150: 1 | V150: 1756210.56 | Y150: 40028903.64 | Z150: 489179.9755 | AC150: 2018,2019,2020 2021,2020,2023 | AF150: 0 | AH150: 53310.89972
B157: Project Totals | M157: =SUM(M150:M156) -> 0 | N157: =SUM(N150:N156) -> 0 | O157: =SUM(O150:O156) -> 0 | U157: =SUM(U150:U156) -> 1 | V157: =SUM(V150:V156) -> 1756210.56 | W157: =SUM(W150:W155) -> 0 | X157: =SUM(X150:X155) -> 0 | Y157: =SUM(Y150:Y156) -> 40028903.64 | Z157: =SUM(Z150:Z156) -> 489179.9755 | AA157: =SUM(AA150:AA156) -> 0 | AB157: =K84+R84+S84+SUM(U84:W84) -> 0 | AD157: =SUM(AD150:AD156) -> 0 | AE157: =SUM(AE150:AE156) -> 0 | AF157: =SUM(AF150:AF156) -> 0 | AG157: =SUM(AG150:AG156) -> 0 | AH157: =SUM(AH150:AH156) -> 53310.89972
B158: STO | D158: DCN335 | G158: 330 | H158: 10.6 | L158: Single circuit steel tower | M158: 5 | O158: 686882.1773 | P158: Overhead line | U158: 10.6 | V158: 1606956
G159: 132 | H159: 2.2 | L159: Multiple circuit steel tower | M159: 14 | O159: 2925477.173 | P159: Overhead line
L160: Other | M160: 27 | O160: 869336 | P160: Overhead line | U160: 2.2 | V160: 374114
B165: Project Totals | M165: =SUM(M158:M164) -> 46 | N165: =SUM(N158:N164) -> 0 | O165: =SUM(O158:O164) -> 4481695.35 | U165: =SUM(U158:U164) -> 12.8 | V165: =SUM(V158:V164) -> 1981070 | W165: =SUM(W158:W163) -> 0 | X165: =SUM(X158:X163) -> 0 | Y165: =SUM(Y158:Y164) -> 0 | Z165: =SUM(Z158:Z164) -> 0 | AA165: =SUM(AA158:AA164) -> 0 | AB165: =K92+R92+S92+SUM(U92:W92) -> 0 | AD165: =SUM(AD158:AD164) -> 0 | AE165: =SUM(AE158:AE164) -> 0 | AF165: =SUM(AF158:AF164) -> 0 | AG165: =SUM(AG158:AG164) -> 0 | AH165: =SUM(AH158:AH164) -> 0
B166: <Enter line ID>
B173: Project Totals | M173: =SUM(M166:M172) -> 0 | N173: =SUM(N166:N172) -> 0 | O173: =SUM(O166:O172) -> 0 | U173: =SUM(U166:U172) -> 0 | V173: =SUM(V166:V172) -> 0 | W173: =SUM(W166:W171) -> 0 | X173: =SUM(X166:X171) -> 0 | Y173: =SUM(Y166:Y172) -> 0 | Z173: =SUM(Z166:Z172) -> 0 | AA173: =SUM(AA166:AA172) -> 0 | AB173: =K100+R100+S100+SUM(U100:W100) -> 0 | AD173: =SUM(AD166:AD172) -> 0 | AE173: =SUM(AE166:AE172) -> 0 | AF173: =SUM(AF166:AF172) -> 0 | AG173: =SUM(AG166:AG172) -> 0 | AH173: =SUM(AH166:AH172) -> 0
B174: <Enter line ID>
B181: Project Totals | M181: =SUM(M174:M180) -> 0 | N181: =SUM(N174:N180) -> 0 | O181: =SUM(O174:O180) -> 0 | U181: =SUM(U174:U180) -> 0 | V181: =SUM(V174:V180) -> 0 | W181: =SUM(W174:W179) -> 0 | X181: =SUM(X174:X179) -> 0 | Y181: =SUM(Y174:Y180) -> 0 | Z181: =SUM(Z174:Z180) -> 0 | AA181: =SUM(AA174:AA180) -> 0 | AB181: =K108+R108+S108+SUM(U108:W108) -> 0 | AD181: =SUM(AD174:AD180) -> 0 | AE181: =SUM(AE174:AE180) -> 0 | AF181: =SUM(AF174:AF180) -> 0 | AG181: =SUM(AG174:AG180) -> 0 | AH181: =SUM(AH174:AH180) -> 0
B182: <Enter line ID>
B189: Project Totals | M189: =SUM(M182:M188) -> 0 | N189: =SUM(N182:N188) -> 0 | O189: =SUM(O182:O188) -> 0 | U189: =SUM(U182:U188) -> 0 | V189: =SUM(V182:V188) -> 0 | W189: =SUM(W182:W187) -> 0 | X189: =SUM(X182:X187) -> 0 | Y189: =SUM(Y182:Y188) -> 0 | Z189: =SUM(Z182:Z188) -> 0 | AA189: =SUM(AA182:AA188) -> 0 | AB189: =K116+R116+S116+SUM(U116:W116) -> 0 | AD189: =SUM(AD182:AD188) -> 0 | AE189: =SUM(AE182:AE188) -> 0 | AF189: =SUM(AF182:AF188) -> 0 | AG189: =SUM(AG182:AG188) -> 0 | AH189: =SUM(AH182:AH188) -> 0
B190: <Enter line ID>
B197: Project Totals | M197: =SUM(M190:M196) -> 0 | N197: =SUM(N190:N196) -> 0 | O197: =SUM(O190:O196) -> 0 | U197: =SUM(U190:U196) -> 0 | V197: =SUM(V190:V196) -> 0 | W197: =SUM(W190:W195) -> 0 | X197: =SUM(X190:X195) -> 0 | Y197: =SUM(Y190:Y196) -> 0 | Z197: =SUM(Z190:Z196) -> 0 | AA197: =SUM(AA190:AA196) -> 0 | AB197: =K124+R124+S124+SUM(U124:W124) -> 0 | AD197: =SUM(AD190:AD196) -> 0 | AE197: =SUM(AE190:AE196) -> 0 | AF197: =SUM(AF190:AF196) -> 0 | AG197: =SUM(AG190:AG196) -> 0 | AH197: =SUM(AH190:AH196) -> 0
K198: Non material projects | AB198: 12292160.34 | AC198: 2017,2018,2019,2020,2021,2022,2023 | AH198: 0
K199: Non material projects

Sheet 2.3 Augex (b)
B1: =(LOOKUP(dms_Model,dms_Model_List,dms_Worksheet_List)) -> REGULATORY REPORTING STATEMENT
B2: =INDEX(dms_TradingNameFull_List,MATCH(dms_TradingName,dms_TradingName_List)) -> TransGrid
B3: =IF(SUM(dms_SingleYear_Model)>0,CRY,CONCATENATE(FRCP_y1," to ",dms_MultiYear_FinalYear_Result)) -> 2018-19 to 2022-23
B4: 2.3 AUGEX PROJECTS
B6: There are THREE tables on this worksheet - each has been 'grouped' for easy navigation. See the Instructions sheet on how to group or ungroup tables.
B8: 2.3.4 - AUGEX - TOTAL EXPENDITURE
C9: =CONCATENATE("EXPENDITURE Forecast ($0's. real ",dms_DollarReal,")") -> EXPENDITURE Forecast ($0's. real June 2018)
B10: As incurred | C10: =CRCP_y4 -> 2016-17 | D10: =CRCP_y5 -> 2017-18 | E10: =FRCP_y1 -> 2018-19 | F10: =FRCP_y2 -> 2019-20 | G10: =FRCP_y3 -> 2020-21 | H10: =FRCP_y4 -> 2021-22 | I10: =FRCP_y5 -> 2022-23
B11: Substations | C11: 2011526.092 | D11: 6063245.662 | E11: 17278329.51 | F11: 51724513.87 | G11: 53457910.58 | H11: 100670002.8 | I11: 113382067.2
B12: Lines | C12: 161129.3623 | D12: 638940.7196 | E12: 2675955.881 | F12: 6550928.361 | G12: 1209454.506 | H12: 7047154.403 | I12: 6390700.303
B13: Other assets | C13: 3032512.57 | D13: 1985089.388 | E13: 3713878.537 | F13: 13769976.55 | G13: 15041520.94 | H13: 37600781.02 | I13: 42267774.05
B14: Total | C14: =SUM(C11:C13) -> 5205168.024 | D14: =SUM(D11:D13) -> 8687275.77 | E14: 23668163.93 | F14: 72045418.78 | G14: 69708886.03 | H14: 145317938.2 | I14: 162040541.6
B17: 2.3.5 - AUGEX - BY DRIVER
C18: =CONCATENATE("EXPENDITURE Forecast ($0's. real ",dms_DollarReal,")") -> EXPENDITURE Forecast ($0's. real June 2018)
B19: As incurred | C19: =CRCP_y4 -> 2016-17 | D19: =CRCP_y5 -> 2017-18 | E19: =FRCP_y1 -> 2018-19 | F19: =FRCP_y2 -> 2019-20 | G19: =FRCP_y3 -> 2020-21 | H19: =FRCP_y4 -> 2021-22 | I19: =FRCP_y5 -> 2022-23
B20: Demand driven augex | C20: 4670151.708 | D20: 6355724.776 | E20: 12504975.92 | F20: 46942665.09 | G20: 69708886.03 | H20: 145317938.2 | I20: 162040541.6
B21: Non-demand driven augex | C21: 535016.3162 | D21: 2331550.994 | E21: 11163188.01 | F21: 25102753.68 | G21: 0 | H21: 0 | I21: 0
B22: Total | C22: =SUM(C20:C21) -> 5205168.024 | D22: 8687275.77 | E22: 23668163.93 | F22: 72045418.77 | G22: 69708886.03 | H22: 145317938.2 | I22: 162040541.6
B25: 2.3.6 - AUGEX - DEMAND DRIVEN
C26: =CONCATENATE("EXPENDITURE Forecast ($0's. real ",dms_DollarReal,")") -> EXPENDITURE Forecast ($0's. real June 2018)
B27: As incurred | C27: =CRCP_y4 -> 2016-17 | D27: =CRCP_y5 -> 2017-18 | E27: =FRCP_y1 -> 2018-19 | F27: =FRCP_y2 -> 2019-20 | G27: =FRCP_y3 -> 2020-21 | H27: =FRCP_y4 -> 2021-22 | I27: =FRCP_y5 -> 2022-23
B28: Substations | C28: 1670032.009 | D28: 4575046.437 | E28: 10153009.16 | F28: 35701746.75 | G28: 53457910.58 | H28: 100670002.8 | I28: 113382067.2
B29: Lines | C29: 34757.75357 | D29: 88225.0854 | E29: 39195.12369 | F29: 621622.5242 | G29: 1209454.506 | H29: 7047154.403 | I29: 6390700.303
B30: Other assets | C30: 2965361.945 | D30: 1692453.254 | E30: 2312771.639 | F30: 10619295.82 | G30: 15041520.94 | H30: 37600781.02 | I30: 42267774.05
B31: Total | C31: =SUM(C28:C30) -> 4670151.708 | D31: =SUM(D28:D30) -> 6355724.776 | E31: 12504975.92 | F31: 46942665.09 | G31: 69708886.03 | H31: 145317938.2 | I31: 162040541.6

Sheet 2.5 Connections
B1: REGULATORY REPORTING STATEMENT
B2: TransGrid
B3: 2018-19 to 2022-23
B4: 2.5 CONNECTIONS EXPENDITURE
B6: There are TWO tables on this worksheet. Each has been grouped (or sub-grouped). See the Instructions sheet on how to group or ungroup data.
B8: 2.5.1 - EXPENDITURE ON CONNECTION PROJECTS
C9: EXPENDITURE Forecast ($0's. real June 2018)
C10: 2016-17 | D10: 2017-18 | E10: 2018-19 | F10: 2019-20 | G10: 2020-21 | H10: 2021-22 | I10: 2022-23
B11: DIRECT MATERIALS EXPENDITURE
B12: Beaconsfield 132kV Cable Replace | E12: 0 | F12: 0 | G12: 1086 | H12: 16735 | I12: 6963
B13: Canberra Sub - Installation 132kV Switchbay - Line Single CB | C13: 0 | D13: 25939 | E13: 853738 | F13: 104531 | G13: 0 | H13: 0 | I13: 0
B14: Haymarket 123 kV Ausgrid Cables Replace | C14: 0 | D14: 0 | E14: 0 | F14: 0 | G14: 0 | H14: 4422 | I14: 169853
B15: Macarthur 66kV Switchbay - Menangle Park Zone Substation | C15: 0 | D15: 22118 | E15: 392902 | F15: 310565 | G15: 0 | H15: 0 | I15: 0
B16: Macarthur 66kV Switchbay - Mt Gilead Zone Substation | C16: 0 | D16: 0 | E16: - | F16: - | G16: 3089 | H16: 155243 | I16: 587455
B17: Molonglo Substation Connection | C17: 0 | D17: 0 | E17: 82255 | F17: 511804 | G17: 503072 | H17: 0 | I17: 0
B18: Vineyard 132kV Switchbay for Box Hill Zone Substation | C18: 0 | D18: 0 | E18: - | F18: 468 | G18: 27387 | H18: 279853 | I18: 633478
B19: Misc DNSP Secondary Systems Works | C19: 0 | D19: 0 | E19: 314345 | F19: 315206 | G19: 314345 | H19: 314345 | I19: 314345
B20: WILLIAMSDALE 132kV LINE BAY | C20: 713485 | D20: 865 | E20: 0 | F20: 0 | G20: 0 | H20: 0 | I20: 0
B21: MUNMORAH 132 kV STS Ausgrid CONNECTION | C21: 84347 | D21: 0 | E21: 0 | F21: 0 | G21: 0 | H21: 0 | I21: 0
B22: Molong 66/11kV Transformer EE connection | C22: 13030 | D22: 0 | E22: 0 | F22: 0 | G22: 0 | H22: 0 | I22: 0
B23: VINEYARD 132kV NEW LINE BAYS | C23: 21650 | D23: 0 | E23: 0 | F23: 0 | G23: 0 | H23: 0 | I23: 0
B24: Ausgrid Alexandria 132kV Zone Substation | C24: - | D24: 38095 | E24: 0 | F24: 0 | G24: 0 | H24: 0 | I24: 0
B37: DIRECT LABOUR EXPENDITURE
B38: =IF(ISBLANK(B12),"",B12) -> Beaconsfield 132kV Cable Replace | C38: 0 | D38: 0 | E38: 0 | F38: 0 | G38: 5489 | H38: 82596 | I38: 38280
B39: Canberra Sub - Installation 132kV Switchbay - Line Single CB | C39: 0 | D39: 12502 | E39: 343963 | F39: 48723 | G39: - | H39: - | I39: -
B40: Haymarket 123 kV Ausgrid Cables Replace | C40: 0 | D40: - | E40: 0 | F40: 0 | G40: 0 | H40: 7293 | I40: 312036
B41: Macarthur 66kV Switchbay - Menangle Park Zone Substation | C41: 0 | D41: 12559 | E41: 186492 | F41: 170542 | G41: - | H41: - | I41: -
B42: Macarthur 66kV Switchbay - Mt Gilead Zone Substation | C42: 0 | D42: 0 | E42: 0 | F42: 0 | G42: 1734 | H42: 85149 | I42: 358906
B43: Molonglo Substation Connection | C43: 0 | D43: 0 | E43: 37486 | F43: 269845 | G43: 271190 | H43: - | I43: -
B44: Vineyard 132kV Switchbay for Box Hill Zone Substation | C44: 0 | D44: 0 | E44: - | F44: 213 | G44: 12761 | H44: 127383 | I44: 321182.6682
B45: Misc DNSP Secondary Systems Works | C45: 0 | D45: 0 | E45: 0 | F45: 0 | G45: 0 | H45: 0 | I45: 0
B46: WILLIAMSDALE 132kV LINE BAY | C46: 398894 | D46: 483 | E46: 0 | F46: 0 | G46: 0 | H46: 0 | I46: 0
B47: MUNMORAH 132 kV STS Ausgrid CONNECTION | C47: 45286 | D47: 0 | E47: 0 | F47: 0 | G47: 0 | H47: 0 | I47: 0
B48: Molong 66/11kV Transformer EE connection | C48: 7285 | D48: 0 | E48: 0 | F48: 0 | G48: 0 | H48: 0 | I48: 0
B49: VINEYARD 132kV NEW LINE BAYS | C49: 10280 | D49: 0 | E49: 0 | F49: 0 | G49: 0 | H49: 0 | I49: 0
B50: Ausgrid Alexandria 132kV Zone Substation | C50: 0 | D50: 21268 | E50: 0 | F50: 0 | G50: 0 | H50: 0 | I50: 0
B66: 2.5.2 - DESCRIPTION OF CONNECTION PROJECTS
C67: CONNECTION RATING (MVA) | D67: CONNECTION VOLTAGE (KV) | E67: UNDERGROUND / OVERHEAD (drop down) | F67: YEAR CONNECTION PROJECT COMPLETED
B68: =IF(ISBLANK(B12),"",B12) -> Beaconsfield 132kV Cable Replace | C68: 302, 329 | D68: 132 | E68: Underground | F68: 2023
B69: =IF(ISBLANK(B13),"",B13) -> Canberra Sub - Installation 132kV Switchbay - Line Single CB | C69: 256 | D69: 132 | E69: Overhead | F69: 2020
B70: =IF(ISBLANK(B14),"",B14) -> Haymarket 123 kV Ausgrid Cables Replace | C70: 366 | D70: 132 | E70: Underground | F70: 2023
B71: =IF(ISBLANK(B15),"",B15) -> Macarthur 66kV Switchbay - Menangle Park Zone Substation | C71: 852 | D71: 66 | E71: Overhead | F71: 2020
B72: =IF(ISBLANK(B16),"",B16) -> Macarthur 66kV Switchbay - Mt Gilead Zone Substation | C72: 852 | D72: 132 | E72: Overhead | F72: 2023
B73: =IF(ISBLANK(B18),"",B18) -> Vineyard 132kV Switchbay for Box Hill Zone Substation | C73: 234 | D73: 132 | E73: Overhead | F73: 2023
B74: =IF(ISBLANK(B19),"",B19) -> Misc DNSP Secondary Systems Works
B75: =IF(ISBLANK(B20),"",B20) -> WILLIAMSDALE 132kV LINE BAY | C75: 720 | D75: 132 | E75: Overhead | F75: 2017
B76: =IF(ISBLANK(B21),"",B21) -> MUNMORAH 132 kV STS Ausgrid CONNECTION | C76: 857 | D76: 132 | E76: Overhead | F76: 2017
B77: Molong 66/11kV Transformer EE connection | C77: 4 | D77: 66 | E77: Overhead | F77: 2017
B78: VINEYARD 132kV NEW LINE BAYS | C78: 277 | D78: 132 | E78: Overhead | F78: 2017
B79: Ausgrid Alexandria 132kV Zone Substation | C79: 365 | D79: 132 | E79: Underground | F79: 2018

Sheet 2.6 Non-network
B1: =(LOOKUP(dms_Model,dms_Model_List,dms_Worksheet_List)) -> REGULATORY REPORTING STATEMENT
B2: =INDEX(dms_TradingNameFull_List,MATCH(dms_TradingName,dms_TradingName_List)) -> TransGrid
B3: =IF(SUM(dms_SingleYear_Model)>0,CRY,CONCATENATE(FRCP_y1," to ",dms_MultiYear_FinalYear_Result)) -> 2018-19 to 2022-23
B4: 2.6 NON NETWORK EXPENDITURE
B6: There are THREE tables on this worksheet - each has been 'grouped' for easy navigation. See the Instructions sheet on how to group or ungroup tables.
B8: 2.6.1 - NON-NETWORK EXPENDITURE
E9: =CONCATENATE("EXPENDITURE Forecast ($0's. real ",dms_DollarReal,")") -> EXPENDITURE Forecast ($0's. real June 2018)
B10: SERVICE SUBCATEGORY | C10: ASSET CATEGORY | E10: =CRCP_y4 -> 2016-17 | F10: =CRCP_y5 -> 2017-18 | G10: =FRCP_y1 -> 2018-19 | H10: =FRCP_y2 -> 2019-20 | I10: =FRCP_y3 -> 2020-21 | J10: =FRCP_y4 -> 2021-22 | K10: =FRCP_y5 -> 2022-23
B11: OPEX
B12: IT & COMMUNICATIONS | C12: Total IT and communications | E12: 16796797.13 | F12: 16281249.69 | G12: 16405182.79 | H12: 16554721.46 | I12: 16764290.12 | J12: 17001837.75 | K12: 17233526.71
B13: MOTOR VEHICLES | C13: Car | E13: 304727.0736 | F13: 293191.3978 | G13: 293192.1213 | H13: 293314.3138 | I13: 294023.5572 | J13: 294591.4423 | K13: 294687.1179
C14: Light commercial vehicle | E14: 2814332.864 | F14: 2707794.147 | G14: 2707800.829 | H14: 2708929.348 | I14: 2715479.626 | J14: 2720724.377 | K14: 2721607.998
C15: Elevated work platform (LCV) | E15: 155400.6658 | F15: 149517.855 | G15: 149518.224 | H15: 149580.5381 | I15: 149942.2286 | J15: 150231.8311 | K15: 150280.6225
C16: Elevated work platform (HCV) | E16: 29228.75059 | F16: 28122.27394 | G16: 28122.34334 | H16: 28134.06377 | I16: 28202.09284 | J16: 28256.56313 | K16: 28265.74012
C17: Heavy commercial vehicle | E17: 935118.0568 | F17: 899718.4494 | G17: 899720.6697 | H17: 900095.6425 | I17: 902272.1027 | J17: 904014.7757 | K17: 904308.3761
B18: BUILDINGS AND PROPERTY | C18: Total buildings and property expenditure | E18: 0 | F18: 0 | G18: 0 | H18: 0 | I18: 0 | J18: 0 | K18: 0
B19: OTHER | C19: Other expenditure
B20: OTHER - TNSP nominated | C20: Other | E20: 416239.1882 | F20: 400482.1362 | G20: 400483.1245 | H20: 400650.0322 | I20: 401618.8168 | J20: 402394.5144 | K20: 402525.2016
B31: CAPEX
B32: IT & COMMUNICATIONS | C32: Total IT and communications | E32: 11048029 | F32: 14692320 | G32: 11556299 | H32: 26166103 | I32: 26165030 | J32: 12987669 | K32: 15462268
B33: MOTOR VEHICLES | C33: Car | E33: 1435071 | F33: 1067900 | G33: 798887 | H33: 1198489 | I33: 739109 | J33: 909716 | K33: 1274566
C34: Light commercial vehicle | E34: 7317435 | F34: 5929106 | G34: 4671624 | H34: 7028690 | I34: 5362736 | J34: 5479651 | K34: 5211012
C35: Elevated work platform (LCV) | E35: 0 | F35: 290745 | G35: 234545 | H35: 500967 | I35: 87158 | J35: 81436 | K35: 278755
C36: Elevated work platform (HCV) | E36: 1402165 | F36: 0 | G36: 0 | H36: 1100390 | I36: 558203 | J36: 521556 | K36: 526022
C37: Heavy commercial vehicle | E37: 427372 | F37: 766379 | G37: 951355 | H37: 1496626 | I37: 1750494 | J37: 314573 | K37: 618875
B38: BUILDINGS AND PROPERTY | C38: Total buildings and property expenditure | E38: 428682 | F38: 3010373 | G38: 594790 | H38: 657337 | I38: 667798 | J38: 626866 | K38: 635165
B39: OTHER | C39: Other expenditure | E39: 0 | F39: 0 | G39: 0 | H39: 0 | I39: 0 | J39: 0 | K39: 0
B40: OTHER - TNSP nominated | C40: Mobile Plants | E40: 295542 | F40: 1777290 | G40: 2531918 | H40: 343325 | I40: 1490197 | J40: 383038 | K40: 389710
B54: 2.6.3 - ANNUAL DESCRIPTOR METRICS
B55: IT & COMMUNICATIONS
E56: VOLUMES (0's)
E57: =CRCP_y4 -> 2016-17 | F57: =CRCP_y5 -> 2017-18 | G57: =FRCP_y1 -> 2018-19 | H57: =FRCP_y2 -> 2019-20 | I57: =FRCP_y3 -> 2020-21 | J57: =FRCP_y4 -> 2021-22 | K57: =FRCP_y5 -> 2022-23
B58: Employee numbers
B59: User numbers
B60: Number of devices
B62: MOTOR VEHICLES
E63: VOLUMES (0's or %)
D64: Units | E64: =CRCP_y4 -> 2016-17 | F64: =CRCP_y5 -> 2017-18 | G64: =FRCP_y1 -> 2018-19 | H64: =FRCP_y2 -> 2019-20 | I64: =FRCP_y3 -> 2020-21 | J64: =FRCP_y4 -> 2021-22 | K64: =FRCP_y5 -> 2022-23
B65: CAR | C65: Average kilometres travelled | D65: 0's | E65: 18859.01343 | F65: 18859.01343 | G65: 18859.01343 | H65: 18859.01343 | I65: 18859.01343 | J65: 18859.01343 | K65: 18859.01343
C66: Number purchased | D66: 0's | E66: 32 | F66: 25 | G66: 24 | H66: 32 | I66: 18 | J66: 26 | K66: 35
C67: Number leased | D67: 0's | E67: 0 | F67: 0 | G67: 0 | H67: 0 | I67: 0 | J67: 0 | K67: 0
C68: Number in fleet | D68: 0's | E68: 72 | F68: 72 | G68: 72 | H68: 72 | I68: 72 | J68: 72 | K68: 72
C69: Proportion of total fleet expenditure allocated as regulatory expenditure | D69: % | E69: 1 | F69: 1 | G69: 1 | H69: 1 | I69: 1 | J69: 1 | K69: 1
B70: LIGHT COMMERCIAL VEHICLE | C70: Average kilometres travelled | D70: 0's | E70: 20955.7326 | F70: 20955.7326 | G70: 20955.7326 | H70: 20955.7326 | I70: 20955.7326 | J70: 20955.7326 | K70: 20955.7326
C71: Number purchased | D71: 0's | E71: 123 | F71: 103 | G71: 93 | H71: 133 | I71: 99 | J71: 104 | K71: 104
C72: Number leased | D72: 0's | E72: 0 | F72: 0 | G72: 0 | H72: 0 | I72: 0 | J72: 0 | K72: 0
C73: Number in fleet | D73: 0's | E73: 440 | F73: 440 | G73: 440 | H73: 440 | I73: 440 | J73: 440 | K73: 440
C74: Proportion of total fleet expenditure allocated as regulatory expenditure | D74: % | E74: 1 | F74: 1 | G74: 1 | H74: 1 | I74: 1 | J74: 1 | K74: 1
B75: ELEVATED WORK PLATFORM (LCV) | C75: Average kilometres travelled | D75: 0's | E75: 0 | F75: 0 | G75: 0 | H75: 0 | I75: 0 | J75: 0 | K75: 0
C76: Number purchased | D76: 0's | E76: 0 | F76: 4 | G76: 3 | H76: 6 | I76: 1 | J76: 1 | K76: 4
C77: Number leased | D77: 0's | E77: 0 | F77: 0 | G77: 0 | H77: 0 | I77: 0 | J77: 0 | K77: 0
C78: Number in fleet | D78: 0's | E78: 35 | F78: 35 | G78: 35 | H78: 35 | I78: 35 | J78: 35 | K78: 35
C79: Proportion of total fleet expenditure allocated as regulatory expenditure | D79: % | E79: 1 | F79: 1 | G79: 1 | H79: 1 | I79: 1 | J79: 1 | K79: 1
B80: ELEVATED WORK PLATFORM (HCV) | C80: Average kilometres travelled | D80: 0's | E80: 0 | F80: 0 | G80: 0 | H80: 0 | I80: 0 | J80: 0 | K80: 0
C81: Number purchased | D81: 0's | E81: 2 | F81: 0 | G81: 0 | H81: 2 | I81: 1 | J81: 1 | K81: 1
C82: Number leased | D82: 0's | E82: 0 | F82: 0 | G82: 0 | H82: 0 | I82: 0 | J82: 0 | K82: 0
C83: Number in fleet | D83: 0's | E83: 9 | F83: 9 | G83: 9 | H83: 9 | I83: 9 | J83: 9 | K83: 9
C84: Proportion of total fleet expenditure allocated as regulatory expenditure | D84: % | E84: 1 | F84: 1 | G84: 1 | H84: 1 | I84: 1 | J84: 1 | K84: 1
B85: HEAVY COMMERCIAL VEHICLE | C85: Average kilometres travelled | D85: 0's | E85: 9748.845426 | F85: 9748.845426 | G85: 9748.845426 | H85: 9748.845426 | I85: 9748.845426 | J85: 9748.845426 | K85: 9748.845426
C86: Number purchased | D86: 0's | E86: 1 | F86: 6 | G86: 8 | H86: 8 | I86: 10 | J86: 2 | K86: 4
C87: Number leased | D87: 0's | E87: 0 | F87: 0 | G87: 0 | H87: 0 | I87: 0 | J87: 0 | K87: 0
C88: Number in fleet | D88: 0's | E88: 60 | F88: 60 | G88: 60 | H88: 60 | I88: 60 | J88: 60 | K88: 60
C89: Proportion of total fleet expenditure allocated as regulatory expenditure | D89: % | E89: 1 | F89: 1 | G89: 1 | H89: 1 | I89: 1 | J89: 1 | K89: 1
B93: 2.6.4 - ITC CAPEX BY PURPOSE AND ASSET CATEGORY
E94: =CONCATENATE("EXPENDITURE Forecast ($0's. real ",dms_DollarReal,")") -> EXPENDITURE Forecast ($0's. real June 2018)
E95: =CRCP_y4 -> 2016-17 | F95: =CRCP_y5 -> 2017-18 | G95: =FRCP_y1 -> 2018-19 | H95: =FRCP_y2 -> 2019-20 | I95: =FRCP_y3 -> 2020-21 | J95: =FRCP_y4 -> 2021-22 | K95: =FRCP_y5 -> 2022-23
B96: ITC capability growth
B98: Analytics and Reporting | E98: 0 | F98: 0 | G98: 316828 | H98: 0 | I98: 0 | J98: 3031068 | K98: 4166122.945
B99: Business Support | E99: 237958 | F99: 520367 | G99: 0 | H99: 0 | I99: 0 | J99: 0 | K99: 0
B100: HV Build Support | E100: 0 | F100: 0 | G100: 0 | H100: 0 | I100: 0 | J100: 0 | K100: 595160.4207
B101: Cybersecurity | E101: 274371 | F101: 808934 | G101: 0 | H101: 0 | I101: 0 | J101: 0 | K101: 0
B102: HV Operations Support | E102: 462497 | F102: 113535 | G102: 1425726 | H102: 905402 | I102: 2164103 | J102: 642954 | K102: 1547417.094
B103: HV Planning Support | E103: 0 | F103: 0 | G103: 0 | H103: 0 | I103: 0 | J103: 0 | K103: 0
B104: IT Infrastructure | E104: 538773 | F104: 411563 | G104: 0 | H104: 0 | I104: 0 | J104: 0 | K104: 0
B105: ITC asset extensions
B107: Analytics and Reporting | E107: 826118 | F107: 652824 | G107: 0 | H107: 0 | I107: 0 | J107: 0 | K107: 0
B108: Business Support | E108: 104634 | F108: 1428643 | G108: 39603 | H108: 0 | I108: 360684 | J108: 0 | K108: 0
B109: HV Build Support | E109: 0 | F109: 0 | G109: 316828 | H109: 329237 | I109: 1030525 | J109: 918506 | K109: 476128.3366
B110: Cybersecurity | E110: 179591 | F110: 0 | G110: 792070 | H110: 823092 | I110: 0 | J110: 0 | K110: 0
B111: HV Operations Support | E111: 674581 | F111: 3235735 | G111: 1742554 | H111: 1234638 | I111: 1236630 | J111: 1745161 | K111: 833224.589
B112: HV Planning Support | E112: 0 | F112: 0 | G112: 0 | H112: 0 | I112: 0 | J112: 551103 | K112: 0
B113: IT Infrastructure | E113: 58367 | F113: 1513794 | G113: 0 | H113: 0 | I113: 0 | J113: 0 | K113: 0
B114: ITC asset remediation
B116: Analytics and Reporting | E116: 0 | F116: 0 | G116: 0 | H116: 0 | I116: 0 | J116: 0 | K116: 0
B117: Business Support | E117: 0 | F117: 0 | G117: 0 | H117: 0 | I117: 0 | J117: 0 | K117: 0
B118: HV Build Support | E118: 0 | F118: 0 | G118: 0 | H118: 0 | I118: 0 | J118: 0 | K118: 0
B119: Cybersecurity | E119: 224489 | F119: 0 | G119: 0 | H119: 0 | I119: 0 | J119: 0 | K119: 0
B120: HV Operations Support | E120: 116734 | F120: 0 | G120: 0 | H120: 0 | I120: 0 | J120: 0 | K120: 0
B121: HV Planning Support | E121: 215509 | F121: 0 | G121: 0 | H121: 0 | I121: 0 | J121: 0 | K121: 0
B122: IT Infrastructure | E122: 0 | F122: 0 | G122: 0 | H122: 0 | I122: 0 | J122: 0 | K122: 0
B123: ITC asset replacement
B125: Analytics and Reporting | E125: 0 | F125: 0 | G125: 0 | H125: 0 | I125: 206105 | J125: 0 | K125: 0
B126: Business Support | E126: 0 | F126: 0 | G126: 1980175 | H126: 1440411 | I126: 0 | J126: 0 | K126: 892740.631
B127: HV Build Support | E127: 235245 | F127: 1632059 | G127: 0 | H127: 16461845 | I127: 15457875 | J127: 0 | K127: 714192.5048
B128: Cybersecurity | E128: 325891 | F128: 189224 | G128: 792070 | H128: 1234638 | I128: 1545788 | J128: 0 | K128: 0
B129: HV Operations Support | E129: 497467 | F129: 0 | G129: 0 | H129: 0 | I129: 0 | J129: 0 | K129: 0
B130: HV Planning Support | E130: 143496 | F130: 0 | G130: 396035 | H130: 0 | I130: 0 | J130: 0 | K130: 0
B131: Enterprise Content Management | E131: 2030374 | F131: 2283937 | G131: 0 | H131: 0 | I131: 0 | J131: 3857723 | K131: 0
B132: IT Infrastructure | E132: 3901936 | F132: 1901704 | G132: 3754411 | H132: 3736839 | I132: 4163321 | J132: 2241154 | K132: 6237281.209

Sheet 2.10 Overheads
B1: =(LOOKUP(dms_Model,dms_Model_List,dms_Worksheet_List)) -> REGULATORY REPORTING STATEMENT
B2: =INDEX(dms_TradingNameFull_List,MATCH(dms_TradingName,dms_TradingName_List)) -> TransGrid
B3: =IF(SUM(dms_SingleYear_Model)>0,CRY,CONCATENATE(FRCP_y1," to ",dms_MultiYear_FinalYear_Result)) -> 2018-19 to 2022-23
B4: 2.10 OVERHEADS
B6: There are TWO tables on this worksheet. Each table has been 'grouped' (and sub-grouped) for easy navigation. See the Instructions sheet on how to group or ungroup data.
B8: 2.10.1 - NETWORK OVERHEADS EXPENDITURE
D9: =CONCATENATE("EXPENDITURE Forecast ($0's. real ",dms_DollarReal,")") -> EXPENDITURE Forecast ($0's. real June 2018)
D10: =CRCP_y4 -> 2016-17 | E10: =CRCP_y5 -> 2017-18 | F10: =FRCP_y1 -> 2018-19 | G10: =FRCP_y2 -> 2019-20 | H10: =FRCP_y3 -> 2020-21 | I10: =FRCP_y4 -> 2021-22 | J10: =FRCP_y5 -> 2022-23
B11: MAINTENANCE SUPPORT
B12: Prescribed Services | C12: Maintenance Support | D12: 10632572.12 | E12: 10307428.92 | F12: 10385908.97 | G12: 10483979.03 | H12: 10636605.58 | I12: 10803457.7 | J12: 10953423.27
B37: Negotiated Services | C37: Total | D37: 187052.5223 | E37: 181332.4712 | F37: 182713.1241 | G37: 184438.4124 | H37: 187123.4806 | I37: 190058.8107 | J37: 192697.0658
B38: Unregulated Services | C38: Total | D38: 630720.4805 | E38: 611433.0988 | F38: 616088.5082 | G38: 621905.9902 | H38: 630959.744 | I38: 640857.3537 | J38: 649753.2589
B39: NETWORK MONITORING AND CONTROL
B40: Prescribed Services | C40: Operations | D40: 10644787.55 | E40: 10319270.8 | F40: 10397841.02 | G40: 10496023.75 | H40: 10648825.64 | I40: 10815869.46 | J40: 10966007.31
B61: Negotiated Services | C61: Total | D61: 187267.421 | E61: 181540.7983 | F61: 182923.0374 | G61: 184650.3079 | H61: 187338.4608 | I61: 190277.1633 | J61: 192918.4494
B62: Unregulated Services | C62: Total | D62: 631445.0954 | E62: 612135.555 | F62: 616796.3128 | G62: 622620.4783 | H62: 631684.6337 | I62: 641593.6145 | J62: 650499.74
B63: ASSET MANAGEMENT SUPPORT
B64: Prescribed Services | C64: Asset Management | D64: 24154657.1 | E64: 23416009.62 | F64: 23594297.5 | G64: 23817089.19 | H64: 24163820.16 | I64: 24542868.21 | J64: 24883554.05
C65: Grid Planning | D65: 9300408.363 | E65: 9016002.621 | F65: 9084649.842 | G65: 9170432.625 | H65: 9303936.468 | I65: 9449883.548 | J65: 9581059.804
C66: Network Support | D66: 0 | E66: 0 | F66: 0 | G66: 0 | H66: 0 | I66: 0 | J66: 0
B90: Negotiated Services | C90: Total | D90: 588555.0838 | E90: 570557.1166 | F90: 574901.299 | G90: 580329.8664 | H90: 588778.3519 | I90: 598014.2793 | J90: 606315.4688
B91: Unregulated Services | C91: Total | D91: 1984542.848 | E91: 1923855.687 | F91: 1938503.791 | G91: 1956808.322 | H91: 1985295.683 | I91: 2016438.212 | J91: 2044428.908
B95: 2.10.2 - CORPORATE OVERHEADS EXPENDITURE
D96: =CONCATENATE("EXPENDITURE Forecast ($0's. real ",dms_DollarReal,")") -> EXPENDITURE Forecast ($0's. real June 2018)
D97: =CRCP_y4 -> 2016-17 | E97: =CRCP_y5 -> 2017-18 | F97: =FRCP_y1 -> 2018-19 | G97: =FRCP_y2 -> 2019-20 | H97: =FRCP_y3 -> 2020-21 | I97: =FRCP_y4 -> 2021-22 | J97: =FRCP_y5 -> 2022-23
B98: CORPORATE OVERHEADS
B99: Prescribed Services | C99: Insurance | D99: 9462197.726 | E99: 9172844.479 | F99: 9242685.883 | G99: 9329960.938 | H99: 9465787.206 | I99: 9614273.173 | J99: 9747731.363
C100: Rates, Taxes & Charges | D100: 4934935.715 | E100: 4784025.777 | F100: 4820451.019 | G100: 4865968.646 | H100: 4936807.781 | I100: 5014249.483 | J100: 5083853.566
C101: Property Management | D101: 1875068.04 | E101: 1817728.61 | F101: 1831568.67 | G101: 1848863.454 | H101: 1875779.346 | I101: 1905203.937 | J101: 1931650.561
C102: Environmental | D102: 3717752.397 | E102: 3604063.827 | F102: 3631504.92 | G102: 3665795.796 | H102: 3719162.725 | I102: 3777503.723 | J102: 3829940.22
C103: Corporate Governance | D103: 13870541.32 | E103: 13446381.28 | F103: 13548761.1 | G103: 13676696.73 | H103: 13875803.1 | I103: 14093467.2 | J103: 14289102.23
C104: Customer Relations | D104: 6184241.567 | E104: 5995127.956 | F104: 6040774.446 | G104: 6097815.108 | H104: 6186587.556 | I104: 6283634.047 | J104: 6370858.782
C105: Regulatory | D105: 3050155.836 | E105: 2956882.315 | F105: 2979395.813 | G105: 3007529.078 | H105: 3051312.911 | I105: 3099177.62 | J105: 3142198.099
C106: Finance | D106: 9599038.912 | E106: 9305501.072 | F106: 9376352.514 | G106: 9464889.731 | H106: 9602680.302 | I106: 9753313.656 | J106: 9888701.903
C107: Information technology | D107: 17880101.43 | E107: 17333329.36 | F107: 17465304.14 | G107: 17630222.15 | H107: 17886884.24 | I107: 18167468.54 | J107: 18419655.83
C108: HR & Payroll | D108: 10429714.58 | E108: 10110774.74 | F108: 10187757.48 | G108: 10283956.48 | H108: 10433671.09 | I108: 10597339.86 | J108: 10744444.25
B124: Negotiated Services | C124: Total | D124: 1425050.789 | E124: 1381472.85 | F124: 1391991.289 | G124: 1405135.316 | H124: 1425591.381 | I124: 1447954.055 | J124: 1468053.476
B125: Unregulated Services | C125: Total | D125: 4805114.131 | E125: 4658174.127 | F125: 4693641.142 | G125: 4737961.354 | H125: 4806936.949 | I125: 4882341.42 | J125: 4950114.453

Sheet 2.11 Labour
B1: =(LOOKUP(dms_Model,dms_Model_List,dms_Worksheet_List)) -> REGULATORY REPORTING STATEMENT
B2: =INDEX(dms_TradingNameFull_List,MATCH(dms_TradingName,dms_TradingName_List)) -> TransGrid
B3: =IF(SUM(dms_SingleYear_Model)>0,CRY,CONCATENATE(FRCP_y1," to ",dms_MultiYear_FinalYear_Result)) -> 2018-19 to 2022-23
B4: 2.11 LABOUR
B6: There is ONE table on this worksheet. The table has been 'grouped' (and sub-grouped) for easy navigation. See the Instructions sheet on how to group or ungroup data.
B8: Table numbering in this template starts at 2.11.3. Tables 2.11.1 & 2.11.2 appear in the Category Analysis RIN and are not required for this RIN.
B10: 2.11.3 - LABOUR / NON-LABOUR EXPENDITURE SPLIT
B11: OPEX
C12: EXPENDITURE
C13: ($0's, nominal) | H13: =CONCATENATE("($0's, real ", dms_DollarReal,")") -> ($0's, real June 2018)
C14: =PRCP_y4 -> 2011-12 | D14: =PRCP_y5 -> 2012-13 | E14: =CRCP_y1 -> 2013-14 | F14: =CRCP_y2 -> 2014-15 | G14: =CRCP_y3 -> 2015-16 | H14: =CRCP_y4 -> 2016-17 | I14: =CRCP_y5 -> 2017-18 | J14: =FRCP_y1 -> 2018-19 | K14: =FRCP_y2 -> 2019-20 | L14: =FRCP_y3 -> 2020-21 | M14: =FRCP_y4 -> 2021-22 | N14: =FRCP_y5 -> 2022-23
B15: In-house labour expenditure
B16: Labour expenditure outsourced to related parties
B17: Labour expenditure outsourced to unrelated parties
B18: Controllable non-labour expenditure
B19: Uncontrollable non-labour expenditure
B20: Total | C20: =SUM(C15:C19) -> 0 | D20: =SUM(D15:D19) -> 0 | E20: 0 | F20: 0 | G20: 0 | H20: 0 | I20: =SUM(I15:I19) -> 0 | J20: 0 | K20: 0 | L20: 0 | M20: 0 | N20: 0
B22: CAPEX
C23: EXPENDITURE
C24: ($0's, nominal) | H24: =CONCATENATE("($0's, real ", dms_DollarReal,")") -> ($0's, real June 2018)
C25: =PRCP_y4 -> 2011-12 | D25: =PRCP_y5 -> 2012-13 | E25: =CRCP_y1 -> 2013-14 | F25: =CRCP_y2 -> 2014-15 | G25: =CRCP_y3 -> 2015-16 | H25: =CRCP_y4 -> 2016-17 | I25: =CRCP_y5 -> 2017-18 | J25: =FRCP_y1 -> 2018-19 | K25: =FRCP_y2 -> 2019-20 | L25: =FRCP_y3 -> 2020-21 | M25: =FRCP_y4 -> 2021-22 | N25: =FRCP_y5 -> 2022-23
B26: In-house labour expenditure
B27: Labour expenditure outsourced to related parties
B28: Labour expenditure outsourced to unrelated parties
B29: Controllable non-labour expenditure
B30: Uncontrollable non-labour expenditure
B31: Total | C31: =SUM(C26:C30) -> 0 | D31: =SUM(D26:D30) -> 0 | E31: 0 | F31: 0 | G31: 0 | H31: 0 | I31: =SUM(I26:I30) -> 0 | J31: 0 | K31: 0 | L31: 0 | M31: 0 | N31: 0

Sheet 2.14 Forecast price changes
B1: =(LOOKUP(dms_Model,dms_Model_List,dms_Worksheet_List)) -> REGULATORY REPORTING STATEMENT
B2: =INDEX(dms_TradingNameFull_List,MATCH(dms_TradingName,dms_TradingName_List)) -> TransGrid
B3: =IF(SUM(dms_SingleYear_Model)>0,CRY,CONCATENATE(FRCP_y1," to ",dms_MultiYear_FinalYear_Result)) -> 2018-19 to 2022-23
B4: 2.14 FORECAST PRICE CHANGES
B6: Instructions
B7: =CONCATENATE(dms_TradingName, " must provide all forecast price changes used to forecast opex and capex, including forecast changes in CPI. "&"Forecast price changes must be expressed in real terms, except for CPI. If the same escalators are not used for capex and opex, report capex and opex escalators separately. "&"If price changes for a given year were not used to forecast either opex or capex enter '0' for that year.") -> TransGrid must provide all forecast price changes used to forecast opex and capex, including forecast changes in CPI. Forecast price changes must be expressed in real terms, except for CPI. If the same escalators are not used for capex and opex, report capex and opex escalators separately. If price changes for a given year were not used to forecast either opex or capex enter '0' for that year.
B9: 2.14.1 - FORECAST LABOUR AND MATERIALS PRICE CHANGES
C10: Price changes (% YoY real) Current regulatory period | H10: Price changes (%YoY real) Forthcoming regulatory period
C11: Actual | F11: Forecast
C12: =CRCP_y1 -> 2013-14 | D12: =CRCP_y2 -> 2014-15 | E12: =CRCP_y3 -> 2015-16 | F12: =CRCP_y4 -> 2016-17 | G12: =CRCP_y5 -> 2017-18 | H12: =FRCP_y1 -> 2018-19 | I12: =FRCP_y2 -> 2019-20 | J12: =FRCP_y3 -> 2020-21 | K12: =FRCP_y4 -> 2021-22 | L12: =FRCP_y5 -> 2022-23
B13: Materials price changes
B14: N/a | C14: 0 | D14: 0 | E14: 0 | F14: 0 | G14: 0 | H14: 0 | I14: 0 | J14: 0 | K14: 0 | L14: 0
B44: Labour and Other price changes
B45: EGWWS WPI for the Private Sector: Australia | C45: 0.004905070647 | D45: 0.01535967104 | E45: 0.01305684544 | F45: 0.006786666191 | G45: 0.01038349611 | H45: 0.01082778183 | I45: 0.01279896979 | J45: 0.01715102605 | K45: 0.0193380445 | L45: 0.01895509987
B60: CPI | C60: 0.0271393643 | D60: 0.01713877648 | E60: 0.0138076293 | F60: 0.02390881249 | G60: 0.02390881249 | H60: 0.02390881249 | I60: 0.02390881249 | J60: 0.02390881249 | K60: 0.02390881249 | L60: 0.02390881249

Sheet 2.16 Opex Summary
B1: =(LOOKUP(dms_Model,dms_Model_List,dms_Worksheet_List)) -> REGULATORY REPORTING STATEMENT
B2: =INDEX(dms_TradingNameFull_List,MATCH(dms_TradingName,dms_TradingName_List)) -> TransGrid
B3: =IF(SUM(dms_SingleYear_Model)>0,CRY,CONCATENATE(FRCP_y1," to ",dms_MultiYear_FinalYear_Result)) -> 2018-19 to 2022-23
B4: 2.16 OPEX SUMMARY
B6: Instructions
B7: =CONCATENATE("Complete the tables below in accordance with the regulatory information notice. ",dms_TradingName, "'s total forecast opex must reconcile to Table 2.16.1. If ",dms_TradingName," did not forecast its total opex using a Base Year approach, total forecast opex must reconcile to Table 2.16.2") -> Complete the tables below in accordance with the regulatory information notice. TransGrid's total forecast opex must reconcile to Table 2.16.1. If TransGrid did not forecast its total opex using a Base Year approach, total forecast opex must reconcile to Table 2.16.2 | H7: IMPORTANT! Have you used a base-step-trend model to derive your opex forecast? Yes/No | J7: Yes
B8: The total step changes and category specific forecasts in Table 2.16.1 must reconcile (in each year) to the total step changes and category specific forecasts for each year in Tables 2.17.1 and 2.17.5 of worksheet 2.17 Step Changes.")
B10: 2.16.1 - PRESCRIBED TRANSMISSION SERVICES - OPEX BY DRIVER
C11: =CONCATENATE("Forecast ($0's, real ", dms_DollarReal, ")") -> Forecast ($0's, real June 2018)
C12: =CRCP_y4 -> 2016-17 | D12: =CRCP_y5 -> 2017-18 | E12: =FRCP_y1 -> 2018-19 | F12: =FRCP_y2 -> 2019-20 | G12: =FRCP_y3 -> 2020-21 | H12: =FRCP_y4 -> 2021-22 | I12: =FRCP_y5 -> 2022-23
B13: Efficient historic opex | C13: 173734966.3 | D13: 173734966.3 | E13: 168422165 | F13: 169704519.7 | G13: 171306972.9 | H13: 173800872.6 | I13: 176527216.4
B14: Real price changes | C14: 0 | D14: 1264068.365 | E14: 1281939.093 | F14: 1531726.132 | G14: 2079673.941 | H14: 2390660.078 | I14: 2393088.113
B15: Output growth | C15: 0 | D15: 25059.02654 | E15: 415.6262034 | F15: 70727.05252 | G15: 414225.755 | H15: 335683.7598 | I15: 57331.4292
B16: Productivity growth | C16: 0 | D16: 0 | E16: 0 | F16: 0 | G16: 0 | H16: 0 | I16: 0
B17: Step changes | C17: 0 | D17: 0 | E17: 7459231.96 | F17: 7459231.96 | G17: 7459231.96 | H17: 7459231.96 | I17: 7459231.96
B18: Category specific forecasts | C18: 0 | D18: -6601928.721 | E18: 0 | F18: 0 | G18: 0 | H18: 0 | I18: 0
B19: Total opex | C19: =SUM(C13:C18) -> 173734966.3 | D19: 168422165 | E19: 177163751.7 | F19: 178766204.9 | G19: 181260104.6 | H19: 183986448.4 | I19: 186436867.9
B23: 2.16.2 - PRESCRIBED TRANSMISSION SERVICES - OPEX BY CATEGORY
C24: =CONCATENATE("Forecast ($0's, real ", dms_DollarReal, ")") -> Forecast ($0's, real June 2018)
C25: =CRCP_y4 -> 2016-17 | D25: =CRCP_y5 -> 2017-18 | E25: =FRCP_y1 -> 2018-19 | F25: =FRCP_y2 -> 2019-20 | G25: =FRCP_y3 -> 2020-21 | H25: =FRCP_y4 -> 2021-22 | I25: =FRCP_y5 -> 2022-23
B56: Total opex | C56: =SUM(C26:C55) -> 0 | D56: 0 | E56: 0 | F56: 0 | G56: 0 | H56: 0 | I56: 0

Sheet 2.17 Step Changes
B1: =(LOOKUP(dms_Model,dms_Model_List,dms_Worksheet_List)) -> REGULATORY REPORTING STATEMENT
B2: =INDEX(dms_TradingNameFull_List,MATCH(dms_TradingName,dms_TradingName_List)) -> TransGrid
B3: =IF(SUM(dms_SingleYear_Model)>0,CRY,CONCATENATE(FRCP_y1," to ",dms_MultiYear_FinalYear_Result)) -> 2018-19 to 2022-23
B4: 2.17 STEP CHANGES
B6: Instructions
B7: Complete the Tables below in accordance with the regulatory information notice. The total step changes and category specific forecasts in Tables 2.17.1 and 2.17.5 must reconcile (in each year) to the total step changes and category specific forecasts for each year in Table 2.16.1 of worksheet 2.16 Opex Summary.
B9: 2.17.1 - OPEX STEP CHANGES
D10: EXPENDITURE
D11: =CONCATENATE("Forecast ($0's, real ", dms_DollarReal, ")") -> Forecast ($0's, real June 2018)
B12: Step change | C12: Description | D12: =CRCP_y4 -> 2016-17 | E12: =CRCP_y5 -> 2017-18 | F12: =FRCP_y1 -> 2018-19 | G12: =FRCP_y2 -> 2019-20 | H12: =FRCP_y3 -> 2020-21 | I12: =FRCP_y4 -> 2021-22 | J12: =FRCP_y5 -> 2022-23
B13: RIT-T rule changes | C13: RIT-T rule changes | D13: 0 | E13: 0 | F13: 0 | G13: 0 | H13: 0 | I13: 0 | J13: 0
B14: Compliance | C14: Data sovereignty requirements | D14: 0 | E14: 0 | F14: 0 | G14: 0 | H14: 0 | I14: 0 | J14: 0
B15: Hazard trees | C15: Hazard trees | D15: 0 | E15: 0 | F15: 7459231.956 | G15: 7459231.956 | H15: 7459231.956 | I15: 7459231.956 | J15: 7459231.956
B27: Total | D27: =SUM(D13:D26) -> 0 | E27: 0 | F27: 7459231.956 | G27: 7459231.956 | H27: 7459231.956 | I27: 7459231.956 | J27: 7459231.956
B28: Check | F28: =IF(F$27-'2.16 Opex Summary'!C$17=0,"OK","Error") -> Error | G28: =IF(G$27-'2.16 Opex Summary'!D$17=0,"OK","Error") -> Error | H28: =IF(H$27-'2.16 Opex Summary'!E$17=0,"OK","Error") -> Error | I28: =IF(I$27-'2.16 Opex Summary'!F$17=0,"OK","Error") -> Error | J28: =IF(J$27-'2.16 Opex Summary'!G$17=0,"OK","Error") -> Error
B31: 2.17.2 - CAPEX STEP CHANGES
D32: EXPENDITURE
D33: =CONCATENATE("Forecast ($0's, real ", dms_DollarReal, ")") -> Forecast ($0's, real June 2018)
B34: Step change | C34: Description | D34: =CRCP_y4 -> 2016-17 | E34: =CRCP_y5 -> 2017-18 | F34: =FRCP_y1 -> 2018-19 | G34: =FRCP_y2 -> 2019-20 | H34: =FRCP_y3 -> 2020-21 | I34: =FRCP_y4 -> 2021-22 | J34: =FRCP_y5 -> 2022-23
B35: N/a | D35: 0 | E35: 0 | F35: 0 | G35: 0 | H35: 0 | I35: 0 | J35: 0
B50: Total | D50: =SUM(D35:D49) -> 0 | E50: =SUM(E35:E49) -> 0 | F50: 0 | G50: 0 | H50: 0 | I50: 0 | J50: 0
B53: 2.17.5 - CATEGORY SPECIFIC OPEX
D54: EXPENDITURE
D55: =CONCATENATE("Forecast ($0's, real ", dms_DollarReal, ")") -> Forecast ($0's, real June 2018)
B56: Category | C56: Description | D56: =CRCP_y4 -> 2016-17 | E56: =CRCP_y5 -> 2017-18 | F56: =FRCP_y1 -> 2018-19 | G56: =FRCP_y2 -> 2019-20 | H56: =FRCP_y3 -> 2020-21 | I56: =FRCP_y4 -> 2021-22 | J56: =FRCP_y5 -> 2022-23
B57: Final phase of TransGrid transformation programme in 2017-18 | C57: Final phase of TransGrid transformation programme in 2017-18 | D57: 0 | E57: -6601928.721 | F57: 0 | G57: 0 | H57: 0 | I57: 0 | J57: 0
B71: Total | D71: =SUM(D57:D70) -> 0 | E71: -6601928.721 | F71: 0 | G71: 0 | H71: 0 | I71: 0 | J71: 0
B72: Check | F72: =IF(F$71-'2.16 Opex Summary'!C$18=0,"OK","Error") -> OK | G72: =IF(G$71-'2.16 Opex Summary'!D$18=0,"OK","Error") -> Error | H72: =IF(H$71-'2.16 Opex Summary'!E$18=0,"OK","Error") -> OK | I72: =IF(I$71-'2.16 Opex Summary'!F$18=0,"OK","Error") -> OK | J72: =IF(J$71-'2.16 Opex Summary'!G$18=0,"OK","Error") -> OK

Sheet 3.1 Revenue
B1: =(LOOKUP(dms_Model,dms_Model_List,dms_Worksheet_List)) -> REGULATORY REPORTING STATEMENT
B2: =INDEX(dms_TradingNameFull_List,MATCH(dms_TradingName,dms_TradingName_List)) -> TransGrid
B3: =IF(SUM(dms_SingleYear_Model)>0,CRY,CONCATENATE(FRCP_y1," to ",dms_MultiYear_FinalYear_Result)) -> 2018-19 to 2022-23
B4: 3.1 REVENUE
B8: 3.1.1 - REVENUE GROUPING BY CHARGEABLE QUANTITY
C9: REVENUE
C10: =CONCATENATE("Forecast ($0's, real ",dms_DollarReal,")") -> Forecast ($0's, real June 2018)
C11: =CRCP_y4 -> 2016-17 | D11: =CRCP_y5 -> 2017-18 | E11: =FRCP_y1 -> 2018-19 | F11: =FRCP_y2 -> 2019-20 | G11: =FRCP_y3 -> 2020-21 | H11: =FRCP_y4 -> 2021-22 | I11: =FRCP_y5 -> 2022-23
A12: TREV0101 | B12: From Fixed Customer (Exit Point) Charges | C12: 37815155.53 | D12: 36680755.53 | E12: 39629907.78 | F12: 40380508.82 | G12: 40083529.32 | H12: 40922110.56 | I12: 41391267.5
A13: TREV0102 | B13: From Variable Customer (Exit Point) Charges | C13: 0 | D13: 0 | E13: 0 | F13: 0 | G13: 0 | H13: 0 | I13: 0
A14: TREV0103 | B14: From Fixed Generator (Entry Point) Charges | C14: 4445661.647 | D14: 4312298.224 | E14: 4659009.295 | F14: 4747252.175 | G14: 4712338.386 | H14: 4810924.48 | I14: 4866079.959
A15: TREV0104 | B15: From Variable Generator (Entry Point) Charges | C15: 0 | D15: 0 | E15: 0 | F15: 0 | G15: 0 | H15: 0 | I15: 0
A16: TREV0105 | B16: From Fixed Energy Usage Charges (Charge per day basis) | C16: 11834433.04 | D16: 11479417.16 | E16: 12402368.4 | F16: 12637272.57 | G16: 12544331.42 | H16: 12806769.42 | I16: 12953594.32
A17: TREV0106 | B17: From Variable Energy Usage charges (Charge per kWh basis) | C17: 5934633.942 | D17: 5756603.503 | E17: 6219437.486 | F17: 6337235.293 | G17: 6290627.932 | H17: 6422233.174 | I17: 6495861.714
A18: TREV0107 | B18: From Energy based Common Service and General Charges | C18: 441989527.5 | D18: 428730480.6 | E18: 463200639.2 | F18: 471973783.1 | G18: 468502639.7 | H18: 478304110 | I18: 483787690.6
A19: TREV0108 | B19: From Fixed Demand based Usage Charges | C19: 5918535.23 | D19: 5740987.729 | E19: 6202566.195 | F19: 6320044.456 | G19: 6273563.526 | H19: 6404811.766 | I19: 6478240.576
A20: TREV0109 | B20: From Variable Demand based Usage Charges | C20: 199103885.2 | D20: 193131056.5 | E20: 208658896.1 | F20: 212610951.4 | G20: 211047298.6 | H20: 215462586.1 | I20: 217932785.4
A21: TREV0110 | B21: Revenue from other Sources | C21: 35266712.4 | D21: 34208762.01 | E21: 36959164.67 | F21: 37659181.12 | G21: 37382215.7 | H21: 38164283.18 | I21: 38601822.64
A22: TREV01 | B22: Total revenue by chargeable quantity | C22: =SUM(C12:C21) -> 742308544.5 | D22: =SUM(D12:D21) -> 720040361.2 | E22: 777931989.2 | F22: 792666228.9 | G22: 786836544.6 | H22: 803297828.7 | I22: 812507342.7
B25: 3.1.2 - REVENUE GROUPING BY TYPE OF CONNECTED EQUIPMENT
C26: REVENUE
C27: =CONCATENATE("Forecast ($0's, real ",dms_DollarReal,")") -> Forecast ($0's, real June 2018)
C28: =CRCP_y4 -> 2016-17 | D28: =CRCP_y5 -> 2017-18 | E28: =FRCP_y1 -> 2018-19 | F28: =FRCP_y2 -> 2019-20 | G28: =FRCP_y3 -> 2020-21 | H28: =FRCP_y4 -> 2021-22 | I28: =FRCP_y5 -> 2022-23
A29: TREV0201 | B29: From Other connected transmission networks
A30: TREV0202 | B30: From Distribution networks
A31: TREV0203 | B31: From Directly connected end–users
A32: TREV0204 | B32: From Generators
A33: TREV0205 | B33: Other revenue
A34: TREV02 | B34: Total revenue by type of connected equipment | C34: =SUM(C29:C33) -> 0 | D34: =SUM(D29:D33) -> 0 | E34: 0 | F34: 0 | G34: 0 | H34: 0 | I34: 0
B37: 3.1.3 - REVENUE (penalties) ALLOWED (deducted) THROUGH INCENTIVE SCHEMES
C38: =CONCATENATE("Forecast ($0's, real ",dms_DollarReal,")") -> Forecast ($0's, real June 2018)
C39: =CRCP_y4 -> 2016-17 | D39: =CRCP_y5 -> 2017-18 | E39: =FRCP_y1 -> 2018-19 | F39: =FRCP_y2 -> 2019-20 | G39: =FRCP_y3 -> 2020-21 | H39: =FRCP_y4 -> 2021-22 | I39: =FRCP_y5 -> 2022-23
A40: TREV0301 | B40: EBSS
A41: TREV0302 | B41: STPIS
A42: TREV0303 | B42: Other
A43: TREV03 | B43: Total revenue of incentive schemes | C43: =SUM(C40:C42) -> 0 | D43: =SUM(D40:D42) -> 0 | E43: 0 | F43: 0 | G43: 0 | H43: 0 | I43: 0

Sheet 3.2 Operating expenditure
B1: =(LOOKUP(dms_Model,dms_Model_List,dms_Worksheet_List)) -> REGULATORY REPORTING STATEMENT
B2: =INDEX(dms_TradingNameFull_List,MATCH(dms_TradingName,dms_TradingName_List)) -> TransGrid
B3: =IF(SUM(dms_SingleYear_Model)>0,CRY,CONCATENATE(FRCP_y1," to ",dms_MultiYear_FinalYear_Result)) -> 2018-19 to 2022-23
B4: 3.2 OPERATING EXPENDITURE
B7: Instructions Table 3.2.1.2 must be completed if there are any proposed changes to the CAM reported in response to Schedule 1, paragraph 1.3. | F7: =CONCATENATE("IMPORTANT! Does ",dms_TradingName, " propose to change its CAM? Yes / No" ) -> IMPORTANT! Does TransGrid propose to change its CAM? Yes / No | H7: Yes
B9: 3.2.1 - OPEX CATEGORIES
B10: 3.2.1.1 - CURRENT OPEX CATEGORIES AND COST ALLOCATIONS
C11: EXPENDITURE
C12: =CONCATENATE("Forecast ($0's, real ",dms_DollarReal,")") -> Forecast ($0's, real June 2018)
C13: =CRCP_y4 -> 2016-17 | D13: =CRCP_y5 -> 2017-18 | E13: =FRCP_y1 -> 2018-19 | F13: =FRCP_y2 -> 2019-20 | G13: =FRCP_y3 -> 2020-21 | H13: =FRCP_y4 -> 2021-22 | I13: =FRCP_y5 -> 2022-23
B14: Maintenance - Lines and Cable | C14: 15158297.16 | D14: 14697029.31 | E14: 14808969.37 | F14: 14955219.21 | G14: 15210510.7 | H14: 15479548.78 | I14: 15699630.64
B15: Maintenance - Substations | C15: 29980678.15 | D15: 29068364.39 | E15: 29289763.87 | F15: 29579022.57 | G15: 30083948.15 | H15: 30616062.27 | I15: 31051348.86
B16: Maintenance - Communications | C16: 3773324.49 | D16: 3658502.009 | E16: 3686367.025 | F16: 3722772.703 | G16: 3786321.902 | H16: 3853293.01 | I16: 3908077.546
B17: Maintenance - Secondary Systems | C17: 4280839.398 | D17: 4150573.21 | E17: 4182186.091 | F17: 4223488.359 | G17: 4295584.972 | H17: 4371563.743 | I17: 4433716.839
B18: Maintenance - Land and Easements | C18: 14404240 | D18: 13965918.14 | E18: 21531521.65 | F18: 21670496.22 | G18: 21913088.1 | H18: 22168742.74 | I18: 22377876.52
B19: Maintenance Support and Asset Management | C19: 8535036.906 | D19: 8273465.659 | E19: 8336449.96 | F19: 8413558.155 | G19: 8526616.209 | H19: 8652730.358 | I19: 8771544.972
B20: Operations / Control Room | C20: 10089291.23 | D20: 9780087.118 | E20: 9854541.039 | F20: 9945690.853 | G20: 10079337.1 | H20: 10228416.99 | I20: 10368868.08
B21: Grid Planning | C21: 8494438.58 | D21: 8234111.541 | E21: 8296796.246 | F21: 8373537.663 | G21: 8486057.937 | H21: 8611572.204 | I21: 8729821.656
B22: Insurance | C22: 9462197.726 | D22: 9171772.608 | E22: 9241588.271 | F22: 9325828.403 | G22: 9443885.441 | H22: 9577703.971 | I22: 9708222.11
B23: Rates & Taxes | C23: 4934935.715 | D23: 4783878.264 | E23: 4820296.856 | F23: 4865376.072 | G23: 4933593.159 | H23: 5008715.28 | I23: 5077685.299
B24: Property Management | C24: 1673332.107 | D24: 1622049.895 | E24: 1634398.249 | F24: 1649515.655 | G24: 1671681.191 | H24: 1696406.433 | I24: 1719700.569
B25: Environmental | C25: 3108857.144 | D25: 3013580.738 | E25: 3036522.548 | F25: 3064608.936 | G25: 3105789.934 | H25: 3151726.569 | I25: 3195004.374
B26: Corporate Governance | C26: 13779549.71 | D26: 13356611.25 | E26: 13458281.96 | F26: 13580958.65 | G26: 13752882.01 | H26: 13947758.42 | I26: 14137828.55
B27: Customer Relations | C27: 6184241.567 | D27: 5994427.409 | E27: 6040057.076 | F27: 6095114.193 | G27: 6172273.143 | H27: 6259733.386 | I27: 6345036.581
B28: Regulatory | C28: 3050155.836 | D28: 2956536.796 | E28: 2979041.996 | F28: 3006196.948 | G28: 3044252.839 | H28: 3087389.474 | I28: 3129462.222
B29: Finance | C29: 9599038.912 | D29: 9304413.7 | E29: 9375239.029 | F29: 9460697.431 | G29: 9580461.796 | H29: 9716215.594 | I29: 9848621.271
B30: Information Technology | C30: 16796797.13 | D30: 16281249.69 | E30: 16405182.79 | F30: 16554721.46 | G30: 16764290.12 | H30: 17001837.75 | I30: 17233526.71
B31: HR & Payroll | C31: 10429714.58 | D31: 10109593.27 | E31: 10186547.64 | F31: 10279401.39 | G31: 10409529.85 | H31: 10557031.42 | I31: 10700895.14
B48: Total opex | C48: =SUM(C14:C47) -> 173734966.3 | D48: =SUM(D14:D47) -> 168422165 | E48: 177163751.7 | F48: 178766204.9 | G48: 181260104.6 | H48: 183986448.4 | I48: 186436867.9
B50: 3.2.1.2 - PROPOSED OPEX CATEGORIES AND COST ALLOCATIONS
C51: EXPENDITURE
C52: =CONCATENATE("Forecast ($0's, real ",dms_DollarReal,")") -> Forecast ($0's, real June 2018)
C53: =CRCP_y4 -> 2016-17 | D53: =CRCP_y5 -> 2017-18 | E53: =FRCP_y1 -> 2018-19 | F53: =FRCP_y2 -> 2019-20 | G53: =FRCP_y3 -> 2020-21 | H53: =FRCP_y4 -> 2021-22 | I53: =FRCP_y5 -> 2022-23
B54: Maintenance - Lines and Cable | C54: 15158297.16 | D54: 14697029.31 | E54: 14808969.37 | F54: 14955219.21 | G54: 15210510.7 | H54: 15479548.78 | I54: 15699630.64
B55: Maintenance - Substations | C55: 29980678.15 | D55: 29068364.39 | E55: 29289763.87 | F55: 29579022.57 | G55: 30083948.15 | H55: 30616062.27 | I55: 31051348.86
B56: Maintenance - Communications | C56: 3773324.49 | D56: 3658502.009 | E56: 3686367.025 | F56: 3722772.703 | G56: 3786321.902 | H56: 3853293.01 | I56: 3908077.546
B57: Maintenance - Secondary Systems | C57: 4280839.398 | D57: 4150573.21 | E57: 4182186.091 | F57: 4223488.359 | G57: 4295584.972 | H57: 4371563.743 | I57: 4433716.839
B58: Maintenance - Land and Easements | C58: 14404240 | D58: 13965918.14 | E58: 21531521.65 | F58: 21670496.22 | G58: 21913088.1 | H58: 22168742.74 | I58: 22377876.52
B59: Maintenance Support and Asset Management | C59: 8535036.906 | D59: 8273465.659 | E59: 8336449.96 | F59: 8413558.155 | G59: 8526616.209 | H59: 8652730.358 | I59: 8771544.972
B60: Operations / Control Room | C60: 10089291.23 | D60: 9780087.118 | E60: 9854541.039 | F60: 9945690.853 | G60: 10079337.1 | H60: 10228416.99 | I60: 10368868.08
B61: Grid Planning | C61: 8494438.58 | D61: 8234111.541 | E61: 8296796.246 | F61: 8373537.663 | G61: 8486057.937 | H61: 8611572.204 | I61: 8729821.656
B62: Insurance | C62: 9462197.726 | D62: 9171772.608 | E62: 9241588.271 | F62: 9325828.403 | G62: 9443885.441 | H62: 9577703.971 | I62: 9708222.11
B63: Rates & Taxes | C63: 4934935.715 | D63: 4783878.264 | E63: 4820296.856 | F63: 4865376.072 | G63: 4933593.159 | H63: 5008715.28 | I63: 5077685.299
B64: Property Management | C64: 1673332.107 | D64: 1622049.895 | E64: 1634398.249 | F64: 1649515.655 | G64: 1671681.191 | H64: 1696406.433 | I64: 1719700.569
B65: Environmental | C65: 3108857.144 | D65: 3013580.738 | E65: 3036522.548 | F65: 3064608.936 | G65: 3105789.934 | H65: 3151726.569 | I65: 3195004.374
B66: Corporate Governance | C66: 13779549.71 | D66: 13356611.25 | E66: 13458281.96 | F66: 13580958.65 | G66: 13752882.01 | H66: 13947758.42 | I66: 14137828.55
B67: Customer Relations | C67: 6184241.567 | D67: 5994427.409 | E67: 6040057.076 | F67: 6095114.193 | G67: 6172273.143 | H67: 6259733.386 | I67: 6345036.581
B68: Regulatory | C68: 3050155.836 | D68: 2956536.796 | E68: 2979041.996 | F68: 3006196.948 | G68: 3044252.839 | H68: 3087389.474 | I68: 3129462.222
B69: Finance | C69: 9599038.912 | D69: 9304413.7 | E69: 9375239.029 | F69: 9460697.431 | G69: 9580461.796 | H69: 9716215.594 | I69: 9848621.271
B70: Information Technology | C70: 16796797.13 | D70: 16281249.69 | E70: 16405182.79 | F70: 16554721.46 | G70: 16764290.12 | H70: 17001837.75 | I70: 17233526.71
B71: HR & Payroll | C71: 10429714.58 | D71: 10109593.27 | E71: 10186547.64 | F71: 10279401.39 | G71: 10409529.85 | H71: 10557031.42 | I71: 10700895.14
B88: Total opex | C88: =SUM(C54:C87) -> 173734966.3 | D88: =SUM(D54:D87) -> 168422165 | E88: =SUM(E54:E87) -> 177163751.7 | F88: 178766204.9 | G88: 181260104.6 | H88: 183986448.4 | I88: 186436867.9
B92: 3.2.2 - OPEX CONSISTENCY
B93: CURRENT COST ALLOCATION APPROACH
C94: EXPENDITURE
C95: =CONCATENATE("Forecast ($0's, real ",dms_DollarReal,")") -> Forecast ($0's, real June 2018)
C96: =CRCP_y4 -> 2016-17 | D96: =CRCP_y5 -> 2017-18 | E96: =FRCP_y1 -> 2018-19 | F96: =FRCP_y2 -> 2019-20 | G96: =FRCP_y3 -> 2020-21 | H96: =FRCP_y4 -> 2021-22 | I96: =FRCP_y5 -> 2022-23
A97: TOPEX0201 | B97: Opex for subtransmission assets
A98: TOPEX0202 | B98: Opex for HV assets

Sheet 3.3 Assets (RAB)
B1: =(LOOKUP(dms_Model,dms_Model_List,dms_Worksheet_List)) -> REGULATORY REPORTING STATEMENT
B2: =INDEX(dms_TradingNameFull_List,MATCH(dms_TradingName,dms_TradingName_List)) -> TransGrid
B3: =IF(SUM(dms_SingleYear_Model)>0,CRY,CONCATENATE(FRCP_y1," to ",dms_MultiYear_FinalYear_Result)) -> 2018-19 to 2022-23
B4: 3.3 ASSETS
B6: There are FOUR tables on this worksheet. Each table has been grouped (and sub-grouped) for ease of navigation. See the Instructions sheet on how to group or ungroup tables.
B8: 3.3.1 - REGULATORY ASSET BASE VALUES
C9: =CONCATENATE("Forecast ($0's, real ",dms_DollarReal,")") -> Forecast ($0's, real June 2018)
C10: =CRCP_y4 -> 2016-17 | D10: =CRCP_y5 -> 2017-18 | E10: =FRCP_y1 -> 2018-19 | F10: =FRCP_y2 -> 2019-20 | G10: =FRCP_y3 -> 2020-21 | H10: =FRCP_y4 -> 2021-22 | I10: =FRCP_y5 -> 2022-23
B11: For total asset base:
A12: TRAB0101 | B12: Opening value | C12: 6538831096 | D12: 6462063258 | E12: 6405612981 | F12: 6372811230 | G12: 6414593698 | H12: 6477071508 | I12: 6561862438
A13: TRAB0102 | B13: Inflation addition | C13: 0 | D13: 0 | E13: 0 | F13: 0 | G13: 0 | H13: 0 | I13: 0
A14: TRAB0103 | B14: Straight line depreciation | C14: -285302163 | D14: -266407531.8 | E14: -255468053.4 | F14: -268519200.3 | G14: -279485402.1 | H14: -284161938.2 | I14: -294392139.2
A15: TRAB0105 | B15: Actual additions (recognised in RAB) | C15: 212511930 | D15: 212591301.1 | E15: 225461654 | F15: 313097019.7 | G15: 344758564 | H15: 377639615.3 | I15: 410399008.7
A16: TRAB0106 | B16: Disposals | C16: -3977604.906 | D16: -2634045.494 | E16: -2795351.703 | F16: -2795351.703 | G16: -2795351.703 | H16: -8686747.585 | I16: -2795351.703
A17: TRAB0107 | B17: Closing value | C17: 6462063258 | D17: 6405612981 | E17: 6372811230 | F17: 6414593698 | G17: 6477071508 | H17: 6561862438 | I17: 6675073956
B20: 3.3.2 - ASSET VALUE ROLL FORWARD
C21: =CONCATENATE("Forecast ($0's, real ",dms_DollarReal,")") -> Forecast ($0's, real June 2018)
C22: =CRCP_y4 -> 2016-17 | D22: =CRCP_y5 -> 2017-18 | E22: =FRCP_y1 -> 2018-19 | F22: =FRCP_y2 -> 2019-20 | G22: =FRCP_y3 -> 2020-21 | H22: =FRCP_y4 -> 2021-22 | I22: =FRCP_y5 -> 2022-23
B23: For overhead assets:
A24: TRAB0201 | B24: Opening value | C24: 1788042000 | D24: 1764012206 | E24: 1752878575 | F24: 1688794521 | G24: 1639250894 | H24: 1593587798 | I24: 1554333482
A25: TRAB0202 | B25: Inflation addition | C25: 0 | D25: 0 | E25: 0 | F25: 0 | G25: 0 | H25: 0 | I25: 0
A26: TRAB0203 | B26: Straight line depreciation | C26: -81276838.63 | D26: -81838428.89 | E26: -81990503.39 | F26: -82511770.29 | G26: -82725736.06 | H26: -82733492.31 | I26: -82762941.33
A27: TRAB0205 | B27: Actual additions (recognised in RAB) | C27: 57247044.27 | D27: 70704797.73 | E27: 17906449.45 | F27: 32968144.11 | G27: 37062639.23 | H27: 43479176.4 | I27: 50734557.14
A28: TRAB0206 | B28: Disposals | C28: 0 | D28: 0 | E28: 0 | F28: 0 | G28: 0 | H28: 0 | I28: 0
A29: TRAB0207 | B29: Closing value | C29: 1764012206 | D29: 1752878575 | E29: 1688794521 | F29: 1639250894 | G29: 1593587798 | H29: 1554333482 | I29: 1522305098
B30: For underground assets:
A31: TRAB0301 | B31: Opening value | C31: 215837434.6 | D31: 214814508.1 | E31: 207125897.9 | F31: 199635699.7 | G31: 194848705.3 | H31: 193189897.9 | I31: 209585998.9
A32: TRAB0302 | B32: Inflation addition | C32: 0 | D32: 0 | E32: 0 | F32: 0 | G32: 0 | H32: 0 | I32: 0
A33: TRAB0303 | B33: Straight line depreciation | C33: -7611343.441 | D33: -7735728.808 | E33: -7686848.374 | F33: -7686852.031 | G33: -7686855.687 | H33: -7686859.344 | I33: -7692752.779
A34: TRAB0305 | B34: Actual additions (recognised in RAB) | C34: 6588417.006 | D34: 47118.60611 | E34: 196650.1315 | F34: 2899857.621 | G34: 6028048.357 | H34: 24082960.34 | I34: 26363466.56
A35: TRAB0306 | B35: Disposals | C35: 0 | D35: 0 | E35: 0 | F35: 0 | G35: 0 | H35: 0 | I35: 0
A36: TRAB0307 | B36: Closing value | C36: 214814508.1 | D36: 207125897.9 | E36: 199635699.7 | F36: 194848705.3 | G36: 193189897.9 | H36: 209585998.9 | I36: 228256712.7
B37: For switchyards, substations
A38: TRAB0401 | B38: Opening value | C38: 3122044654 | D38: 3086857997 | E38: 3046546966 | F38: 3014822704 | G38: 3029565903 | H38: 3036454059 | I38: 3074864743
A39: TRAB0402 | B39: Inflation addition | C39: 0 | D39: 0 | E39: 0 | F39: 0 | G39: 0 | H39: 0 | I39: 0
A40: TRAB0403 | B40: Straight line depreciation | C40: -114153964.5 | D40: -117408232.8 | E40: -116945255.2 | F40: -119908589.8 | G40: -122729711.5 | H40: -125073782.9 | I40: -126461928.7
A41: TRAB0405 | B41: Actual additions (recognised in RAB) | C41: 78967307.54 | D41: 77097202.4 | E41: 85220992.42 | F41: 134651789 | G41: 129617867.7 | H41: 163484466.5 | I41: 184321171.4
A42: TRAB0406 | B42: Disposals | C42: 0 | D42: 0 | E42: 0 | F42: 0 | G42: 0 | H42: 0 | I42: 0
A43: TRAB0407 | B43: Closing value | C43: 3086857997 | D43: 3046546966 | E43: 3014822704 | F43: 3029565903 | G43: 3036454059 | H43: 3074864743 | I43: 3132723985
B44: For easements:
A45: TRAB0501 | B45: Opening value | C45: 947007306.8 | D45: 952786007 | E45: 956855411.9 | F45: 957209843 | G45: 958769988.8 | H45: 960866624.1 | I45: 962442983
A46: TRAB0502 | B46: Inflation addition | C46: 0 | D46: 0 | E46: 0 | F46: 0 | G46: 0 | H46: 0 | I46: 0
A47: TRAB0503 | B47: Straight line depreciation | C47: 0 | D47: 0 | E47: 0 | F47: 0 | G47: 0 | H47: 0 | I47: 0
A48: TRAB0505 | B48: Actual additions (recognised in RAB) | C48: 7069578.693 | D48: 4069404.873 | E48: 354431.0695 | F48: 1560145.868 | G48: 2096635.305 | H48: 7467754.711 | I48: 8851501.476
A49: TRAB0506 | B49: Disposals | C49: -1290878.502 | D49: 0 | E49: 0 | F49: 0 | G49: 0 | H49: -5891395.882 | I49: 0
A50: TRAB0507 | B50: Closing value | C50: 952786007 | D50: 956855411.9 | E50: 957209843 | F50: 958769988.8 | G50: 960866624.1 | H50: 962442983 | I50: 971294484.5
B51: For “other” assets with long lives:
A52: TRAB0601 | B52: Opening value | C52: 332871693.6 | D52: 326488019.5 | E52: 324281088.8 | F52: 392129759.2 | G52: 459629710.3 | H52: 553771270.8 | I52: 628764879.6
A53: TRAB0602 | B53: Inflation addition | C53: 0 | D53: 0 | E53: 0 | F53: 0 | G53: 0 | H53: 0 | I53: 0
A54: TRAB0603 | B54: Straight line depreciation | C54: -24676673.85 | D54: -20356405.04 | E54: -21242987.96 | F54: -23720607.37 | G54: -26644956.95 | H54: -31409754.73 | I54: -35708031.87
A55: TRAB0605 | B55: Actual additions (recognised in RAB) | C55: 18292999.75 | D55: 18149474.35 | E55: 89091658.34 | F55: 91220558.44 | G55: 120786517.4 | H55: 106403363.5 | I55: 104172240
A56: TRAB0606 | B56: Disposals | C56: 0 | D56: 0 | E56: 0 | F56: 0 | G56: 0 | H56: 0 | I56: 0
A57: TRAB0607 | B57: Closing value | C57: 326488019.5 | D57: 324281088.8 | E57: 392129759.2 | F57: 459629710.3 | G57: 553771270.8 | H57: 628764879.6 | I57: 697229087.7
B58: For “other” assets with short lives:
A59: TRAB0701 | B59: Opening value | C59: 133028006.8 | D59: 117104520.5 | E59: 117925041.9 | F59: 120218704.2 | G59: 132528496.4 | H59: 139201858.8 | I59: 131870351.9
A60: TRAB0702 | B60: Inflation addition | C60: 0 | D60: 0 | E60: 0 | F60: 0 | G60: 0 | H60: 0 | I60: 0
A61: TRAB0703 | B61: Straight line depreciation | C61: -57583342.62 | D61: -39068736.26 | E61: -27602458.51 | F61: -34691380.82 | G61: -39698141.89 | H61: -37258048.89 | I61: -41766484.48
A62: TRAB0705 | B62: Actual additions (recognised in RAB) | C62: 44346582.72 | D62: 42523303.16 | E62: 32691472.58 | F62: 49796524.66 | G62: 49166855.97 | H62: 32721893.72 | I62: 35956072.13
A63: TRAB0706 | B63: Disposals | C63: -2686726.404 | D63: -2634045.494 | E63: -2795351.703 | F63: -2795351.703 | G63: -2795351.703 | H63: -2795351.703 | I63: -2795351.703
A64: TRAB0707 | B64: Closing value | C64: 117104520.5 | D64: 117925041.9 | E64: 120218704.2 | F64: 132528496.4 | G64: 139201858.8 | H64: 131870351.9 | I64: 123264587.8
B68: 3.3.3 - TOTAL DISAGGREGATED RAB ASSET VALUES
C69: =CONCATENATE("Forecast ($0's, real ",dms_DollarReal,")") -> Forecast ($0's, real June 2018)
C70: =CRCP_y4 -> 2016-17 | D70: =CRCP_y5 -> 2017-18 | E70: =FRCP_y1 -> 2018-19 | F70: =FRCP_y2 -> 2019-20 | G70: =FRCP_y3 -> 2020-21 | H70: =FRCP_y4 -> 2021-22 | I70: =FRCP_y5 -> 2022-23
A71: TRAB0801 | B71: Overhead transmission assets (wires and towers/poles etc) | C71: 1764012206 | D71: 1752878575 | E71: 1688794521 | F71: 1639250894 | G71: 1593587798 | H71: 1554333482 | I71: 1522305098
A72: TRAB0802 | B72: Underground transmission assets (cables, ducts etc) | C72: 214814508.1 | D72: 207125897.9 | E72: 199635699.7 | F72: 194848705.3 | G72: 193189897.9 | H72: 209585998.9 | I72: 228256712.7
A73: TRAB0803 | B73: Substations, switchyards, Transformers etc with transmission function | C73: 3086857997 | D73: 3046546966 | E73: 3014822704 | F73: 3029565903 | G73: 3036454059 | H73: 3074864743 | I73: 3132723985
A74: TRAB0804 | B74: Easements | C74: 952786007 | D74: 956855411.9 | E74: 957209843 | F74: 958769988.8 | G74: 960866624.1 | H74: 962442983 | I74: 971294484.5
A75: TRAB0805 | B75: Other assets with long lives (please specify) | C75: 326488019.5 | D75: 324281088.8 | E75: 392129759.2 | F75: 459629710.3 | G75: 553771270.8 | H75: 628764879.6 | I75: 697229087.7
A76: TRAB0806 | B76: Other assets with short lives (please specify) | C76: 117104520.5 | D76: 117925041.9 | E76: 120218704.2 | F76: 132528496.4 | G76: 139201858.8 | H76: 131870351.9 | I76: 123264587.8
B79: 3.3.4 - ASSET LIVES
C80: =CONCATENATE("Forecast ($0's, real ",dms_DollarReal,")") -> Forecast ($0's, real June 2018)
C81: =CRCP_y4 -> 2016-17 | D81: =CRCP_y5 -> 2017-18 | E81: =FRCP_y1 -> 2018-19 | F81: =FRCP_y2 -> 2019-20 | G81: =FRCP_y3 -> 2020-21 | H81: =FRCP_y4 -> 2021-22 | I81: =FRCP_y5 -> 2022-23
B82: ESTIMATED SERVICE LIFE OF NEW ASSETS
A83: TRAB0901 | B83: Overhead transmission assets | C83: 50 | D83: 50 | E83: 50 | F83: 50 | G83: 50 | H83: 50 | I83: 50
A84: TRAB0902 | B84: Underground transmission assets | C84: 45 | D84: 45 | E84: 45 | F84: 45 | G84: 45 | H84: 45 | I84: 45
A85: TRAB0903 | B85: Switchyard, substation and transformer assets | C85: 40 | D85: 40 | E85: 40 | F85: 40 | G85: 40 | H85: 40 | I85: 40
A86: TRAB0904 | B86: “Other” assets with long lives | C86: 15.8251579 | D86: 16.71833749 | E86: 19.14278245 | F86: 18.82221018 | G86: 20.28266252 | H86: 20.01982869 | I86: 20.32206219
A87: TRAB0905 | B87: “Other assets with short lives | C87: 7.658489445 | D87: 6.493112977 | E87: 6.606622989 | F87: 5.903644648 | G87: 5.984547121 | H87: 6.540457917 | I87: 6.359458347
B88: ESTIMATED RESIDUAL SERVICE LIFE
A89: TRAB1001 | B89: Overhead transmission assets | C89: 21.99940389 | D89: 21.55481514 | E89: 21.37904394 | F89: 20.46731654 | G89: 19.81548878 | H89: 19.26170107 | I89: 18.78054908
A90: TRAB1002 | B90: Underground transmission assets | C90: 28.35733747 | D90: 27.76913636 | E90: 26.94549025 | F90: 25.97106057 | G90: 25.34829756 | H90: 25.1324877 | I90: 27.24460346
A91: TRAB1003 | B91: Switchyard, substation and transformer assets | C91: 27.34941943 | D91: 26.29166561 | E91: 26.05105236 | F91: 25.14267501 | G91: 24.68486127 | H91: 24.27730247 | I91: 24.31454885
A92: TRAB1004 | B92: Other assets with long lives | C92: 13.48932582 | D92: 16.03858927 | E92: 15.26532376 | F92: 16.53118544 | G92: 17.25015774 | H92: 17.63055062 | I92: 17.60850001
A93: TRAB1005 | B93: Other assets with short lives | C93: 2.31018209 | D93: 2.997397195 | E93: 4.272265887 | F93: 3.465376742 | G93: 3.338405529 | H93: 3.736155352 | I93: 3.157324672

Sheet 3.4 Operational data
B1: =(LOOKUP(dms_Model,dms_Model_List,dms_Worksheet_List)) -> REGULATORY REPORTING STATEMENT
B2: =INDEX(dms_TradingNameFull_List,MATCH(dms_TradingName,dms_TradingName_List)) -> TransGrid
B3: =IF(SUM(dms_SingleYear_Model)>0,CRY,CONCATENATE(FRCP_y1," to ",dms_MultiYear_FinalYear_Result)) -> 2018-19 to 2022-23
B4: 3.4 OPERATIONAL DATA
B6: There are THREE tables on this worksheet. Each table has been grouped for ease of navigation. See the Instructions sheet on how to group or ungroup tables.
B8: 3.4.1 - ENERGY DELIVERY
D9: Forecast (0's)
C10: Units | D10: =CRCP_y4 -> 2016-17 | E10: =CRCP_y5 -> 2017-18 | F10: =FRCP_y1 -> 2018-19 | G10: =FRCP_y2 -> 2019-20 | H10: =FRCP_y3 -> 2020-21 | I10: =FRCP_y4 -> 2021-22 | J10: =FRCP_y5 -> 2022-23
B11: Energy grouping by downstream connection type
A12: TOPED0101 | B12: To Other connected transmission networks | C12: GWh | D12: 8336.354555 | E12: 8356.296619 | F12: 8405.603694 | G12: 8410.697051 | H12: 8424.675686 | I12: 8418.431522 | J12: 8410.999977
A13: TOPED0102 | B13: To Distribution networks | C13: GWh | D13: 52830.39152 | E13: 52956.77135 | F13: 53269.24751 | G13: 53301.52589 | H13: 53390.11338 | I13: 53350.54194 | J13: 53303.44564
A14: TOPED0103 | B14: To Directly connected end–users (330 kV) | C14: GWh | D14: 8436.792562 | E14: 8456.974892 | F14: 8506.876028 | G14: 8512.03075 | H14: 8526.177803 | I14: 8519.858408 | J14: 8512.337326
A15: TOPED0104 | B15: To Directly connected end–users (275 kV) | C15: GWh
A16: TOPED0105 | B16: To Directly connected end–users (220 kV) | C16: GWh | D16: 200.8760134 | E16: 201.356545 | F16: 202.5446673 | G16: 202.6673988 | H16: 203.0042334 | I16: 202.8537716 | J16: 202.6746982
A17: TOPED0106 | B17: To Directly connected end–users (132 kV) | C17: GWh | D17: 2109.198141 | E17: 2114.243723 | F17: 2126.719007 | G17: 2128.007688 | H17: 2131.544451 | I17: 2129.964602 | J17: 2128.084332
A18: TOPED0107 | B18: To Directly connected end–users (110 kV) | C18: GWh
A19: TOPED0108 | B19: To Directly connected end–users (44 kV) | C19: GWh
A20: TOPED0109 | B20: To Directly connected end–users (33 kV) | C20: GWh
A21: TOPED0110 | B21: To Directly connected end–users (22 kV) | C21: GWh
A22: TOPED0111 | B22: To Directly connected end–users (11 kV) | C22: GWh
A23: TOPED0112 | B23: To Directly connected end–users (6.6 kV) | C23: GWh
A24: TOPED0113 | B24: Pumping and Power Station Auxillaries | C24: GWh | D24: 602.6280401 | E24: 604.0696351 | F24: 607.634002 | G24: 608.0021965 | H24: 609.0127002 | I24: 608.5613149 | J24: 608.0240947
A25: TOPED01 | B25: Total energy transported | C25: GWh | D25: =SUM(D12:D24) -> 72516.24083 | E25: =SUM(E12:E24) -> 72689.71276 | F25: =SUM(F12:F24) -> 73118.6249 | G25: 73162.93097 | H25: 73284.52826 | I25: 73230.21155 | J25: 73165.56607
B28: 3.4.2 - CONNECTION POINTS
D29: Forecast (0's)
C30: Units | D30: =CRCP_y4 -> 2016-17 | E30: =CRCP_y5 -> 2017-18 | F30: =FRCP_y1 -> 2018-19 | G30: =FRCP_y2 -> 2019-20 | H30: =FRCP_y3 -> 2020-21 | I30: =FRCP_y4 -> 2021-22 | J30: =FRCP_y5 -> 2022-23
B31: Number of entry points at each transmission voltage level
A32: TOPCP0101 | B32: 500kV | C32: number | D32: 2 | E32: 2 | F32: 2 | G32: 2 | H32: 2 | I32: 2 | J32: 2
A33: TOPCP0102 | B33: 330kV | C33: number | D33: 13 | E33: 13 | F33: 13 | G33: 13 | H33: 13 | I33: 13 | J33: 13
A34: TOPCP0103 | B34: 275kV | C34: number
A35: TOPCP0104 | B35: 220kV | C35: number
A36: TOPCP0105 | B36: 132 kV | C36: number | D36: 5 | E36: 5 | F36: 5 | G36: 5 | H36: 5 | I36: 5 | J36: 5
A37: TOPCP0106 | B37: 110kV | C37: number
A38: TOPCP0107 | B38: 66 kV | C38: number
A39: TOPCP0108 | B39: 33 kV | C39: number
A40: TOPCP0109 | B40: 22 kV | C40: number | D40: 1 | E40: 1 | F40: 1 | G40: 1 | H40: 1 | I40: 1 | J40: 1
A41: TOPCP0110 | B41: 11 kV | C41: number
A42: TOPCP0111 | B42: 6.6 kV | C42: number
B43: Number of exit points at each transmission voltage level
A44: TOPCP0201 | B44: 500kV | C44: number
A45: TOPCP0202 | B45: 330kV | C45: number | D45: 5 | E45: 5 | F45: 5 | G45: 5 | H45: 5 | I45: 5 | J45: 5
A46: TOPCP0203 | B46: 275kV | C46: number
A47: TOPCP0204 | B47: 220kV | C47: number | D47: 2 | E47: 2 | F47: 2 | G47: 2 | H47: 2 | I47: 2 | J47: 2
A48: TOPCP0205 | B48: 132 kV | C48: number | D48: 58 | E48: 58 | F48: 58 | G48: 59 | H48: 59 | I48: 59 | J48: 59
A49: TOPCP0206 | B49: 110kV | C49: number
A50: TOPCP0207 | B50: 66 kV | C50: number | D50: 29 | E50: 29 | F50: 29 | G50: 29 | H50: 29 | I50: 29 | J50: 29
A51: TOPCP0208 | B51: 44 kV | C51: number
A52: TOPCP0209 | B52: 33kV | C52: number | D52: 5 | E52: 5 | F52: 5 | G52: 5 | H52: 5 | I52: 5 | J52: 5
A53: TOPCP0210 | B53: 22kV | C53: number | D53: 2 | E53: 2 | F53: 2 | G53: 2 | H53: 2 | I53: 2 | J53: 2
A54: TOPCP0211 | B54: 11kV | C54: number | D54: 1 | E54: 1 | F54: 1 | G54: 1 | H54: 1 | I54: 1 | J54: 1
A55: TOPCP0212 | B55: 6.6kV | C55: number
B59: 3.4.3 - SYSTEM DEMAND
D60: Forecast (0's)
C61: Units | D61: =CRCP_y4 -> 2016-17 | E61: =CRCP_y5 -> 2017-18 | F61: =FRCP_y1 -> 2018-19 | G61: =FRCP_y2 -> 2019-20 | H61: =FRCP_y3 -> 2020-21 | I61: =FRCP_y4 -> 2021-22 | J61: =FRCP_y5 -> 2022-23
B62: Annual system maximum demand characteristics – MW measure
A63: TOPSD0101 | B63: Transmission System coincident maximum demand | C63: MW
A64: TOPSD0102 | B64: Transmission System coincident weather adjusted maximum demand 10% POE | C64: MW | D64: 12898.24789 | E64: 12804.52137 | F64: 12926.84144 | G64: 13031.49757 | H64: 12842.57851 | I64: 12849.34972 | J64: 12839.11396
A65: TOPSD0103 | B65: Transmission System coincident weather adjusted maximum demand 50% POE | C65: MW | D65: 11643.529 | E65: 11679.18418 | F65: 11683.4276 | G65: 11608.86551 | H65: 11648.97848 | I65: 11598.95481 | J65: 11619.891
A66: TOPSD0104 | B66: Transmission System non-coincident summated maximum demand | C66: MW
A67: TOPSD0105 | B67: Transmission System non-coincident weather adjusted summated maximum demand 10% POE | C67: MW | D67: 18397.50087 | E67: 18263.81343 | F67: 18438.28546 | G67: 18587.56243 | H67: 18318.09649 | I67: 18327.75463 | J67: 18313.15479
A68: TOPSD0106 | B68: Transmission System non-coincident weather adjusted summated maximum demand 50% POE | C68: MW | D68: 17368.2641 | E68: 17421.44973 | F68: 17427.77951 | G68: 17316.55772 | H68: 17376.39289 | I68: 17301.77425 | J68: 17333.00408
B69: Annual system maximum demand characteristics – MVA measure
A70: TOPSD0201 | B70: Transmission System coincident maximum demand | C70: MVA
A71: TOPSD0202 | B71: Transmission System coincident weather adjusted maximum demand 10% POE | C71: MVA | D71: 12898.24789 | E71: 12804.52137 | F71: 12926.84144 | G71: 13031.49757 | H71: 12842.57851 | I71: 12849.34972 | J71: 12839.11396
A72: TOPSD0203 | B72: Transmission System coincident weather adjusted maximum demand 50% POE | C72: MVA | D72: 11643.529 | E72: 11679.18418 | F72: 11683.4276 | G72: 11608.86551 | H72: 11648.97848 | I72: 11598.95481 | J72: 11619.891
A73: TOPSD0204 | B73: Transmission System non-coincident summated maximum demand | C73: MVA
A74: TOPSD0205 | B74: Transmission System non-coincident weather adjusted summated maximum demand 10% POE | C74: MVA | D74: 18397.50087 | E74: 18263.81343 | F74: 18438.28546 | G74: 18587.56243 | H74: 18318.09649 | I74: 18327.75463 | J74: 18313.15479
A75: TOPSD0206 | B75: Transmission System non-coincident weather adjusted summated maximum demand 50% POE | C75: MVA | D75: 17368.2641 | E75: 17421.44973 | F75: 17427.77951 | G75: 17316.55772 | H75: 17376.39289 | I75: 17301.77425 | J75: 17333.00408
B76: Power factor
B77: Power factor conversion between MVA and MW
A78: TOPSD0301 | B78: Average overall network power factor conversion between MVA and MW | C78: Factor | D78: 1 | E78: 1 | F78: 1 | G78: 1 | H78: 1 | I78: 1 | J78: 1
A79: TOPSD0302 | B79: Average power factor conversion for 500 kV lines | C79: Factor | D79: 1 | E79: 1 | F79: 1 | G79: 1 | H79: 1 | I79: 1 | J79: 1
A80: TOPSD0303 | B80: Average power factor conversion for 330 kV lines | C80: Factor | D80: 1 | E80: 1 | F80: 1 | G80: 1 | H80: 1 | I80: 1 | J80: 1
A81: TOPSD0304 | B81: Average power factor conversion for 275 kV lines | C81: Factor | D81: 1 | E81: 1 | F81: 1 | G81: 1 | H81: 1 | I81: 1 | J81: 1
A82: TOPSD0305 | B82: Average power factor conversion for 220 kV lines | C82: Factor | D82: 1 | E82: 1 | F82: 1 | G82: 1 | H82: 1 | I82: 1 | J82: 1
A83: TOPSD0306 | B83: Average power factor conversion for 132 kV lines | C83: Factor | D83: 1 | E83: 1 | F83: 1 | G83: 1 | H83: 1 | I83: 1 | J83: 1
A84: TOPSD0307 | B84: Average power factor conversion for 110 kV lines | C84: Factor | D84: 1 | E84: 1 | F84: 1 | G84: 1 | H84: 1 | I84: 1 | J84: 1
A85: TOPSD0308 | B85: Average power factor conversion for 88 kV lines | C85: Factor | D85: 1 | E85: 1 | F85: 1 | G85: 1 | H85: 1 | I85: 1 | J85: 1
A86: TOPSD0309 | B86: Average power factor conversion for 66 kV lines | C86: Factor | D86: 1 | E86: 1 | F86: 1 | G86: 1 | H86: 1 | I86: 1 | J86: 1
A87: TOPSD0310 | B87: Average power factor conversion for 33 kV lines | C87: Factor | D87: 1 | E87: 1 | F87: 1 | G87: 1 | H87: 1 | I87: 1 | J87: 1
A88: TOPSD0311 | B88: Average power factor conversion for 22 kV lines | C88: Factor | D88: 1 | E88: 1 | F88: 1 | G88: 1 | H88: 1 | I88: 1 | J88: 1
A89: TOPSD0311 | B89: Average power factor conversion for 11 kV lines | C89: Factor | D89: 1 | E89: 1 | F89: 1 | G89: 1 | H89: 1 | I89: 1 | J89: 1
A90: TOPSD0312 | B90: Average power factor conversion for 6.6 kV lines | C90: Factor | D90: 1 | E90: 1 | F90: 1 | G90: 1 | H90: 1 | I90: 1 | J90: 1

Sheet 3.5 Physical assets
B1: =(LOOKUP(dms_Model,dms_Model_List,dms_Worksheet_List)) -> REGULATORY REPORTING STATEMENT
B2: =INDEX(dms_TradingNameFull_List,MATCH(dms_TradingName,dms_TradingName_List)) -> TransGrid
B3: =IF(SUM(dms_SingleYear_Model)>0,CRY,CONCATENATE(FRCP_y1," to ",dms_MultiYear_FinalYear_Result)) -> 2018-19 to 2022-23
B4: 3.5 PHYSICAL ASSETS
B7: There is ONE table on this worksheet. It has been sub-grouped for ease of navigation. See the Instructions sheet on how to group or ungroup tables.
B9: 3.5.1 - TRANSMISSION SYSTEM CAPACITIES
D10: Forecast (0's)
C11: Units | D11: =CRCP_y4 -> 2016-17 | E11: =CRCP_y5 -> 2017-18 | F11: =FRCP_y1 -> 2018-19 | G11: =FRCP_y2 -> 2019-20 | H11: =FRCP_y3 -> 2020-21 | I11: =FRCP_y4 -> 2021-22 | J11: =FRCP_y5 -> 2022-23
B12: Overhead network length of circuit at each voltage
A13: TPA0101 | B13: 500 kV | C13: km | D13: 1023.66 | E13: 1023.66 | F13: 1023.66 | G13: 1023.66 | H13: 1023.66 | I13: 1023.66 | J13: 1023.66
A14: TPA0102 | B14: 330 kV | C14: km | D14: 5490.99 | E14: 5490.99 | F14: 5490.99 | G14: 5490.99 | H14: 5490.99 | I14: 5490.99 | J14: 5490.99
A15: TPA0103 | B15: 275 kV | C15: km
A16: TPA0104 | B16: 220 kV | C16: km | D16: 681.15 | E16: 681.15 | F16: 681.15 | G16: 681.15 | H16: 681.15 | I16: 681.15 | J16: 681.15
A17: TPA0105 | B17: 132 kV | C17: km | D17: 5739.955 | E17: 5739.955 | F17: 5739.955 | G17: 5739.955 | H17: 5739.955 | I17: 5739.955 | J17: 5739.955
A18: TPA0106 | B18: 110 kV | C18: km
A19: TPA0107 | B19: 88 kV | C19: km
A20: TPA0108 | B20: 66 kV | C20: km | D20: 21.2 | E20: 21.2 | F20: 21.2 | G20: 21.2 | H20: 21.2 | I20: 21.2 | J20: 21.2
A21: TPA0109 | B21: 33 kV | C21: km
A22: TPA0109 | B22: 22 kV | C22: km
A23: TPA0109 | B23: 11 kV | C23: km
A24: TPA01 | B24: Total | D24: =SUM(D13:D23) -> 12956.955 | E24: =SUM(E13:E23) -> 12956.955 | F24: =SUM(F13:F23) -> 12956.955 | G24: 12956.955 | H24: 12956.955 | I24: 12956.955 | J24: 12956.955
B26: Underground cable circuit length at each voltage
A27: TPA0201 | B27: 500 kV | C27: km
A28: TPA0202 | B28: 330 kV | C28: km | D28: 78 | E28: 78 | F28: 78 | G28: 78 | H28: 78 | I28: 78 | J28: 102.162
A29: TPA0203 | B29: 275 kV | C29: km
A30: TPA0204 | B30: 220 kV | C30: km
A31: TPA0205 | B31: 132 kV | C31: km | D31: 4.24 | E31: 4.24 | F31: 4.24 | G31: 4.24 | H31: 4.24 | I31: 4.24 | J31: 0.622
A32: TPA0206 | B32: 110 kV | C32: km
A33: TPA0207 | B33: 88 kV | C33: km
A34: TPA0208 | B34: 66 kV | C34: km
A35: TPA0209 | B35: 33 kV | C35: km
A36: TPA0210 | B36: 22 kV | C36: km
A37: TPA0211 | B37: 11 kV | C37: km
A38: TPA02 | B38: Total | D38: =SUM(D27:D37) -> 82.24 | E38: =SUM(E27:E37) -> 82.24 | F38: =SUM(F27:F37) -> 82.24 | G38: 82.24 | H38: 82.24 | I38: 82.24 | J38: 102.784
B40: Estimated overhead network weighted average MVA capacity by voltage class
A41: TPA0301 | B41: 500 kV | C41: MVA | D41: 2780.84 | E41: 2780.84 | F41: 2780.84 | G41: 2780.84 | H41: 2780.84 | I41: 2780.84 | J41: 2780.84
A42: TPA0302 | B42: 330 kV | C42: MVA | D42: 1128.68 | E42: 1128.68 | F42: 1128.68 | G42: 1128.68 | H42: 1128.68 | I42: 1128.68 | J42: 1128.68
A43: TPA0303 | B43: 275 kV | C43: MVA
A44: TPA0304 | B44: 220 kV | C44: MVA | D44: 205.18 | E44: 205.18 | F44: 205.18 | G44: 205.18 | H44: 205.18 | I44: 205.18 | J44: 205.18
A45: TPA0305 | B45: 132 kV | C45: MVA | D45: 137.11 | E45: 137.11 | F45: 137.11 | G45: 137.11 | H45: 137.11 | I45: 137.11 | J45: 137.8543741
A46: TPA0306 | B46: 110 kV | C46: MVA
A47: TPA0307 | B47: 88 kV | C47: MVA
A48: TPA0308 | B48: 66 kV | C48: MVA | D48: 24.69 | E48: 24.69 | F48: 24.69 | G48: 24.69 | H48: 24.69 | I48: 24.69 | J48: 24.69
A49: TPA0309 | B49: 33 kV | C49: MVA
A50: TPA0310 | B50: 22 kV | C50: MVA
A51: TPA0311 | B51: 11 kV | C51: MVA
B53: Estimated underground network weighted average MVA capacity by voltage class
A54: TPA0401 | B54: 500 kV | C54: MVA
A55: TPA0402 | B55: 330 kV | C55: MVA | D55: 714.02 | E55: 714.02 | F55: 714.02 | G55: 714.02 | H55: 714.02 | I55: 714.02 | J55: 728.8
A56: TPA0403 | B56: 275 kV | C56: MVA
A57: TPA0404 | B57: 220 kV | C57: MVA
A58: TPA0405 | B58: 132 kV | C58: MVA | D58: 275.19 | E58: 275.19 | F58: 275.19 | G58: 275.19 | H58: 275.19 | I58: 275.19 | J58: 247.2115756
A59: TPA0406 | B59: 110 kV | C59: MVA
A60: TPA0407 | B60: 88 kV | C60: MVA
A61: TPA0408 | B61: 66 kV | C61: MVA
A62: TPA0409 | B62: 33 kV | C62: MVA
A63: TPA0410 | B63: 22 kV | C63: MVA
A64: TPA0411 | B64: 11 kV | C64: MVA
B66: Installed transmission system transformer capacity
A67: TPA0501 | B67: Transmission substations (eg 500 kV to 330 kV) | C67: MVA | D67: 22160 | E67: 22160 | F67: 22160 | G67: 22160 | H67: 22160 | I67: 22160 | J67: 22160
A68: TPA0502 | B68: Terminal points to DNSP systems | C68: MVA | D68: 32460.3 | E68: 32460.3 | F68: 32460.3 | G68: 32460.3 | H68: 32460.3 | I68: 32710.3 | J68: 32710.3
A69: TPA0503 | B69: Transformer capacity for directly connected end–users owned by the TNSP | C69: MVA | D69: 35 | E69: 35 | F69: 35 | G69: 35 | H69: 35 | I69: 35 | J69: 35
A70: TPA0504 | B70: Transformer capacity for directly connected end–users owned by the end–user | C70: MVA | D70: 2382.78 | E70: 2382.78 | F70: 2382.78 | G70: 2382.78 | H70: 2382.78 | I70: 2382.78 | J70: 2382.78
A71: TPA0505 | B71: Interconnector capacity | C71: MVA
A72: TPA0506 | B72: Other | C72: MVA | D72: 776 | E72: 776 | F72: 776 | G72: 776 | H72: 776 | I72: 776 | J72: 776
B74: Cold spare capacity
A75: TPA06 | B75: Cold spare capacity included in 3.5.1.5 | C75: MVA | D75: 3033.3 | E75: 3033.3 | F75: 3033.3 | G75: 3033.3 | H75: 3033.3 | I75: 3033.3 | J75: 3033.3

Sheet 3.7 Operating environment
B1: =(LOOKUP(dms_Model,dms_Model_List,dms_Worksheet_List)) -> REGULATORY REPORTING STATEMENT
B2: =INDEX(dms_TradingNameFull_List,MATCH(dms_TradingName,dms_TradingName_List)) -> TransGrid
B3: =IF(SUM(dms_SingleYear_Model)>0,CRY,CONCATENATE(FRCP_y1," to ",dms_MultiYear_FinalYear_Result)) -> 2018-19 to 2022-23
B4: 3.7 OPERATING ENVIRONMENT FACTORS
A7: TEF01 | B7: 3.7.1 - TERRAIN FACTORS
D8: Forecast (0's)
C9: Units | D9: =CRCP_y4 -> 2016-17 | E9: =CRCP_y5 -> 2017-18 | F9: =FRCP_y1 -> 2018-19 | G9: =FRCP_y2 -> 2019-20 | H9: =FRCP_y3 -> 2020-21 | I9: =FRCP_y4 -> 2021-22 | J9: =FRCP_y5 -> 2022-23
A10: TEF0101 | B10: Total number of vegetation maintenance spans | C10: Number of spans | D10: 3882
A11: TEF0102 | B11: Average vegetation maintenance span cycle | C11: Years | D11: 3.9
A12: TEF0103 | B12: Average number of trees per vegetation maintenance span | C12: Trees | D12: 3052
A13: TEF0104 | B13: Average number of defects per vegetation maintenance span | C13: Defects | D13: 0.51
A14: TEF0105 | B14: Tropical proportion | C14: Number of spans | D14: 603
A15: TEF0106 | B15: Standard vehicle access | C15: km | D15: 9100
A16: TEF0107 | B16: Altitude | C16: km | D16: 3744.148
A17: TEF0108 | B17: Bushfire risk | C17: Number of spans | D17: 3140
A19: TEF02 | B19: 3.7.2 - NETWORK CHARACTERISTICS
D20: Forecast (0's)
C21: Units | D21: =CRCP_y4 -> 2016-17 | E21: =CRCP_y5 -> 2017-18 | F21: =FRCP_y1 -> 2018-19 | G21: =FRCP_y2 -> 2019-20 | H21: =FRCP_y3 -> 2020-21 | I21: =FRCP_y4 -> 2021-22 | J21: =FRCP_y5 -> 2022-23
A22: TEF0201 | B22: Route line length | C22: km | D22: 11291.175 | E22: 11291.175 | F22: 11291.175 | G22: 11291.175 | H22: 11291.175 | I22: 11291.175 | J22: 11291.175
A23: TEF0202 | B23: Variability of dispatch | C23: % | D23: 0.11 | E23: 0.11 | F23: 0.11 | G23: 0.11 | H23: 0.11 | I23: 0.11 | J23: 0.11
A24: TEF0203 | B24: Concentrated load distance | C24: km | D24: 340 | E24: 340 | F24: 340 | G24: 340 | H24: 340 | I24: 340 | J24: 340
A25: TEF0204 | B25: Total number of spans | C25: number | D25: 37650 | E25: 37650 | F25: 37650 | G25: 37650 | H25: 37650 | I25: 37650 | J25: 37650

Sheet 5.4 MD & Utilisation - Spatial
B1: =(LOOKUP(dms_Model,dms_Model_List,dms_Worksheet_List)) -> REGULATORY REPORTING STATEMENT
B2: =INDEX(dms_TradingNameFull_List,MATCH(dms_TradingName,dms_TradingName_List)) -> TransGrid
B3: =IF(SUM(dms_SingleYear_Model)>0,CRY,CONCATENATE(FRCP_y1," to ",dms_MultiYear_FinalYear_Result)) -> 2018-19 to 2022-23
B4: 5.4 MAXIMUM DEMAND AND UTILISATION AT SPATIAL LEVEL
B6: There is ONE table on this worksheet. It has been sub-grouped into blocks of approximately 500 rows for ease of navigation. See the Instructions sheet on how to group or ungroup data.
B8: 5.4.1 - NON-COINCIDENT & COINCIDENT MAXIMUM DEMAND
B9: CONNECTION POINT | C9: FORECASTING ELEMENTS | D9: UNIT | E9: MAX DEMAND | G9: TNSP NAME | H9: SERVICE | I9: SERVICE SUBCATEGORY | J9: DATA TYPE | K9: DATA TYPE SUBCATEGORY | L9: LOCATION | M9: LOCATION SUBCATEGORY | N9: MEASUREMENT | O9: DENOMINATION | Q9: =CRCP_y4 -> 2016-17 | R9: =CRCP_y5 -> 2017-18 | S9: =FRCP_y1 -> 2018-19 | T9: =FRCP_y2 -> 2019-20 | U9: =FRCP_y3 -> 2020-21 | V9: =FRCP_y4 -> 2021-22 | W9: =FRCP_y5 -> 2022-23
B10: Broken Hill Mine | C10: CONNECTION POINT RATING | D10: MVA | E10: Non-coincident | G10: TNSP NAME | H10: DEMAND FORECASTING | I10: NON-COINCIDENT MAXIMUM DEMAND | J10: DESCRIPTOR METRIC | K10: CONNECTION POINT RATING | L10: CONNECTION POINT | M10: =B10 -> Broken Hill Mine | N10: RATING | O10: MVA
E11: Coincident | G11: TNSP NAME | H11: DEMAND FORECASTING | I11: COINCIDENT MAXIMUM DEMAND | J11: DESCRIPTOR METRIC | K11: CONNECTION POINT RATING | L11: CONNECTION POINT | M11: =M10 -> Broken Hill Mine | N11: RATING | O11: MVA
C12: WINTER/SUMMER PEAKING | E12: Non-coincident | G12: TNSP NAME | H12: DEMAND FORECASTING | I12: NON-COINCIDENT MAXIMUM DEMAND | J12: DESCRIPTOR METRIC | K12: WINTER/SUMMER PEAKING | L12: CONNECTION POINT | M12: =#REF! ->  | N12: WINTER/SUMMER | O12: WINTER/SUMMER | Q12: Summer | R12: Summer | S12: Summer | T12: Summer | U12: Summer | V12: Summer | W12: Summer
E13: Coincident | G13: TNSP NAME | H13: DEMAND FORECASTING | I13: COINCIDENT MAXIMUM DEMAND | J13: DESCRIPTOR METRIC | K13: WINTER/SUMMER PEAKING | L13: CONNECTION POINT | N13: WINTER/SUMMER | O13: WINTER/SUMMER | Q13: Summer | R13: Summer | S13: Summer | T13: Summer | U13: Summer | V13: Summer | W13: Summer
C14: ADJUSTMENTS - EMBEDDED GENERATION | D14: MW | E14: Non-coincident | G14: TNSP NAME | H14: DEMAND FORECASTING | I14: NON-COINCIDENT MAXIMUM DEMAND | J14: DESCRIPTOR METRIC | K14: ADJUSTMENTS - EMBEDDED GENERATION | L14: CONNECTION POINT | N14: GENERATED LOAD | O14: MW
E15: Coincident | G15: TNSP NAME | H15: DEMAND FORECASTING | I15: COINCIDENT MAXIMUM DEMAND | J15: DESCRIPTOR METRIC | K15: ADJUSTMENTS - EMBEDDED GENERATION | L15: CONNECTION POINT | N15: GENERATED LOAD | O15: MW
C16: WEATHER CORRECTED MD 10% POE | D16: MW | E16: Non-coincident | G16: TNSP NAME | H16: DEMAND FORECASTING | I16: NON-COINCIDENT MAXIMUM DEMAND | J16: DESCRIPTOR METRIC | K16: WEATHER CORRECTED MD 10% POE | L16: CONNECTION POINT | N16: MAXIMUM DEMAND | O16: MW
E17: Coincident | G17: TNSP NAME | H17: DEMAND FORECASTING | I17: COINCIDENT MAXIMUM DEMAND | J17: DESCRIPTOR METRIC | K17: WEATHER CORRECTED MD 10% POE | L17: CONNECTION POINT | N17: MAXIMUM DEMAND | O17: MW
C18: WEATHER CORRECTED MD 10% POE | D18: MVA | E18: Non-coincident | G18: TNSP NAME | H18: DEMAND FORECASTING | I18: NON-COINCIDENT MAXIMUM DEMAND | J18: DESCRIPTOR METRIC | K18: WEATHER CORRECTED MD 10% POE | L18: CONNECTION POINT | N18: MAXIMUM DEMAND | O18: MVA
E19: Coincident | G19: TNSP NAME | H19: DEMAND FORECASTING | I19: COINCIDENT MAXIMUM DEMAND | J19: DESCRIPTOR METRIC | K19: WEATHER CORRECTED MD 10% POE | L19: CONNECTION POINT | N19: MAXIMUM DEMAND | O19: MVA
C20: WEATHER CORRECTED MD 50% POE | D20: MW | E20: Non-coincident | G20: TNSP NAME | H20: DEMAND FORECASTING | I20: NON-COINCIDENT MAXIMUM DEMAND | J20: DESCRIPTOR METRIC | K20: WEATHER CORRECTED MD 50% POE | L20: CONNECTION POINT | N20: MAXIMUM DEMAND | O20: MW
E21: Coincident | G21: TNSP NAME | H21: DEMAND FORECASTING | I21: COINCIDENT MAXIMUM DEMAND | J21: DESCRIPTOR METRIC | K21: WEATHER CORRECTED MD 50% POE | L21: CONNECTION POINT | N21: MAXIMUM DEMAND | O21: MW
C22: WEATHER CORRECTED MD 50% POE | D22: MVA | E22: Non-coincident | G22: TNSP NAME | H22: DEMAND FORECASTING | I22: NON-COINCIDENT MAXIMUM DEMAND | J22: DESCRIPTOR METRIC | K22: WEATHER CORRECTED MD 50% POE | L22: CONNECTION POINT | N22: MAXIMUM DEMAND | O22: MVA
E23: Coincident | G23: TNSP NAME | H23: DEMAND FORECASTING | I23: COINCIDENT MAXIMUM DEMAND | J23: DESCRIPTOR METRIC | K23: WEATHER CORRECTED MD 50% POE | L23: CONNECTION POINT | N23: MAXIMUM DEMAND | O23: MVA
B24: Broken Hill Town | C24: CONNECTION POINT RATING | D24: MVA | E24: Non-coincident | G24: TNSP NAME | H24: DEMAND FORECASTING | I24: NON-COINCIDENT MAXIMUM DEMAND | J24: DESCRIPTOR METRIC | K24: CONNECTION POINT RATING | L24: CONNECTION POINT | M24: =B24 -> Broken Hill Town | N24: RATING | O24: MVA | Q24: 200 | R24: 200 | S24: 200 | T24: 200 | U24: 200 | V24: 200 | W24: 200
E25: Coincident | G25: TNSP NAME | H25: DEMAND FORECASTING | I25: COINCIDENT MAXIMUM DEMAND | J25: DESCRIPTOR METRIC | K25: CONNECTION POINT RATING | L25: CONNECTION POINT | M25: Broken Hill Town | N25: RATING | O25: MVA | Q25: 200 | R25: 200 | S25: 200 | T25: 200 | U25: 200 | V25: 200 | W25: 200
C26: WINTER/SUMMER PEAKING | E26: Non-coincident | G26: TNSP NAME | H26: DEMAND FORECASTING | I26: NON-COINCIDENT MAXIMUM DEMAND | J26: DESCRIPTOR METRIC | K26: WINTER/SUMMER PEAKING | L26: CONNECTION POINT | M26: =#REF! ->  | N26: WINTER/SUMMER | O26: WINTER/SUMMER | Q26: Summer | R26: Summer | S26: Summer | T26: Summer | U26: Summer | V26: Summer | W26: Summer
E27: Coincident | G27: TNSP NAME | H27: DEMAND FORECASTING | I27: COINCIDENT MAXIMUM DEMAND | J27: DESCRIPTOR METRIC | K27: WINTER/SUMMER PEAKING | L27: CONNECTION POINT | N27: WINTER/SUMMER | O27: WINTER/SUMMER | Q27: Summer | R27: Summer | S27: Summer | T27: Summer | U27: Summer | V27: Summer | W27: Summer
C28: ADJUSTMENTS - EMBEDDED GENERATION | D28: MW | E28: Non-coincident | G28: TNSP NAME | H28: DEMAND FORECASTING | I28: NON-COINCIDENT MAXIMUM DEMAND | J28: DESCRIPTOR METRIC | K28: ADJUSTMENTS - EMBEDDED GENERATION | L28: CONNECTION POINT | N28: GENERATED LOAD | O28: MW | Q28: 0 | R28: 0 | S28: 0 | T28: 0 | U28: 0 | V28: 0 | W28: 0
E29: Coincident | G29: TNSP NAME | H29: DEMAND FORECASTING | I29: COINCIDENT MAXIMUM DEMAND | J29: DESCRIPTOR METRIC | K29: ADJUSTMENTS - EMBEDDED GENERATION | L29: CONNECTION POINT | N29: GENERATED LOAD | O29: MW | Q29: 0 | R29: 0 | S29: 0 | T29: 0 | U29: 0 | V29: 0 | W29: 0
C30: WEATHER CORRECTED MD 10% POE | D30: MW | E30: Non-coincident | G30: TNSP NAME | H30: DEMAND FORECASTING | I30: NON-COINCIDENT MAXIMUM DEMAND | J30: DESCRIPTOR METRIC | K30: WEATHER CORRECTED MD 10% POE | L30: CONNECTION POINT | N30: MAXIMUM DEMAND | O30: MW
E31: Coincident | G31: TNSP NAME | H31: DEMAND FORECASTING | I31: COINCIDENT MAXIMUM DEMAND | J31: DESCRIPTOR METRIC | K31: WEATHER CORRECTED MD 10% POE | L31: CONNECTION POINT | N31: MAXIMUM DEMAND | O31: MW
C32: WEATHER CORRECTED MD 10% POE | D32: MVA | E32: Non-coincident | G32: TNSP NAME | H32: DEMAND FORECASTING | I32: NON-COINCIDENT MAXIMUM DEMAND | J32: DESCRIPTOR METRIC | K32: WEATHER CORRECTED MD 10% POE | L32: CONNECTION POINT | N32: MAXIMUM DEMAND | O32: MVA
E33: Coincident | G33: TNSP NAME | H33: DEMAND FORECASTING | I33: COINCIDENT MAXIMUM DEMAND | J33: DESCRIPTOR METRIC | K33: WEATHER CORRECTED MD 10% POE | L33: CONNECTION POINT | N33: MAXIMUM DEMAND | O33: MVA
C34: WEATHER CORRECTED MD 50% POE | D34: MW | E34: Non-coincident | G34: TNSP NAME | H34: DEMAND FORECASTING | I34: NON-COINCIDENT MAXIMUM DEMAND | J34: DESCRIPTOR METRIC | K34: WEATHER CORRECTED MD 50% POE | L34: CONNECTION POINT | N34: MAXIMUM DEMAND | O34: MW | Q34: 37.17869576 | R34: 37.67012805 | S34: 38.10581513 | T34: 38.48358043 | U34: 38.80150568 | V34: 39.05794707 | W34: 39.25154924
E35: Coincident | G35: TNSP NAME | H35: DEMAND FORECASTING | I35: COINCIDENT MAXIMUM DEMAND | J35: DESCRIPTOR METRIC | K35: WEATHER CORRECTED MD 50% POE | L35: CONNECTION POINT | N35: MAXIMUM DEMAND | O35: MW
C36: WEATHER CORRECTED MD 50% POE | D36: MVA | E36: Non-coincident | G36: TNSP NAME | H36: DEMAND FORECASTING | I36: NON-COINCIDENT MAXIMUM DEMAND | J36: DESCRIPTOR METRIC | K36: WEATHER CORRECTED MD 50% POE | L36: CONNECTION POINT | N36: MAXIMUM DEMAND | O36: MVA | Q36: 39.08078229 | R36: 39.56144354 | S36: 39.98933219 | T36: 40.36224673 | U36: 40.67825625 | V36: 40.93571657 | W36: 41.13328442
E37: Coincident | G37: TNSP NAME | H37: DEMAND FORECASTING | I37: COINCIDENT MAXIMUM DEMAND | J37: DESCRIPTOR METRIC | K37: WEATHER CORRECTED MD 50% POE | L37: CONNECTION POINT | N37: MAXIMUM DEMAND | O37: MVA
B38: Tuggerah | C38: CONNECTION POINT RATING | D38: MVA | E38: Non-coincident | Q38: 750 | R38: 750 | S38: 750 | T38: 750 | U38: 750 | V38: 750 | W38: 750
E39: Coincident | Q39: 750 | R39: 750 | S39: 750 | T39: 750 | U39: 750 | V39: 750 | W39: 750
C40: WINTER/SUMMER PEAKING | E40: Non-coincident | Q40: Winter | R40: Winter | S40: Winter | T40: Winter | U40: Winter | V40: Winter | W40: Winter
E41: Coincident | Q41: Summer | R41: Summer | S41: Summer | T41: Summer | U41: Summer | V41: Summer | W41: Summer
C42: ADJUSTMENTS - EMBEDDED GENERATION | D42: MW | E42: Non-coincident | Q42: 0 | R42: 0 | S42: 0 | T42: 0 | U42: 0 | V42: 0 | W42: 0
E43: Coincident | Q43: 0 | R43: 0 | S43: 0 | T43: 0 | U43: 0 | V43: 0 | W43: 0
C44: WEATHER CORRECTED MD 10% POE | D44: MW | E44: Non-coincident
E45: Coincident
C46: WEATHER CORRECTED MD 10% POE | D46: MVA | E46: Non-coincident
E47: Coincident
C48: WEATHER CORRECTED MD 50% POE | D48: MW | E48: Non-coincident | Q48: 186.27 | R48: 194.16 | S48: 194.16 | T48: 199.84 | U48: 206.14 | V48: 212.24 | W48: 215.56
E49: Coincident
C50: WEATHER CORRECTED MD 50% POE | D50: MVA | E50: Non-coincident | Q50: 197.3348307 | R50: 204.1067103 | S50: 203.3348413 | T50: 209.0421517 | U50: 218.7575553 | V50: 226.1777321 | W50: 226.3340752
E51: Coincident
B52: Vales Pt 132 kV | C52: CONNECTION POINT RATING | D52: MVA | E52: Non-coincident | Q52: 400 | R52: 400 | S52: 400 | T52: 400 | U52: 400 | V52: 400 | W52: 400
E53: Coincident | Q53: 400 | R53: 400 | S53: 400 | T53: 400 | U53: 400 | V53: 400 | W53: 400
C54: WINTER/SUMMER PEAKING | E54: Non-coincident | Q54: Winter | R54: Winter | S54: Winter | T54: Winter | U54: Winter | V54: Winter | W54: Winter
E55: Coincident | Q55: Summer | R55: Summer | S55: Summer | T55: Summer | U55: Summer | V55: Summer | W55: Summer
C56: ADJUSTMENTS - EMBEDDED GENERATION | D56: MW | E56: Non-coincident | Q56: 0 | R56: 0 | S56: 0 | T56: 0 | U56: 0 | V56: 0 | W56: 0
E57: Coincident | Q57: 0 | R57: 0 | S57: 0 | T57: 0 | U57: 0 | V57: 0 | W57: 0
C58: WEATHER CORRECTED MD 10% POE | D58: MW | E58: Non-coincident
E59: Coincident
C60: WEATHER CORRECTED MD 10% POE | D60: MVA | E60: Non-coincident
E61: Coincident
C62: WEATHER CORRECTED MD 50% POE | D62: MW | E62: Non-coincident | Q62: 101.2 | R62: 101.86 | S62: 102.11 | T62: 103.78 | U62: 104.76 | V62: 105.93 | W62: 108.03
E63: Coincident
C64: WEATHER CORRECTED MD 50% POE | D64: MVA | E64: Non-coincident | Q64: 102.8770626 | R64: 103.7285862 | S64: 104.036806 | T64: 105.372439 | U64: 105.8143072 | V64: 106.7704163 | W64: 110.0770539
E65: Coincident
B66: Munmorah 132 kV | C66: CONNECTION POINT RATING | D66: MVA | E66: Non-coincident | Q66: 375 | R66: 375 | S66: 375 | T66: 375 | U66: 375 | V66: 375 | W66: 375
E67: Coincident | Q67: 375 | R67: 375 | S67: 375 | T67: 375 | U67: 375 | V67: 375 | W67: 375
C68: WINTER/SUMMER PEAKING | E68: Non-coincident | Q68: Winter | R68: Summer | S68: Summer | T68: Summer | U68: Summer | V68: Summer | W68: Summer
E69: Coincident | Q69: Summer | R69: Summer | S69: Summer | T69: Summer | U69: Summer | V69: Summer | W69: Summer
C70: ADJUSTMENTS - EMBEDDED GENERATION | D70: MW | E70: Non-coincident | Q70: 0 | R70: 0 | S70: 0 | T70: 0 | U70: 0 | V70: 0 | W70: 0
E71: Coincident | Q71: 0 | R71: 0 | S71: 0 | T71: 0 | U71: 0 | V71: 0 | W71: 0
C72: WEATHER CORRECTED MD 10% POE | D72: MW | E72: Non-coincident
E73: Coincident
C74: WEATHER CORRECTED MD 10% POE | D74: MVA | E74: Non-coincident
E75: Coincident
C76: WEATHER CORRECTED MD 50% POE | D76: MW | E76: Non-coincident | Q76: 94.61061069 | R76: 88.38343511 | S76: 88.96526718 | T76: 94.61061069 | U76: 99.46183206 | V76: 104.1243511 | W76: 109.2114504
E77: Coincident
C78: WEATHER CORRECTED MD 50% POE | D78: MVA | E78: Non-coincident | Q78: 96.46949539 | R78: 90.8116122 | S78: 90.88138178 | T78: 97.04990716 | U78: 102.2862309 | V78: 107.7843436 | W78: 114.2254496
E79: Coincident
B80: Munmorah 33 kV | C80: CONNECTION POINT RATING | D80: MVA | E80: Non-coincident | Q80: 160 | R80: 160 | S80: 160 | T80: 160 | U80: 160 | V80: 160 | W80: 160
E81: Coincident | Q81: 160 | R81: 160 | S81: 160 | T81: 160 | U81: 160 | V81: 160 | W81: 160
C82: WINTER/SUMMER PEAKING | E82: Non-coincident | Q82: Winter | R82: Summer | S82: Summer | T82: Summer | U82: Summer | V82: Summer | W82: Summer
E83: Coincident | Q83: Summer | R83: Summer | S83: Summer | T83: Summer | U83: Summer | V83: Summer | W83: Summer
C84: ADJUSTMENTS - EMBEDDED GENERATION | D84: MW | E84: Non-coincident | Q84: 0 | R84: 0 | S84: 0 | T84: 0 | U84: 0 | V84: 0 | W84: 0
E85: Coincident | Q85: 0 | R85: 0 | S85: 0 | T85: 0 | U85: 0 | V85: 0 | W85: 0
C86: WEATHER CORRECTED MD 10% POE | D86: MW | E86: Non-coincident
E87: Coincident
C88: WEATHER CORRECTED MD 10% POE | D88: MVA | E88: Non-coincident
E89: Coincident
C90: WEATHER CORRECTED MD 50% POE | D90: MW | E90: Non-coincident | Q90: 25.71938931 | R90: 24.02656489 | S90: 24.18473282 | T90: 25.71938931 | U90: 27.03816794 | V90: 28.30564885 | W90: 29.68854962
E91: Coincident
C92: WEATHER CORRECTED MD 50% POE | D92: MVA | E92: Non-coincident | Q92: 26.22471719 | R92: 24.68665186 | S92: 24.70561835 | T92: 26.38249903 | U92: 27.80596567 | V92: 29.30059827 | W92: 31.05157853
E93: Coincident
B94: Macksville | C94: CONNECTION POINT RATING | D94: MVA | E94: Non-coincident | Q94: 60 | R94: 60 | S94: 60 | T94: 60 | U94: 60 | V94: 60 | W94: 60
E95: Coincident | Q95: 60 | R95: 60 | S95: 60 | T95: 60 | U95: 60 | V95: 60 | W95: 60
C96: WINTER/SUMMER PEAKING | E96: Non-coincident | Q96: Winter | R96: Winter | S96: Winter | T96: Winter | U96: Winter | V96: Winter | W96: Winter
E97: Coincident | Q97: Summer | R97: Summer | S97: Summer | T97: Summer | U97: Summer | V97: Summer | W97: Summer
C98: ADJUSTMENTS - EMBEDDED GENERATION | D98: MW | E98: Non-coincident | Q98: 0 | R98: 0 | S98: 0 | T98: 0 | U98: 0 | V98: 0 | W98: 0
E99: Coincident | Q99: 0 | R99: 0 | S99: 0 | T99: 0 | U99: 0 | V99: 0 | W99: 0
C100: WEATHER CORRECTED MD 10% POE | D100: MW | E100: Non-coincident
E101: Coincident
C102: WEATHER CORRECTED MD 10% POE | D102: MVA | E102: Non-coincident
E103: Coincident
C104: WEATHER CORRECTED MD 50% POE | D104: MW | E104: Non-coincident | Q104: 9.323309683 | R104: 9.344156498 | S104: 9.362728434 | T104: 9.379011177 | U104: 9.392992085 | V104: 9.40466021 | W104: 9.414006305
E105: Coincident
C106: WEATHER CORRECTED MD 50% POE | D106: MVA | E106: Non-coincident | Q106: 9.535413124 | R106: 9.555797228 | S106: 9.573958624 | T106: 9.589882724 | U106: 9.603556649 | V106: 9.614969249 | W106: 9.624111113
E107: Coincident
B108: Nambucca Heads | C108: CONNECTION POINT RATING | D108: MVA | E108: Non-coincident | Q108: 120 | R108: 120 | S108: 120 | T108: 120 | U108: 120 | V108: 120 | W108: 120
E109: Coincident | Q109: 120 | R109: 120 | S109: 120 | T109: 120 | U109: 120 | V109: 120 | W109: 120
C110: WINTER/SUMMER PEAKING | E110: Non-coincident | Q110: Winter | R110: Winter | S110: Winter | T110: Winter | U110: Winter | V110: Winter | W110: Winter
E111: Coincident | Q111: Summer | R111: Summer | S111: Summer | T111: Summer | U111: Summer | V111: Summer | W111: Summer
C112: ADJUSTMENTS - EMBEDDED GENERATION | D112: MW | E112: Non-coincident | Q112: 0 | R112: 0 | S112: 0 | T112: 0 | U112: 0 | V112: 0 | W112: 0
E113: Coincident | Q113: 0 | R113: 0 | S113: 0 | T113: 0 | U113: 0 | V113: 0 | W113: 0
C114: WEATHER CORRECTED MD 10% POE | D114: MW | E114: Non-coincident
E115: Coincident
C116: WEATHER CORRECTED MD 10% POE | D116: MVA | E116: Non-coincident
E117: Coincident
C118: WEATHER CORRECTED MD 50% POE | D118: MW | E118: Non-coincident | Q118: 7.801491823 | R118: 7.765435351 | S118: 7.733533282 | T118: 7.705733649 | U118: 7.681991048 | V118: 7.662266509 | W118: 7.646527394
E119: Coincident
C120: WEATHER CORRECTED MD 50% POE | D120: MVA | E120: Non-coincident | Q120: 7.865321014 | R120: 7.829558493 | S120: 7.797918762 | T120: 7.770349482 | U120: 7.746804919 | V120: 7.727245826 | W120: 7.711639332
E121: Coincident
B122: Raleigh | C122: CONNECTION POINT RATING | D122: MVA | E122: Non-coincident | Q122: 120 | R122: 120 | S122: 120 | T122: 120 | U122: 120 | V122: 120 | W122: 120
E123: Coincident | Q123: 120 | R123: 120 | S123: 120 | T123: 120 | U123: 120 | V123: 120 | W123: 120
C124: WINTER/SUMMER PEAKING | E124: Non-coincident | Q124: Winter | R124: Winter | S124: Winter | T124: Winter | U124: Winter | V124: Winter | W124: Winter
E125: Coincident | Q125: Summer | R125: Summer | S125: Summer | T125: Summer | U125: Summer | V125: Summer | W125: Summer
C126: ADJUSTMENTS - EMBEDDED GENERATION | D126: MW | E126: Non-coincident | Q126: 0 | R126: 0 | S126: 0 | T126: 0 | U126: 0 | V126: 0 | W126: 0
E127: Coincident | Q127: 0 | R127: 0 | S127: 0 | T127: 0 | U127: 0 | V127: 0 | W127: 0
C128: WEATHER CORRECTED MD 10% POE | D128: MW | E128: Non-coincident
E129: Coincident
C130: WEATHER CORRECTED MD 10% POE | D130: MVA | E130: Non-coincident
E131: Coincident
C132: WEATHER CORRECTED MD 50% POE | D132: MW | E132: Non-coincident | Q132: 9.473827719 | R132: 9.518102555 | S132: 9.557641888 | T132: 9.592382524 | U132: 9.62226845 | V132: 9.647250981 | W132: 9.667288897
E133: Coincident
C134: WEATHER CORRECTED MD 50% POE | D134: MVA | E134: Non-coincident | Q134: 9.682634541 | R134: 9.725958886 | S134: 9.764656597 | T134: 9.798663301 | U134: 9.827921963 | V134: 9.852383036 | W134: 9.872004589
E135: Coincident
B136: Boambee Sth | C136: CONNECTION POINT RATING | D136: MVA | E136: Non-coincident | Q136: 120 | R136: 120 | S136: 120 | T136: 120 | U136: 120 | V136: 120 | W136: 120
E137: Coincident | Q137: 120 | R137: 120 | S137: 120 | T137: 120 | U137: 120 | V137: 120 | W137: 120
C138: WINTER/SUMMER PEAKING | E138: Non-coincident | Q138: Summer | R138: Summer | S138: Summer | T138: Summer | U138: Summer | V138: Summer | W138: Summer
E139: Coincident | Q139: Summer | R139: Summer | S139: Summer | T139: Summer | U139: Summer | V139: Summer | W139: Summer
C140: ADJUSTMENTS - EMBEDDED GENERATION | D140: MW | E140: Non-coincident | Q140: 0 | R140: 0 | S140: 0 | T140: 0 | U140: 0 | V140: 0 | W140: 0
E141: Coincident | Q141: 0 | R141: 0 | S141: 0 | T141: 0 | U141: 0 | V141: 0 | W141: 0
C142: WEATHER CORRECTED MD 10% POE | D142: MW | E142: Non-coincident
E143: Coincident
C144: WEATHER CORRECTED MD 10% POE | D144: MVA | E144: Non-coincident
E145: Coincident
C146: WEATHER CORRECTED MD 50% POE | D146: MW | E146: Non-coincident | Q146: 21.14175937 | R146: 21.68156436 | S146: 22.16595355 | T146: 22.59042008 | U146: 22.95091579 | V146: 23.24391455 | W146: 23.46646902
E147: Coincident
C148: WEATHER CORRECTED MD 50% POE | D148: MVA | E148: Non-coincident | Q148: 21.51683037 | R148: 22.04745412 | S148: 22.52397604 | T148: 22.94181944 | U148: 23.29687823 | V148: 23.58557957 | W148: 23.80494
E149: Coincident
B150: Coffs Harbour | C150: CONNECTION POINT RATING | D150: MVA | E150: Non-coincident | Q150: 240 | R150: 240 | S150: 240 | T150: 240 | U150: 240 | V150: 240 | W150: 240
E151: Coincident | Q151: 240 | R151: 240 | S151: 240 | T151: 240 | U151: 240 | V151: 240 | W151: 240
C152: WINTER/SUMMER PEAKING | E152: Non-coincident | Q152: Winter | R152: Winter | S152: Winter | T152: Winter | U152: Winter | V152: Winter | W152: Summer
E153: Coincident | Q153: Summer | R153: Summer | S153: Summer | T153: Summer | U153: Summer | V153: Summer | W153: Summer
C154: ADJUSTMENTS - EMBEDDED GENERATION | D154: MW | E154: Non-coincident | Q154: 0 | R154: 0 | S154: 0 | T154: 0 | U154: 0 | V154: 0 | W154: 0
E155: Coincident | Q155: 0 | R155: 0 | S155: 0 | T155: 0 | U155: 0 | V155: 0 | W155: 0
C156: WEATHER CORRECTED MD 10% POE | D156: MW | E156: Non-coincident
E157: Coincident
C158: WEATHER CORRECTED MD 10% POE | D158: MVA | E158: Non-coincident
E159: Coincident
C160: WEATHER CORRECTED MD 50% POE | D160: MW | E160: Non-coincident | Q160: 51.94133896 | R160: 50.53592443 | S160: 49.32046914 | T160: 48.28252489 | U160: 47.41158134 | V160: 46.69888712 | W160: 46.2214588
E161: Coincident
C162: WEATHER CORRECTED MD 50% POE | D162: MVA | E162: Non-coincident | Q162: 52.28673534 | R162: 50.89086026 | S162: 49.68408876 | T162: 48.65390231 | U162: 47.7897274 | V162: 47.08275755 | W162: 47.29083689
E163: Coincident
B164: Dorrigo | C164: CONNECTION POINT RATING | D164: MVA | E164: Non-coincident | Q164: 10 | R164: 10 | S164: 10 | T164: 10 | U164: 10 | V164: 10 | W164: 10
E165: Coincident | Q165: 10 | R165: 10 | S165: 10 | T165: 10 | U165: 10 | V165: 10 | W165: 10
C166: WINTER/SUMMER PEAKING | E166: Non-coincident | Q166: Winter | R166: Winter | S166: Winter | T166: Winter | U166: Winter | V166: Winter | W166: Winter
E167: Coincident | Q167: Summer | R167: Summer | S167: Summer | T167: Summer | U167: Summer | V167: Summer | W167: Summer
C168: ADJUSTMENTS - EMBEDDED GENERATION | D168: MW | E168: Non-coincident | Q168: 0 | R168: 0 | S168: 0 | T168: 0 | U168: 0 | V168: 0 | W168: 0
E169: Coincident | Q169: 0 | R169: 0 | S169: 0 | T169: 0 | U169: 0 | V169: 0 | W169: 0
C170: WEATHER CORRECTED MD 10% POE | D170: MW | E170: Non-coincident
E171: Coincident
C172: WEATHER CORRECTED MD 10% POE | D172: MVA | E172: Non-coincident
E173: Coincident
C174: WEATHER CORRECTED MD 50% POE | D174: MW | E174: Non-coincident | Q174: 2.459730387 | R174: 2.44894096 | S174: 2.439392426 | T174: 2.431070035 | U174: 2.423960895 | V174: 2.418053935 | W174: 2.413339883
E175: Coincident
C176: WEATHER CORRECTED MD 50% POE | D176: MVA | E176: Non-coincident | Q176: 2.655235127 | R176: 2.645243245 | S176: 2.636405775 | T176: 2.628707195 | U176: 2.622133944 | V176: 2.616674384 | W176: 2.612318777
E177: Coincident
B178: Koolkhan | C178: CONNECTION POINT RATING | D178: MVA | E178: Non-coincident | Q178: 180 | R178: 180 | S178: 180 | T178: 180 | U178: 180 | V178: 180 | W178: 180
E179: Coincident | Q179: 180 | R179: 180 | S179: 180 | T179: 180 | U179: 180 | V179: 180 | W179: 180
C180: WINTER/SUMMER PEAKING | E180: Non-coincident | Q180: Summer | R180: Summer | S180: Summer | T180: Summer | U180: Summer | V180: Summer | W180: Summer
E181: Coincident | Q181: Summer | R181: Summer | S181: Summer | T181: Summer | U181: Summer | V181: Summer | W181: Summer
C182: ADJUSTMENTS - EMBEDDED GENERATION | D182: MW | E182: Non-coincident | Q182: 0 | R182: 0 | S182: 0 | T182: 0 | U182: 0 | V182: 0 | W182: 0
E183: Coincident | Q183: 0 | R183: 0 | S183: 0 | T183: 0 | U183: 0 | V183: 0 | W183: 0
C184: WEATHER CORRECTED MD 10% POE | D184: MW | E184: Non-coincident
E185: Coincident
C186: WEATHER CORRECTED MD 10% POE | D186: MVA | E186: Non-coincident
E187: Coincident
C188: WEATHER CORRECTED MD 50% POE | D188: MW | E188: Non-coincident | Q188: 47.79781412 | R188: 47.64312882 | S188: 47.50821721 | T188: 47.39290614 | U188: 47.29704682 | V188: 47.22051447 | W188: 47.16320809
E189: Coincident
C190: WEATHER CORRECTED MD 50% POE | D190: MVA | E190: Non-coincident | Q190: 47.96489377 | R190: 47.81074904 | S190: 47.67631175 | T190: 47.56140823 | U190: 47.4658892 | V190: 47.38962953 | W190: 47.3325279
E191: Coincident
B192: Lismore 330 kV | C192: CONNECTION POINT RATING | D192: MVA | E192: Non-coincident | Q192: 750 | R192: 750 | S192: 750 | T192: 750 | U192: 750 | V192: 750 | W192: 750
E193: Coincident | Q193: 750 | R193: 750 | S193: 750 | T193: 750 | U193: 750 | V193: 750 | W193: 750
C194: WINTER/SUMMER PEAKING | E194: Non-coincident | Q194: Winter | R194: Winter | S194: Winter | T194: Winter | U194: Winter | V194: Winter | W194: Winter
E195: Coincident | Q195: Summer | R195: Summer | S195: Summer | T195: Summer | U195: Summer | V195: Summer | W195: Summer
C196: ADJUSTMENTS - EMBEDDED GENERATION | D196: MW | E196: Non-coincident | Q196: 0 | R196: 0 | S196: 0 | T196: 0 | U196: 0 | V196: 0 | W196: 0
E197: Coincident | Q197: 0 | R197: 0 | S197: 0 | T197: 0 | U197: 0 | V197: 0 | W197: 0
C198: WEATHER CORRECTED MD 10% POE | D198: MW | E198: Non-coincident
E199: Coincident
C200: WEATHER CORRECTED MD 10% POE | D200: MVA | E200: Non-coincident
E201: Coincident
C202: WEATHER CORRECTED MD 50% POE | D202: MW | E202: Non-coincident | Q202: 126.4335771 | R202: 126.3146616 | S202: 126.2126301 | T202: 126.1261913 | U202: 126.0542188 | V202: 125.9957477 | W202: 125.9499709
... 4679 more rows

Sheet 7.1 Policies and Procedure
B1: =(LOOKUP(dms_Model,dms_Model_List,dms_Worksheet_List)) -> REGULATORY REPORTING STATEMENT
B2: =INDEX(dms_TradingNameFull_List,MATCH(dms_TradingName,dms_TradingName_List)) -> TransGrid
B3: =IF(SUM(dms_SingleYear_Model)>0,CRY,CONCATENATE(FRCP_y1," to ",dms_MultiYear_FinalYear_Result)) -> 2018-19 to 2022-23
B4: 7.1 PLANS, POLICIES, PROCEDURES AND STRATEGIES
B6: Instructions
B7: =CONCATENATE(dms_TradingName, " must list and provide a brief description of key internal plans, "&"policies, procedures or strategies that are used by it to plan and conduct its day to day operations and that have been relied upon in the development of its regulatory proposal. "&dms_TradingName," must identify any internal plans, policies, procedures and strategies that have changed in the current regulatory control period "&"or that are expected to change before the next regulatory control period where the change has been identified as a step change.") -> TransGrid must list and provide a brief description of key internal plans, policies, procedures or strategies that are used by it to plan and conduct its day to day operations and that have been relied upon in the development of its regulatory proposal. TransGrid must identify any internal plans, policies, procedures and strategies that have changed in the current regulatory control period or that are expected to change before the next regulatory control period where the change has been identified as a step change.
B11: 7.1.1 - PLANS, POLICIES, PROCEDURES AND STRATEGIES
C12: Brief description | D12: Relevance to regulatory proposal | E12: Expenditure impact
C13: Description of the plan, policy, procedure or strategy. | D13: Identify the element of the proposal/supporting documents that the policy, plan, procedure or strategy is relevant to e.g. replacement capex, capacity utilisation thresholds, opex | E13: Is this policy, plan or procedure identified in the response to section 4 'Step Changes' of the notice (yes or no)?
B14: Corporate
B15: Corporate Compliance Management Framework | C15: TransGrid is committed to complying with its key legislative, regulatory and contractual obligations. It proactively manages these obligations by establishing and implementing processes that support compliance with the applicable obligations. This Framework is a guide to the basic approach requirements, roles and obligations and responsibilities within TransGrid for the management of compliance obligations and compliance risks. | D15: Capex, opex, reliability, non-network | E15: No
B19: Governance framework
B20: Corporate Governance Framework | C20: This procedure describes the systems by which TransGrid is directed, controlled and held to account. Corporate governance encompasses the authority, accountability, stewardship, leadership, direction and control exercised in the corporation. This Governance Framework has been developed to provide a better understanding of the various elements that are used in governing TransGrid in order to achieve the corporation’s objectives. | D20: Capex, Opex and non-network alternatives | E20: No
B23: Accounting policies, procedures and methodologies (including a capitalisation policy, depreciation policy and an approved expenditure allocation methodology)
B24: Expenditure Capitalisation Procedure | C24: This standard sets out the guidelines for determining whether expenditure is capital in nature for TransGrid accounting record purposes and the responsibilities for ensuring transaction costs defined as “capital expenditure” are properly identified and recorded. | D24: Capex | E24: No
B25: Cost Allocation Methodology | C25: The purpose of this document is to provide clear explanation of how costs between different expenditure are allocated and distributed amongst various categories with TransGrid's financial records. | D25: Capex and opex | E25: No
B29: Asset management plan or equivalent documentation
B30: Asset Management Policies
B31: Network Vision | C31: The Network Vision considers the range of factors and scenarios that may influence the transmission network of the future. It sets objectives that TransGrid will apply to network management decisions to deliver the Network Vision and Business Plan outcomes. | D31: Augmentation capex Replacement capex Opex | E31: No
B32: Asset Management Policy | C32: The Asset Management Policy defines the key principles and requirements which TransGrid will apply to its network assets to achieve its overall business objectives and Business Plan. | D32: Augmentation capex Replacement capex Opex | E32: No
B33: Asset Management Strategies
B34: Asset Management Strategy and Objectives | C34: The Asset Management Strategy and Objectives Documents takes the Asset Management Policy and sets the overall asset management strategies and objectives across all network assets | D34: Augmentation capex Replacement capex Non-Network capex Opex | E34: No
B35: Network Development Strategy | C35: This Network Development Strategy is intended to define the longer term strategic actions, objectives and approach to the augmentation of the electricity transmission network assets. It provides an overview of the transmission network in NSW and the ACT, its history, expected trends and possible developments over the long term. It has been prepared to articulate how short-term transmission network developments are developed to be consistent with longer term expectations of electricity consumption and generation, and strategic plans for developing the transmission network. It will assists TransGrid to identify key future substation sites and line route segments that may need to be secured early to ensure that efficient development options are not precluded or rendered unfeasible. | D35: Augmentation capex | E35: No
B36: Transmission Annual Planning Report | C36: The Transmission Annual Planning Report (TAPR) provides advance information to market participants, customers, stakeholders and interested parties on the nature and location of emerging constraints in TransGrid’s transmission network to allow them to contribute to the optimum development of the network. In particular, it may assist prospective proponents to develop proposals for demand management and non-network options, such as embedded generation and demand side response. Additionally, the TAPR represents a status report as at June 2013 to our customers and stakeholders on the needs, options and proposed augmentations and asset replacements as they move through the formal Network Investment Process from need identification to option formulation, regulatory consultation, community engagement, project commitment, project commissioning and completion. | D36: Augmentation capex | E36: No
B37: SSA - Smart Network Vision | C37: This document presents a high level vision of the TransGrid Smart Network beyond year 2040 and a roadmap defining the pathways for achieving that vision. | D37: Capex | E37: No
B38: Renewal & Maintenance Strategy: Motor Vehicles and Mobile Plant | C38: This strategy guides the management of TransGrid’s existing Motor Vehicle and Mobile Plant assets. | D38: Motor vehicles and mobile plant capex and opex | E38: No
B39: Renewal & Maintenance Strategy - Underground cables | C39: This strategy guides the management of TransGrid’s existing Underground Cable assets. | D39: Opex and Replacement capex | E39: No
B40: Renewal & Maintenance Strategy - Transmission lines | C40: This strategy guides the management of TransGrid’s existing Transmission Line assets. | D40: Opex and Replacement capex | E40: Yes
B41: Renewal & Maintenance Strategy - Substations | C41: This strategy guides the management of TransGrid’s existing Substation assets. | D41: Opex and Replacement capex | E41: No
B42: Renewal & Maintenance Strategy - SSA Strategy – Metering system | C42: This strategy guides the management of TransGrid’s existing Metering assets. | D42: Opex and Replacement capex | E42: No
B43: Renewal & Maintenance Strategy - SSA Strategy – Automation system | C43: This strategy guides the management of TransGrid’s existing Substation's Automation assets | D43: Opex and Replacement capex | E43: No
B44: Renewal & Maintenance Strategy - Security Assets | C44: The document identifies the emerging issues with TransGrid’s substation security assets, and details the renewal and maintenance initiatives to be implemented in response to these issues. | D44: Opex and Replacement capex | E44: No
B45: Infrastructure Development and Renewal, Strategy and Objectives - Telecom | C45: This document analyses the various external and internal drivers on TransGrid, and how these impact the development of the communications network and defines major architectural guidelines to be adhered when developing the communications network. | D45: Capex | E45: No
B48: Asset Management Plans
B49: Maintenance Plan - Cables | C49: The purpose of this document is to define a plan for the Preventative Maintenance of high voltage underground power cables and associated plant. The implementation of the inspection and maintenance practices specified in this plan fulfils TransGrid's regulatory obligations, and promotes the cost effective attainment of reliability and safety objectives. | D49: Opex and replacement capex | E49: No
B50: Maintenance Plan - Transmission Lines | C50: The purpose of this document is to define a plan for the Preventative Maintenance of high voltage Transmission Lines. The implementation of the inspection and maintenance practices specified in this plan fulfils TransGrid's regulatory obligations, and promotes the cost effective attainment of reliability and safety objectives. | D50: Opex and replacement capex | E50: No
B51: Maintenance Plan - Easement & Access | C51: This document describes the maintenance activities and sets out the plan for transmission line easements and access tracks. | D51: Opex and Capex | E51: Yes
B52: Maintenance Plan - Substations | C52: The purpose of this document is to define a plan for the Preventative and Corrective Maintenance of Substation Assets installed in TransGrid Substations. The implementation of the inspection and maintenance practices specified in this plan fulfils TransGrid's regulatory obligations, and promotes the cost effective attainment of reliability and safety objectives. | D52: Opex and Capex | E52: No
B53: Maintenance Plan - Security Assets | C53: The purpose of this document is to implement maintenance strategies and define the maintenance requirements for the management of TransGrid's security assets. | D53: Opex and Capex | E53: No
B54: Maintenance Plan - Automation Systems | C54: The purpose of this document is to define the requirements for the routine and defect maintenance of all automation systems assets. | D54: Opex and Capex | E54: No
B55: Maintenance Plan - Metering | C55: This document defines the requirements for the maintenance of metering equipment used on TransGrid’s network to meet operational requirements and to ensure compliance with the requirements of the National Electricity Rules where applicable. | D55: Opex and Capex | E55: No
B56: Maintenance Plan - Telecommunications | C56: This document describes the routine and non-routine maintenance of all Telecommunication Assets. | D56: Opex and Capex | E56: No
B57: Maintenance Plan - Security Assets | C57: The purpose of this document is to define a plan for the preventative and corrective maintenance of substation security assets. The implementation of the inspection and maintenance practices specified in this plan fulfils TransGrid's regulatory obligations, and promotes the cost‑effective attainment of reliability, safety and environmental objectives. | D57: Opex and Capex | E57: No
B60: Capital expenditure policies and procedures (including capex approval policies and procedures and replacement policy)
B61: Prescribed Capital Investment Framework | C61: This procedure describes the process used by TransGrid to identify, realise and maximise the benefits from investments in assets that deliver prescribed transmission services. | D61: Network and Non-Network Capex and Opex | E61: No
B62: Prescribed Capital Investment Governance Arrangements | C62: This document sets out the governance arrangements applicable to the capital investment framework used by TransaGrid to deliver prescribed transmission services | D62: Network and Non-Network Capex | E62: No
B63: Prescribed Capital Investment Procedure | C63: This procedure describes the capital investment procedure used by TransGrid to deliver prescribed transmission services. | D63: Network and Non-Network Capex | E63: No
B64: Prescribed Capital Investment Benefits and Optimisation Procedure | C64: This procedure describes the process used by TransGrid to identify, realise and maximise the benefits from investments in assets that deliver prescribed transmission services. | D64: Network and Non-Network Capex | E64: No
B65: Network Asset Risk Assessment Methodology (RAM) | C65: The Network Asset risk Assessment Methodology outlines the way network asset risks are analysed and assessed, to support the investment decision making process. | D65: Network and Non-Network Capex and Opex | E65: No
B66: Network Asset Criticality Framework | C66: The Network Asset Criticality Framework outlines the manner in which consequences associated with network assets are assessed and quantified. | D66: Network and Non-Network Capex | E66: No
B67: Network Asset Health Framework | C67: This document outlines the framework adopted in the development of an effective asset health system for electricity network assets. | D67: Network and Non-Network Capex | E67: No
B74: Internal standards for network planning, design, maintenance and operation
B75: Substation Design Manual – Civil & Structures | C75: This document outlines the civil and structural technical inputs for the production of standard substation designs. | D75: Capex and obligations | E75: No
B76: Standard Design Manual – Control | C76: This document outlines the control technical inputs for the production of standard substation designs. | D76: Capex and obligations | E76: No
B77: Standard Design Manual – Communications | C77: This document outlines the Communications technical inputs for the production of standard substation designs. | D77: Augmentation capex Obligations Replacement capex Opex | E77: No
B78: Standard Design Manual – Automation | C78: This document outlines the automation technical inputs for the production of standard substation designs. | D78: Obligations | E78: No
B79: Protection and Metering Standard Design Manual | C79: This manual provides the design details of the protection and metering schemes, standard design references and design parameters required for all TransGrid protection schemes for the protection of high voltage equipment at 500 kV and below. Revision | D79: Obligations | E79: No
B80: Transmission Line Design Manual | C80: This standard defines the design parameters for overhead transmission line structure loading and geometry and is applicable to new and existing transmission lines under the responsibility of TransGrid. | D80: Capex and obligations | E80: No
B81: Standard Design Manual - Condition Monitoring | C81: This document defines the TransGrid Standards to be implemented when designing Substation Online Condition Monitoring (SOLCM) systems for the Transmission System Network | D81: Capex | E81: No
B82: Standard Design Manual - High Voltage | C82: The purpose of this Procedure is to detail the design inputs required for the delivery of standard substation designs to meet the Principal’s requirements. | D82: Capex | E82: No
B83: Safety in Designs Procedure | C83: This document outlines the procedure(s) required to generate a Safety In Design (SID) report for the generation of designs | D83: Capex and obligations | E83: No
B84: Fire Protection Manual Operations and Maintenance | C84: This procedure has been prepared under the direction of the TransGrid Fire Protection Committee for the guidance of managers, staff and contractors, to minimise the risk of uncontrolled fire and subsequent damage to property and corporate assets. | D84: Obligations | E84: No
B85: Health and Safety Management System Framework | C85: The purpose of the Health and Safety Management System Framework is to describe the system TransGrid has: • To keep our people well and safe; • To continuously improve our performance; and • To demonstrate compliance to relevant health and safety legislation, codes of practice and industry standards | D85: Obligations | E85: No
B86: Environmental Management System Framework | C86: The purpose of this framework is to provide an overview of TransGrid’s environmental management system | D86: Obligations | E86: No
B87: Procurement and contracting out policies
B88: Procurement Charter | C88: This document defines the operating model between the Procurement group and the Organisation. | D88: Capex and opex | E88: No
B89: Procurement Procedures | C89: The objective of the Procurement Procedures is to ensure that TransGrid’s procurement activities achieve best value for money outcomes in supporting the delivery of goods and services. | D89: Capex and opex | E89: No
B92: Information technology policies or strategies
B93: TransGrid Technology Strategic 2017-2023 | C93: The 2017-2023 TransGrid Technology Vision is for an integrated technology strategy to achieve TransGrid’s business plan through a managed portfolio of prudent, connected and secure technology services. | D93: Capex and opex | E93: No
B94: TransGrid Technology Strategic Plan 2017-2023 | C94: This document is an extension of the TransGrid Technology Strategy 2017 – 2023 and must be read in conjunction with the strategy. | D94: Capex and opex | E94: No
B95: IT Management Framework | C95: This framework describes the governance, processes, roles and responsibilities that are in place to effectively manage and deliver ICT services to support TransGrid’s business objectives. | D95: Capex & opex | E95: No
B96: IT Account Access and Password Security Policy | C96: The purpose of this document is to establish a standard for accounts and associated passwords for Systems used in TransGrid. | D96: Capex & opex | E96: No
B97: Information Securuty Policy | C97: The purpose of the Information Security Policy is to reduce the risk of security incidents occurring and minimise the business impact of security incidents that eventuate. | D97: Capex & opex | E97: No
B100: Demand management policies or strategies
B101: Transmission Annual Planning Report (TAPR) | C101: The aim of the TAPR is to provide advance information to National Electricity Market participants and interested parties on the emerging constraints in the NSW transmission network, allowing them to better understand the potential impacts on their businesses and project proposals | D101: Capex, opex, overheads, demand forecast, augmentation projects | E101: No
B104: Self insurance guidelines or policy
B105: Insurance and Damaged Asset Procedures | C105: This Procedure outlines the processes for managing TransGrid’s insurances and the associated accountabilities of parties to those processes. This procedure applies to all staff involved in TransGrid’s insurance processes, including the renewal of TransGrid’s general line and construction risk programs, and the notification and management of claims. | D105: Insurance and overheads | E105: No
B109: Land and easement acquisition polices
B110: Acquisition of Property and Property Interests | C110: The purpose of this document is to record and prescribe the process for the acquisition (or security) of Property and Property Interests to secure appropriate tenure to support the activities of NSW Electricity Networks Operations Pty Limited. | D110: Capex | E110: No
B114: Asset security plans and policies
B115: Maintenance Plan-Security Assets | C115: The purpose of this document is to set out the planned maintenance activities and frequencies for the management of TransGrid's substation security assets. | D115: Capex, Opex | E115: No
B118: Disaster recovery policy
B119: Corporate and Regional Emergency Management Plan | C119: The Corporate and Regional Emergency Management Plan (CREMP) aims to anticipate, respond and manage any type of emergency which impacts on safety, reliability, the environment or TransGrid’s business as quickly and safely as possible. | D119: Capex, opex, reliability, non-network | E119: No
B120: ICT Disaster Recovery Procedure | C120: The ICT Disaster Recovery Procedure provides a guideline for the orderly restoration of technology services in the event of a disruption (e.g. natural, man-made or technological failure). | D120: Non network and Overhead | E120: No
B121: Service Recovery and Failover to Secondary Site Procedure | C121: This procedure contains information pertaining to the enacting of Service Recovery and Failover to Secondary Site, as related to the BAC 8*5Application Environment. It includes: • An overview of BAC 8*5 Application Environment and its components, • A list of the different Service Recovery scenarios, • A detailed list of steps required to respond to the Service Recovery scenarios mentioned | D121: Non network and overheads | E121: No
B122: TransGrid Disaster Recovery Invoke Process | C122: This document is to outline, at a high level, the process to invoke the Disaster Recovery Plan. In particular it focuses on the parties involved, roles/responsibilities and the communication with the various teams. This DR Invoke Process is intended to be used during any incident that has the potential to require the activation of the Disaster Recovery Plan. This includes incidents at both the Sydney West and Sydney South data centres for the ICT Operations technology environment. Recovery of the TransGrid Telecommunications infrastructure and links, or any office related infrastructure is included in this process. | D122: Non network and overheads | E122: No

Sheet 7.2 Contingent projects
B1: =(LOOKUP(dms_Model,dms_Model_List,dms_Worksheet_List)) -> REGULATORY REPORTING STATEMENT
B2: =INDEX(dms_TradingNameFull_List,MATCH(dms_TradingName,dms_TradingName_List)) -> TransGrid
B3: =IF(SUM(dms_SingleYear_Model)>0,CRY,CONCATENATE(FRCP_y1," to ",dms_MultiYear_FinalYear_Result)) -> 2018-19 to 2022-23
B4: 7.2 CONTINGENT PROJECTS
B7: Instructions
B8: =CONCATENATE(dms_TradingName," is required to populate all input cells (yellow) in table 7.2.1 presented below. Additional rows may be added by ",dms_TradingName," if required." ) -> TransGrid is required to populate all input cells (yellow) in table 7.2.1 presented below. Additional rows may be added by TransGrid if required.
B10: 7.2.1 - PROPOSED CONTINGENT PROJECTS FOR THE FORTHCOMING REGULATORY CONTROL PERIOD
B11: Proposed contingent project name | C11: Proposed contingent capital expenditure ($0's, nominal) | D11: Proposed trigger events | E11: =CONCATENATE("Proposed MAR for ", FRCP_y1," ($0's, nominal)") -> Proposed MAR for 2018-19 ($0's, nominal) | F11: =CONCATENATE("5 per cent of the ", FRCP_y1," ($0's, nominal) MAR") -> 5 per cent of the 2018-19 ($0's, nominal) MAR
B12: NSW South Australia Network Upgrade | C12: 1055492723 | D12: (i) Successful completion of the RIT-T for the South Australian Energy Transformation, with a NSW to South Australia interconnector identified as the preferred option or part of the preferred option: - demonstrating positive net markets; and/or - addressing system security issues (ii) Determination by the AER under clause 5.16.6 of the NER that the proposed investment satisfies the RIT-T (iii) TransGrid Board commitment to proceed with the project subject to the AER amending the revenue determination pursuant to the Rules | E12: 796531419.2 | F12: =+E12*0.05 -> 39826570.96
B13: Reinforcement of Northern Network | C13: 161358700.6 | D13: (i) Either: - Committed retirement of more than 1100 MW of generation in the Hunter or Central Coast area; and/or - AEMO classification of generation developments as being at the ‘committed’ stage of development on the ‘Generator Information’ webpage, exceeding 1100 MW at any current or future connection point(s) north of Armidale; and/or - AEMO classification of generation developments as being at the ‘committed’ stage of development on the ‘Generator Information’ webpage, exceeding 350 MW at any current or future connection point(s) south of Liddell and Bayswater (ii) Successful completion of the RIT-T which will be initiated in the event of occurrence of any of the above triggers, including a comprehensive assessment of credible options demonstrating positive net market benefits (iii) Determination by the AER under clause 5.16.6 of the NER that the proposed investment satisfies the Regulatory Investment Test for Transmission | E13: =+$E$12 -> 796531419.2 | F13: =+E13*0.05 -> 39826570.96
B14: Reinforcement of Southern Network | C14: 290925883.5 | D14: (i) New generation of more than 350 MW is committed in southern NSW at any current or future connection point(s) south of Bannaby and Marulan or NSW import capacity from Southern Interconnectors is determined to be increased by more than 350 MW due to committed expansion of southern interconnections (ii) Successful completion of the RIT-T which will be initiated in the event of occurrence of any of the above triggers, including a comprehensive assessment of credible options demonstrating positive net market benefits (iii) Determination by the AER under clause 5.16.6 of the NER that the proposed investment satisfies the RIT-T (iv) TransGrid Board commitment to proceed with the project subject to the AER amending the revenue determination pursuant to the Rules | E14: =+$E$12 -> 796531419.2 | F14: 39826570.96
B15: Support South Western NSW for Renewables | C15: 530391519.3 | D15: (i) New generation more than 400 MW is committed in South Western NSW (west of Wagga) ; and/or (ii) New generation in North West Victoria - exceeding 800 MW for connection to the Ballarat – Waubra – Ararat – Horsham 220kV Lines or connection point(s); and/or - exceeding 200 MW for connection to the Redcliffs – Weman – Kerang 220kV Lines or connection point(s); and/or - exceeding 500 MW for connection to the Ballarat – Terang – Moorabool 220kV Lines or connection point(s); and/or - exceeding 1,500 MW in the North West Victoria zone (iii) Successful completion of a RIT-T, either by TransGrid for South West NSW or AEMO for North West Victoria, demonstrating positive net market benefits with an augmentation of the transmission network south-west of Wagga identified as the preferred option or part of the preferred option (iv) Determination by the AER under clause 5.16.6 of the NER that the proposed investment satisfies the RIT-T (v) TransGrid Board commitment to proceed with the project subject to the AER amending the revenue determination pursuant to the Rules. | E15: 796531419.2 | F15: 39826570.96
B16: Supply to Broken Hill | C16: 58992794.65 | D16: (i) Notification from Essential Energy of available capacity of backup generation at Broken Hill that would result in expected unserved energy exceeding 10 minutes at average demand (ii) Successful completion of economic evaluation demonstrating that a network investment is the most efficient option to meet the applicable electricity transmission reliability standard (iii) TransGrid Board commitment to proceed with the project subject to the AER amending the revenue determination pursuant to the Rules. | E16: 796531419.2 | F16: 39826570.96
E17: 796531419.2 | F17: 39826570.96
E18: 796531419.2 | F18: 39826570.96
E19: 796531419.2 | F19: 39826570.96
E20: 796531419.2 | F20: 39826570.96
E21: 796531419.2 | F21: 39826570.96
E22: 796531419.2 | F22: 39826570.96
E23: 796531419.2 | F23: 39826570.96
E24: 796531419.2 | F24: 39826570.96
E25: 796531419.2 | F25: 39826570.96
E26: 796531419.2 | F26: 39826570.96
E27: 796531419.2 | F27: 39826570.96
E28: 796531419.2 | F28: 39826570.96
E29: 796531419.2 | F29: 39826570.96
E30: 796531419.2 | F30: 39826570.96
E31: 796531419.2 | F31: 39826570.96

Sheet 7.3 Obligations
B1: =(LOOKUP(dms_Model,dms_Model_List,dms_Worksheet_List)) -> REGULATORY REPORTING STATEMENT
B2: =INDEX(dms_TradingNameFull_List,MATCH(dms_TradingName,dms_TradingName_List)) -> TransGrid
B3: =IF(SUM(dms_SingleYear_Model)>0,CRY,CONCATENATE(FRCP_y1," to ",dms_MultiYear_FinalYear_Result)) -> 2018-19 to 2022-23
B4: 7.3 OBLIGATIONS, REQUIREMENTS & STANDARDS
B6: There is ONE table on this worksheet. It has been sub-grouped for ease of navigation. See the Instructions sheet on how to group or ungroup data.
B8: Instructions
B9: =CONCATENATE("Outline those obligations and requirements that ",dms_TradingName, " identifies as having a material impact on expenditure requirements.") -> Outline those obligations and requirements that TransGrid identifies as having a material impact on expenditure requirements.
B12: 7.3.1 - OBLIGATIONS OR REQUIREMENTS
C13: Brief description | D13: Relevance to regulatory proposal | E13: Expenditure impact
C14: Description of relevant obligations or requirements within the instrument (e.g. safety obligations, reliability targets) | D14: Identify what element of the proposal/supporting documents the obligation or requirement is relevant to e.g. replacement capex, capacity utilisation thresholds, opex | E14: Is the obligation or requirement identified in the response to section 4 'Step Changes' of the notice (yes or no)?
B15: Legislation
B16: Electricity Supply (Safety and Network Management) Regulation 2014 (NSW) Clauses 9, 10, 11, 12 and Schedule 1 of the Regulation | C16: Relevant Sections: Part 2 and Part 4 This Regulation prescribes provisions that will apply to network operators and which will enable the NSW Government to direct network operators to provide an adequate, reliable and safe supply of electricity of appropriate quality. The safety of the public and property is the highest priority of the Regulation. The Regulation covers issues relating to a network management system such as network safety and reliability, customer installation safety, public electrical safety awareness, and bushfire risk management that previously were explicitly required from a network operator under the current Regulation but are now to be parts of a single network safety management system (‘management system’). The system, including performance must be audited at least once in every 12 month period. Time for network operators to transition to the new requirement is allowed. In relation to the management system, the Regulation makes provisions in respect of the following: the matters that must be included in a network operator’s management system; oA network operator must have a safety management system in place that is in accordance with AS 5577 or with any other code or standard nominated by the Minister. The safety management system must deal with the following: (i) the safety and reliability of the network operator's network, (ii) the safety of electrical installations of customers connected to the network operator's network, (iii) advice to the public about the hazards associated with electricity in relation to the network operator's network, (iv) management of bush fire risk relating to electricity lines and other assets of the network operator's network that are capable of initiating bush fire. the auditing of the management system by an independent auditor; the power of the Secretary of the Department of Trade & Investment (the Secretary) to require a network operator to produce a management system which is of a complexity to match the size of the network; the compliance of a network operator with its management system; from the audit making a document available to the Secretary providing an overview of the system; making a summary of the system and Performance against the system publicly available by placing this information on their web site | D16: Capex, opex | E16: Yes
B17: Electricity Supply Act 1995 | C17: The objects of this Act are: (a) to promote the efficient and environmentally responsible production and use of electricity and to deliver a safe and reliable supply of electricity, and Note. Customer choice and rights in relation to electricity connections and electricity supply are provided for by the National Energy Retail Law (NSW). (b) to confer on network operators such powers as are necessary to enable them to construct, operate, repair and maintain their electricity works, and (c) (Repealed) (d) to promote and encourage the safety of persons and property in relation to the generation, transmission, distribution and use of electricity. The Act also requires an electricity distributor operating in NSW to hold a licence. | D17: Capex, opex | E17: No
B18: National Electricity Law (National Electricity (South Australia) Act 1996) | C18: Electricity transmission entities have a large number of obligations under the NEL. The most significant obligations are to: register with AEMO as a "Registered Participant"; comply with the transmission determination that applies to the electricity transmission network services provided; provide the AER with the necessary information or prepare, maintain or keep the information as is requested by the AER in either a "relevant notice" or a "regulatory information instrument"; provide information to the AER for the purpose of the preparation of a NSP's performance or financial report; comply with the guidelines established by AEMO in relation to the shedding and restoration of loads in order to ensure the safety and security of the National Electricity System; comply with a wide range of obligations relating to the determination and resolution of access disputes, as well as to the restrictions on, variation of and compliance with access determinations; and comply with the general obligation not to prevent or hinder the access of another person to a regulated network service. | D18: Capex, opex | E18: No
B19: Foreign Investment Review Board (FIRB) Conditions | C19: Being the conditions issued by the Foreign Investment Review Board in relation to the Australian Government's approval of the consortium's acquisition of TransGrid, on or about 20 November 2015 Condition 1: 1.Provide the final agreed securityholders' agreement to the FIRB and explain any material changes compared to the information provided through the foreign investment review process. 2.Consortium members must maintain their individual equity and voting interests in the entities involved in operating the 99 year lease of TransGrid at no more than 50%. 3.No subleasing to third parties of the whole or a significant part of the TransGrid network or telecommunications assets leased from the NSW Government without first seeking approval from the Commonwealth Treasurer. 4.Ensure that 50% of the directors of the boards involved with the 99 year lease of TransGrid comprise Australian citizens residing in Australia, of whom two will be independent* directors with full viting rights who have a security clearance of at least Negative Vetting Level 1 (NV1) (or equivalent) and that one of these directors will be required to form a quorum at all board meetings. onot in breach in the case of a casual vacancy where the vacancy is filled within two months of occurring othe security clearance application must be made within 30 days of the acquisition of the sub-lease occurring or a new independent director being appointed to the board othe independence of a director should have regard to the factors identified by the ASX Corproate Governance Council in Corporate Governance Principles and Recommendations (3rd edition) 5.Within 6 months of the acquisiton, the board of each entity involved in the 99 year lease of TransGrid must have an independent* chairperson who is an Australian citizen residing in Australia. 6.Provide a report, certified by the independent chairperson, every twelve months to the FIRB on its compliance with all of the above undertakings. Condition 2 50% of the TOT board comprises Australian citizens residing in Australia, of whom two will be independent* directors with full voting rights who have a security clearance of at least Negative Vetting Level 1 (NV1) (or equivalent) and that one of these directors will be required to form a quorum at all board meetings Condition 3 Within 6 months of the acquisition, the board of each entity involved in the 99 year lease of TransGrid must have an independent* chairperson who is an Australian citizen residing in Australia. *the independence of a director should have regard to the factors identified by the ASX Corporate Governance Council in Corporate Governance Principles and Recommendations (3rd edition) Condition 4 Ensure the maintenance of the telecommunications business acquired from TransGrid is undertaken solely from within Australia, other than where such maintenance is not capable of being undertaken within Australia on reasonable commercial terms Condition 5 Ensure the operation and control of the telecommunications business acquired from TransGrid is capable of being undertaken only from within Australia Condition 6 Ensure that senior officer/s who have primary responsibility for the day to day operation and monitoring of TransGrid's telecommunications business and for directing the operational planning, management, control and security of the telecommunications business are persons residing in Australia and holding or possessing an ability to hold a security clearance of at least NV1 (or equivalent) Condition 7 TOT Trustee of the TOT to provide a report, certified by the independent chairperson, every twelve months to the FIRB on its compliance with all of the above conditions | D19: Opex | E19: No
B20: Contaminated Land Management Act 1997 | C20: Relevant Sections: Cl. 15, 17, 60, 85 An owner of contaminated land or a person who's activities have contaminated land must notify the Office of Environment and Heritage (OEH) as soon as practicable after becoming aware of a substance contaminating land, or any by-product that: enters or will foreseeably enter neighbouring land, the atmosphere, groundwater or surface water, and the levels in the neighbouring land, atmosphere, groundwater or surface water will foreseeably be, and remain above, those in regulations or in the Office of Environment and Heritage (NSW) Publication: Guidelines on the Duty to Report Contamination under the Contaminated Land Management Act 1997 Comply with any Office of Environment and Heritage (OEH) order to investigate and report on the level of contamination of land specified in the order. | D20: Opex | E20: No
B21: Evironmental Planning and Assessment Act 1979 (NSW) | C21: Relevant Sections: s 76A, 80, 106-109B, 109C, 110-112, 115Y Do not commence development unless a development consent and any relevant certification has been obtained. Comply with the terms of any development consent. If the activity is likely to have a significant effect on the environment, prepare an environmental impact statement/species impact statement. | D21: Capex | E21: No
B22: Protection of the Environment Operations Act 1997 | C22: Relevant Sections: Cl. 47-49, 115, 116,120, 124-125,126, 140, 143, 145, 146, 142A Do not dispose of waste in a manner that harms, or is likely to harm the environment. Do not harm or risk harming the environment by wilfully or negligently causing any substance to leak, spill or otherwise escape (whether or not from a container). Do not cause water pollution (other than to a sewer), except in accordance with the conditions of any EPA licence. Do not transport waste to a place that cannot be lawfully used as a waste facility for that waste. Do not carry out a waste-related scheduled activity, or perform development work for the purpose of allowing such an activity, unless in accordance with an EPA licence or resource recovery exemption. Do not cause air pollution by failing to maintain and operate plant, or carry out maintenance work on plant, in a proper and efficient manner. An occupier of a premises must not cause noise by failing to deal with materials properly and efficiently. Do not cause air pollution by failing to deal with materials in a proper and efficient manner. Do not cause or permit land pollution. Notify each relevant authority immediately of pollution incidents where material harm to the environment is caused or threatened.. (This obligation applies to persons carrying on an activity directly or through agents or principals, as well as to employers, employees, and occupiers of premises. Such notifications are not admissible in evidence against the person notifying of an offence.) Do not, unless licensed by the Office of Environment and Heritage (OEH) carry out or allow an activity listed in Schedule 1, or carry out work to enable such an activity. Do not litter in a public place, in an open private place or from a vehicle. | D22: Capex | E22: No
B23: Rural Fires Act 1997 | C23: Relevant Sections: Cl. 63(2), 64, 99, 100(1B), 100(2) Comply with directions given in total fire bans. Do not, without lawful authority, set fire to land or property of another person, the Crown or a public authority when a total fire ban is in force. An owner or occupier of land must not, without lawful authority, allow a fire to escape from the land where it causes, or is likely to cause, injury or damage to another person, land or property of another person, the Crown or a public authority. Do not leave any fire in the open air unless it has been thoroughly extinguished. An owner or occupier of land must take: notified steps and other practicable steps, to prevent bush fires and minimise the danger of their spread all possible steps to extinguish a fire burning during a bush fire danger period, and if unable to do so, inform an appropriate officer of its existence and locality, if practicable to do so without leaving the fire unattended. | D23: Capex | E23: No
B24: Environment Protection and Biodiversity Conservation Act 1999 | C24: Relevant Sections: Cl. 12, 15B, 16, 18, 20, 21, 23, 24B, 24D, 11, 12-24E, 29, 32, 46(1), 67A, 68, 74AA, 136-140, 142, 142A, 523 If undertaking development or other activities that may have a significant impact on matters of national environmental significance, comply with the Environment Protection and Biodiversity Conservation Act 1999 (Commonwealth). | D24: Capex | E24: No
B25: Work Health and Safety Act 2011 | C25: Relevant Sections: Cl. 19-29, 38-39, 46-49, 70, 117-122, 160, 163-166, 171-174 Object (1) The main object of this Act is to provide for a balanced and nationally consistent framework to secure the health and safety of workers and workplaces by: (a) protecting workers and other persons against harm to their health, safety and welfare through the elimination or minimisation of risks arising from work; and (b) providing for fair and effective workplace representation, consultation, co operation and issue resolution in relation to work health and safety; and (c) encouraging unions and employer organisations to take a constructive role in promoting improvements in work health and safety practices, and assisting persons conducting businesses or undertakings and workers to achieve a healthier and safer working environment; and (d) promoting the provision of advice, information, education and training in relation to work health and safety; and (e) securing compliance with this Act through effective and appropriate compliance and enforcement measures; and (f) ensuring appropriate scrutiny and review of actions taken by persons exercising powers and performing functions under this Act; and (g) providing a framework for continuous improvement and progressively higher standards of work health and safety; and (h) maintaining and strengthening the national harmonisation of laws relating to work health and safety and to facilitate a consistent national approach to work health and safety in this jurisdiction. (2) In furthering subsection (1)(a), regard must be had to the principle that workers and other persons should be given the highest level of protection against harm to their health, safety and welfare from hazards and risks arising from work as is reasonably practicable. | D25: Capex | E25: No
B26: Work Health and Safety Regulation 2011 | C26: Relevant Sections: Cl. 32-45, 48-166, 185-203, 214-288, 294-298, 304-318, 326-327, 336-340, 345-356, 419-529 These Regulations cover a wide range of matters relating to work health and safety, including: General risk and workplace management; Hazardous work involving noise, hazardous manual tasks, confined spaces, falls, work requiring a high risk work licence, demolition work, electrical safety and energised electrical work and diving work; Plant and structures; Construction work; Hazardous chemicals; and Asbestos | D26: Capex | E26: No
B27: Telecommunications Act 1997 | C27: A carrier or carriage service provider must: Protect the confidentiality of information carried or supplied by carriers or carriage service providers, and personal information; Not use its telecommunications network or facilities to contravene with any Act or Law. Assistance must be provided to Commonwealth, State and Territory officers and authorities in enforcing criminal law and safeguarding national security, among other things; Comply with standards determined by ACMA; Comply with cabling equipment and customer cabling labelling standards; Prevent the unauthorised use of compliance symbols; Prevent unlawful or dangerous connections of customer equipment or customer cabling; If directed by the ACMA, disconnect or reconnect customer equipment of cabling; Provide other carriers access to supplementary facilities; Provide other carriers access to certain information relating to the operation of telecommunications networks; Provide other carriers with access to telecommunications transmission towers, the sites of telecommunications transmission towers and underground facilities; Regularly inspect/investigate their facilities, and take any remedial action that is reasonably required on facilities that are likely to endanger the health and safety of persons or cause damage to property. For interconnected telecommunications networks, the carrier must obtain a designated interconnection service from the carriage service provider to ensure any-to-any connectivity; If exercising powers to enter someone’s property to inspect land and install and maintain facilities, the carrier comply with certain conditions, including: (a) doing as little damage as practicable; (b) acting in accordance with good engineering practice; (c) complying with recognised industry standards; (d) complying with conditions specified in the regulations; (e) complying with conditions specified in a Ministerial Code of Practice; (f) complying with conditions specified in a facility installation permit; and (g) giving notice to the owner of land. | D27: Capex | E27: No
B28: Utilities Act 2000 (ACT) | C28: Relevant Sections: Part 3 and Part 7 This Act provides a regulatory framework for the provision of utility services in the ACT, including the transmission, distribution and connection of electricity. In addition to the complying with the Act and the conditions imposed by licences, utilities must also: Comply with established industry guidelines and technical codes that are applicable to utilities in the ACT, and directions given by the ICRC or the technical regulator; Keep all records and documents necessary to enable it to meet any reporting requirements; Ensure the protection of personal information; In carrying out network operations, take all reasonable steps to ensure it causes as little inconvenience, detriment and damages as is practicable; Give a written notice to land owners and other public utilities at least 7 days before the start of proposed operations; When carrying out network operations on land for which it is not the land-holder, take all reasonable steps to ensure that the land is restored as soon as practicable to a condition that is similar to its condition before the operations began. | D28: Capex | E28: No
B29: Electricity Transmission Supply Code (ACT) | C29: Relevant Sections: Chapters 4-8 The Code provides technical requirements for electricity transmission supply. It requires TransGrid to to plan, design, maintain and operate its networks and connection points that supply customers in the Australian Capital Territory (ACT) and that will operate at 132kV and above, whether or not those networks and Connection Points are located within the ACT, to achieve the following: the provision of two or more geographically separate connection points operated at 132kV and above to supply electricity to the ACT network; and continue to allow electricity supply at maximum demand immediately after a credible contingency event by the provision of a switching station and augmentation of the supplying transmission lines by 2020. TransGrid must have a safety management system consistent with AS5577 and the requirements of this Regulation, and an asset management system consistent with ISO 55000. TransGrid must develop and enforce safe operating procedures, Electricity Safety Rules, and an Emergency Plan. Reports are to be provided to the technical regulator in accordance with timeframes provided in the Code. | D29: Capex | E29: No
B59: Licences
B60: NSW Transmission Operators Licence | C60: "Being the licence of that name dated 7 December 2015 granted by the Minister for Industry, Resources and Energy in accordance with section 93A of the Electricity Supply Act 1995 (NSW)" "Condition 1 - NEM Registration The Licence Holder must ensure that it is (1) registered or is exempt from the requirement to be registered as a NSP under the National Electricity Rules; or (2) hold any equivalent authorisation or right to participate in the NEM Condition 2 - Technical and Prudential Criteria The Licence Holder must, for the duration of the Licence, satisfy the technical and prudential criteria required to continue to be registered or authorised under Condition 1" The Licence Holder must comply with the reliability and performance standards set by the Minister for operating its transmission system "The Licence Holder must submit its annual demand forecasts to AEMO in sufficient time to enable AEMO to consider and provide comments to the Licence Holder prior to finalisation of the 'Annual Demand Forecast' , as required under clause 5.12 of the National Electricity Rules." The Licence Holder must maintain a Business Continuity Plan relating to the operation of its transmission system "Condition 6.1 (a) maintenance of the transmission system must be undertaken solely from within Australia, and (b) the operation and control of the transmission system must be capable of being undertaken only from within Australia Condition 6.2 (a) at least two directors must be Australian citizens (b) must have senior officers responsible for operational technology (SCADA) and network operations who reside in Australia and have appropriate national security clearance (not less than Negative Vetting 1 or equivalent) issued by the NSW Government on advice from AGSVA NOTE: For the purposes of condition 6, 7 and 8 of the Transmission Operator's Licence, it is acknowledged that the assets which the Licence Holder operates may constitute ""critical infrastructure"" being those physical facilities, supply chains, information technologies and communication networks which, if destroyed or rendered for an unavailable period, would significantly impact on the security, social or economic wellbeing of the State of New South Wales and other States and Territories. These licence conditions will be reviewed by the Minister from time to time (and where necessary) in consultation with responsible Ministers of the Commonwealth and relevant States and Territories." "Historical and current load data, as well as personal information covered by the Privacy Act, must only be held in Australia, and be only accessed by a Relevant Person or authorised persons from within Australia. NOTE: For the purposes of condition 6, 7 and 8 of this Licence, it is acknowledged that the assets which the Licence Holder operates may constitute ""critical infrastructure"" being those physical facilities, supply chains, information technologies and communication networks which, if destroyed or rendered for an unavailable period, would significantly impact on the security, social or economic wellbeing of the State of New South Wales and other States and Territories. These licence conditions will be reviewed by the Minister from time to time (and where necessary) in consultation with responsible Ministers of the Commonwealth and relevant States and Territories." "Provide a report to IPART each year detailing compliance with conditions 6 and 7 for the preceding financial year to 30 June. The report must be audited by an auditor approved by IPART, and be accompanied by a certification in writing supported by the Board that the Licence Holder has complied with the conditions. NOTE: For the purposes of condition 6, 7 and 8 of this Licence, it is acknowledged that the assets which the Licence Holder operates may constitute ""critical infrastructure"" being those physical facilities, supply chains, information technologies and communication networks which, if destroyed or rendered for an unavailable period, would significantly impact on the security, social or economic wellbeing of the State of New South Wales and other States and Territories. These licence conditions will be reviewed by the Minister from time to time (and where necessary) in consultation with responsible Ministers of the Commonwealth and relevant States and Territories." "Asset Management System: 9.1(a) and 10 - The Licence holder must maintain and implement its asset management system consistent with ISO 55000, and all relevant activities are undertaken in accordance with the asset management system. 9.1(b) - The asset management system must be certified by an appropriately qualified person to be consistent with ISO 55000 9.1(c) - Proposals to change the asset management system must be reported to IPART." The Licence holder must maintain and implement its environment management system consistent with 14000:2014. Proposals to make significant changes to the management system must be reported to IPART in accordance with the Reporting Manuals. The Licence holder must provide IPART with reports in accordance with IPART's Reporting Manual. The Licence Holder must also comply with audit guidelines issued by IPART. The Licence holder must maintain internal systems for monitoring compliance with the licence conditions. "Condition 14 Provide the Tribunal such operating and statistics and performance indicators as required by IPART from time to time. Condition 15 Furnish information (at such times and in respect of such periods that the Tribunal may determine and in the manner and form specified by the Tribunal) that would assist in the Tribunal in assessing compliance with Licence Conditions, the Act or the Regulations." "The Licence holder must provide information on its compliance with the Employment Guarantees. As set out in Sch 4 of the Electricity Network Assets (Authorised Transactions) Act and Transmission Operating Licence conditions, TransGrid is required to comply with the employment guarantee period from 1 July 2015 - 30 June 2020. The IPART reporting manuals further require TransGrid to report on on the following on a quarterly basis: - Quarterly data on full time equivalent employees, such as average number of FTEs and average hours of work, - information on all administrative offices/depots within the vicinity of an existing administrative location, - guaranteed apprenticeship intake of 5 apprentices where FTE employees are less than or equal to 110% of the 1000 requirement, and - workplace relations disputes " The Licence holder must pay licence fees as determined by the Minister within the period specified by IPART. | D60: Opex & Capex NOTE: No step change identified, however, the proposal states a new step changes may arise following review of the requirements arising from January 2017 audit | E60: No
B61: ACT Transmission Licence | C61: The ACT Transmission licence is granted to TransGrid under the Utilities Act 2000 (ACT), which allows the provision of transmission services in the ACT. TransGrid is required under this Licence to: Monitor its compliance, including reporting to the ICRC any breaches, with the Licence and any law or code of practice, directions and guidelines applicable; Provide the ICRC a report on its obligations by 1 October every year; Undertake audits of the services and operations authorised by this licence and of its compliance with its obligations; Satisfy technical and prudential criteria established by the ICRC; Consult the ICRC if it: (1) intends to dispose of any major asset; (2) intends to enter into any major transaction; (3) is granted a security interest or a lien over the Licensee’ network facilities; or (4) intends to engage in any other business activity that would adversely affect compliance with its obligations. | D61: Capex | E61: No
B64: Rules
B65: National Electricity Rules | C65: Relevant sections include: Chapters 3 (Market Rules) and 4 (Power System Security). Chapter 5 (Network Connection) Parts D and J of Chapter 6A (Economic Regulation of Transmission Services) Parts B, C, E, F, G, H and I, and Schedules 6A.1, 6A.2 and 6A.3 of Chapter 6A (Economic Regulation of Transmission Services) Chapter 7 (Metering) | D65: Capex | E65: No
B69: Orders
B73: Codes
B74: Code of Practice: Electricity transmission and distribution asset management | C74: The code outlines the policy and standards which apply to the design, construction, maintenance and operation of electricity works. The code will apply to Network Operators, Service Providers and any of their subcontractors working on electricity works or operating electricity or distribution systems | D74: Capex | E74: No
B75: ENA National Electricity Network Safety Code and other Codes of Practice and Guidelines | C75: The code is intended to promote: a) safety as a priority for customers, the public and industry workers b) nationally consistent practices to improve safety c) economic efficiency through standardisation | D75: Capex | E75: No
B76: Transmission Network Design and Reliability Standard for NSW – December 2010 | C76: Network Service Providers must plan, design, maintain and operate their transmission networks to allow the transfer of power from generating units to Customers with all facilities or equipment associated with the power system in service and may be required by a Registered Participant under a connection agreement to continue to allow the transfer of power with certain facilities or plant associated with the power system out of service, whether or not accompanied by the occurrence of certain faults (called “credible contingency events | D76: Capex | E76: No
B80: Guidelines
B81: National Guidelines for safe approach distances to electrical and mechanical apparatus | C81: The guidelines are intended to: a) support the electricity supply industry in ensuring safety of electrical and other wokers and the general public b) provide basic technical material necessary for Network Opertors c) provide recommendations for appropriate Safe Approach Distances for members of the general public d) provide the electricity supply industry with a sound basis for controlling activities, where possible, of the general public near network assets | D81: Capex | E81: No
B86: Default agreements
B91: Other
B92: IPART – Electricity Transmission Reliability Standard – Final Report | C92: NSW Reliability Standard | D92: Capex | E92: No
B93: IPART – Electricity Transmission Reliability Standard – Suplementary Final Report | C93: NSW Reliability Standard - supplement | D93: Capex | E93: No
B94: Disallowable Instrument DI2012-267: Utilities Exemption 2012 (No 3), 2012, published by the ACT Government | C94: ACT Reliability Requirement | D94: Capex | E94: No

Sheet 7.4 Shared Assets
B1: =(LOOKUP(dms_Model,dms_Model_List,dms_Worksheet_List)) -> REGULATORY REPORTING STATEMENT
B2: =INDEX(dms_TradingNameFull_List,MATCH(dms_TradingName,dms_TradingName_List)) -> TransGrid
B3: =IF(SUM(dms_SingleYear_Model)>0,CRY,CONCATENATE(FRCP_y1," to ",dms_MultiYear_FinalYear_Result)) -> 2018-19 to 2022-23
B4: 7.4 SHARED ASSETS
B6: 7.4.1 - TOTAL UNREGULATED REVENUE EARNED WITH SHARED ASSETS
B7: Name of shared asset unregulated service | C7: Description of shared assets used to provide the service | D7: Shared asset unregulated revenue ($0's, nominal) | L7: =CONCATENATE("Shared asset unregulated revenue ($0's, real ", dms_DollarReal,")") -> Shared asset unregulated revenue ($0's, real June 2018)
D8: =PRCP_y1 -> 2008-09 | E8: =PRCP_y2 -> 2009-10 | F8: =PRCP_y3 -> 2010-11 | G8: =PRCP_y4 -> 2011-12 | H8: =PRCP_y5 -> 2012-13 | I8: =CRCP_y1 -> 2013-14 | J8: =CRCP_y2 -> 2014-15 | K8: =CRCP_y3 -> 2015-16 | L8: =CRCP_y4 -> 2016-17 | M8: =CRCP_y5 -> 2017-18 | N8: =FRCP_y1 -> 2018-19 | O8: =FRCP_y2 -> 2019-20 | P8: =FRCP_y3 -> 2020-21 | Q8: =FRCP_y4 -> 2021-22 | R8: =FRCP_y5 -> 2022-23 | S8: =CONCATENATE("Total ",FRCP_y1, " to ", dms_MultiYear_FinalYear_Result) -> Total 2018-19 to 2022-23
B9: Radio Communication sites - towers, equipment building space and ground space | C9: TransGrid provides access to radio communications sites to customers. | I9: 3669346.96 | J9: 3493032.128 | K9: 3562997.814 | L9: 3595816 | M9: 3631819.038 | N9: 3653422.807 | O9: 3675129.371 | P9: 3697017.715 | Q9: 3718993.084 | R9: 3741126.808 | S9: =SUM(N9:R9) -> 18485689.79
B10: Optic Fibre | C10: TransGrid provides both dark fibre and bandwidth backhaul service. | I10: 1638599.2 | J10: 1579639.951 | K10: 1390757.382 | L10: 1501404.945 | M10: 1779835.506 | N10: 2010518.189 | O10: 2258905.593 | P10: 2526383.163 | Q10: 2814299.11 | R10: 3124212.309 | S10: =SUM(N10:R10) -> 12734318.36
B11: Rental properties | C11: Office accommodation, land used for operational purposes, surplus land for agriculture and grazing purposes. | I11: 150264.38 | J11: 179435.45 | K11: 130501.58 | L11: 53302.98802 | M11: 53302.98802 | N11: 54912.73826 | O11: 54912.73826 | P11: 54912.73826 | Q11: 54912.73826 | R11: 54912.73826 | S11: 274563.6913
S12: 0
S13: 0
S14: 0
S15: 0
S16: 0
S17: 0
S18: 0
S19: 0
S20: =SUM(N20:R20) -> 0
S21: =SUM(N21:R21) -> 0
S22: =SUM(N22:R22) -> 0
S23: =SUM(N23:R23) -> 0
B25: 7.4.2 - SHARED ASSET UNREGULATED SERVICES - APPORTIONMENT METHODOLOGY
B26: Name of shared asset unregulated service for which revenues were apportioned | C26: Apportionment methodology
B27: Optic Fibre | C27: 100% revenue from the use of the prescribed assets, no apportionment applied.
B28: Radio site | C28: 100% revenue from the use of the prescribed assets, no apportionment applied.
B29: Rental properties | C29: 100% rental revenue from the prescribed properties, no apportionment applied.

Sheet 7.5 EBSS
B1: =(LOOKUP(dms_Model,dms_Model_List,dms_Worksheet_List)) -> REGULATORY REPORTING STATEMENT
B2: =INDEX(dms_TradingNameFull_List,MATCH(dms_TradingName,dms_TradingName_List)) -> TransGrid
B3: =IF(SUM(dms_SingleYear_Model)>0,CRY,CONCATENATE(FRCP_y1," to ",dms_MultiYear_FinalYear_Result)) -> 2018-19 to 2022-23
B4: 7.5 EBSS
B7: Instructions
B8: =CONCATENATE(dms_TradingName, " is required to populate all input cells (yellow) in table 7.5.2 presented below.") -> TransGrid is required to populate all input cells (yellow) in table 7.5.2 presented below.
B9: Efficiency gains are calculated using the formulae below. Adjusted target and actual amounts are used to calculate the carry-over amounts. We will calculate the efficiency gain in 2014–15 (year 6) as follows: E6 = (F6 – A6) – (F5 – A5) + (F4 – A4) where F6 is the forecast opex we approved for year 6 (2014-15), and A6 is the actual opex incurred for year 6, and so on. The formula references year 4 (2012-13) because it is the base year used to forecast opex. Actual opex in 2017-18 should be set so that any incremental efficiency gains made after the base year sum to zero.
B12: CPI
C13: 2007-08 | D13: =PRCP_y1 -> 2008-09 | E13: =PRCP_y2 -> 2009-10 | F13: =PRCP_y3 -> 2010-11 | G13: =PRCP_y4 -> 2011-12 | H13: =PRCP_y5 -> 2012-13 | I13: =CRCP_y1 -> 2013-14 | J13: =CRCP_y2 -> 2014-15 | K13: =CRCP_y3 -> 2015-16 | L13: =CRCP_y4 -> 2016-17 | M13: =CRCP_y5 -> 2017-18
B14: ABS CPI index Jun qtr (old base) | C14: 157.5 | D14: 164.6 | E14: 167 | F14: 172.1 | G14: 178.3
B15: ABS CPI index Jun qtr (rebased index) | F15: 95.8 | G15: 99.2 | H15: 100.4 | I15: 102.8 | J15: 105.9 | K15: 107.5 | L15: 109.65 | M15: 112.39125
B16: Inflation rate (per cent) | D16: =D14/C14-1 -> 0.04507936508 | E16: 0.01458080194 | F16: 0.03053892216 | G16: =G14/F14-1 -> 0.03602556653 | H16: =H15/G15-1 -> 0.01209677419 | I16: 0.02390438247 | J16: 0.03015564202 | K16: 0.01510859301 | L16: 0.02 | M16: 0.025
B17: Reconstructed cumulative index (2015=1) | C17: =D17/(1+D16) -> 0.7796656229 | D17: 0.8148124542 | E17: 0.8266930732 | F17: 0.8519393886 | G17: 0.8826309877 | H17: 0.8933079755 | I17: 0.914661951 | J17: 0.9422441694 | K17: 0.956480153 | L17: 0.9756097561 | M17: 1
B21: 7.5.1 - The carryover amounts that arise from applying the EBSS during the current regulatory control period
B23: 7.5.1.1 - Opex allowance applicable to EBSS (EBSS target)
C24: $m, Jun 2008 | G24: $m, Jun 2013 | L24: =CONCATENATE("$m, real ",dms_DollarReal) -> $m, real June 2018
C25: Previous period | G25: Current regulatory control period | L25: Previous period | P25: Current regulatory control period
C26: =PRCP_y3 -> 2010-11 | D26: =PRCP_y4 -> 2011-12 | E26: =PRCP_y5 -> 2012-13 | F26: =CRCP_y1 -> 2013-14 | G26: =CRCP_y2 -> 2014-15 | H26: =CRCP_y3 -> 2015-16 | I26: =CRCP_y4 -> 2016-17 | J26: =CRCP_y5 -> 2017-18 | L26: =PRCP_y3 -> 2010-11 | M26: =PRCP_y4 -> 2011-12 | N26: =PRCP_y5 -> 2012-13 | O26: =CRCP_y1 -> 2013-14 | P26: =CRCP_y2 -> 2014-15 | Q26: =CRCP_y3 -> 2015-16 | R26: =CRCP_y4 -> 2016-17 | S26: =CRCP_y5 -> 2017-18
B27: Total opex allowance | E27: 161.4815899 | F27: 163.1122226 | G27: 166.1561371 | H27: 165.0296638 | I27: 169.4462166 | J27: 163.08213 | N27: =+E27/$C$17 -> 207.1164678 | O27: =+F27/$C$17 -> 209.2079192 | P27: =+G27/$H$17 -> 186.0009556 | Q27: =+H27/$H$17 -> 184.7399423 | R27: =+I27/$H$17 -> 189.6839849 | S27: =+J27/$H$17 -> 182.5598052
B28: Approved excludable costs - allowance
B29: Debt raising costs | E29: -2.441907106 | F29: -2.596519076 | G29: -3.061936775 | H29: -3.072322064 | I29: -3.10165116 | J29: -3.088983179 | N29: =+E29/$C$17 -> -3.131992786 | O29: -3.330298271 | P29: =+G29/$H$17 -> -3.427638462 | Q29: -3.439264115 | R29: -3.472096125 | S29: -3.457915146
B30: Network support costs | E30: -6.073074391 | F30: -6.073074391 | G30: 0 | H30: 0 | I30: 0 | J30: 0 | N30: -7.789332007 | O30: -7.789332007 | P30: 0 | Q30: 0 | R30: 0 | S30: 0
B31: Network capability projects | G31: 0 | H31: 0 | I31: 0 | J31: 0 | N31: 0 | O31: 0 | P31: 0 | Q31: 0 | R31: 0 | S31: 0
B32: Superannuation contributions | E32: -5.961734694 | F32: -5.809907834 | G32: -13.08495053 | H32: -12.69122821 | I32: -12.38168606 | J32: -12.07969371 | N32: -7.646527586 | O32: -7.451794286 | P32: -14.64774846 | Q32: -14.20700201 | R32: -13.86048977 | S32: -13.52242904
B33: Capitalisation policy changes | G33: 0 | H33: 0 | I33: 0 | J33: 0 | N33: 0 | O33: 0 | P33: 0 | Q33: 0 | R33: 0 | S33: 0
B34: Opex associated with pass throughs | G34: 0 | H34: 0 | I34: 0 | J34: 0 | N34: 0 | O34: 0 | P34: 0 | Q34: 0 | R34: 0 | S34: 0
B35: Other adjustments or exclusions required by the EBSS | E35: -13.2484167 | F35: -13.81732716 | G35: 0 | H35: 0 | I35: 0 | J35: 0 | N35: -16.99243408 | O35: -17.72211928 | P35: 0 | Q35: 0 | R35: 0 | S35: 0
B36: Forecast opex for EBSS purposes | E36: =(E27+SUM(E29:E35)) -> 133.756457 | F36: 134.8153942 | G36: 150.0092498 | H36: 149.2661136 | I36: 153.9628793 | J36: 147.9134531 | N36: =+SUM(N27:N35) -> 171.5561814 | O36: 172.9143754 | P36: 167.9255687 | Q36: 167.0936762 | R36: 172.351399 | S36: 165.579461
B38: 7.5.1.2 - Actual and estimated opex applicable to EBSS
C39: $m, Actual | L39: =CONCATENATE("$m, real ",dms_DollarReal) -> $m, real June 2018
C40: Previous period | G40: Current regulatory control period | L40: Previous period | P40: Current regulatory control period
C41: =PRCP_y3 -> 2010-11 | D41: =PRCP_y4 -> 2011-12 | E41: =PRCP_y5 -> 2012-13 | F41: =CRCP_y1 -> 2013-14 | G41: =CRCP_y2 -> 2014-15 | H41: =CRCP_y3 -> 2015-16 | I41: =CRCP_y4 -> 2016-17 | J41: =CRCP_y5 -> 2017-18 | L41: =PRCP_y3 -> 2010-11 | M41: =PRCP_y4 -> 2011-12 | N41: =PRCP_y5 -> 2012-13 | O41: =CRCP_y1 -> 2013-14 | P41: =CRCP_y2 -> 2014-15 | Q41: =CRCP_y3 -> 2015-16 | R41: =CRCP_y4 -> 2016-17 | S41: =CRCP_y5 -> 2017-18
B42: Total opex | E42: 143.0547409 | F42: 175.6375769 | G42: 168.228603 | H42: 169.5344873 | I42: 167.6971255 | N42: =+E42/H$17*(1+H$16)^0.5 -> 161.1061295 | O42: =+F42/I$17*(1+I$16)^0.5 -> 194.3061401 | P42: 181.2123542 | Q42: 178.5822731 | R42: 173.5999396
B43: Approved excludable costs
B44: =B29 -> Debt raising costs | G44: 0 | H44: 0 | I44: 0 | N44: =+E44/H$17*(1+H$16)^0.5 -> 0 | O44: =+F44/I$17*(1+I$16)^0.5 -> 0 | P44: 0 | Q44: 0 | R44: 0
B45: =B30 -> Network support costs | E45: -3.93370858 | F45: -0.008707 | G45: 0 | H45: 0 | I45: 0 | N45: =+E45/H$17*(1+H$16)^0.5 -> -4.430084315 | O45: =+F45/I$17*(1+I$16)^0.5 -> -0.009632469269 | P45: =+G45/J$17*(1+J$16)^0.5 -> 0 | Q45: =+H45/K$17*(1+K$16)^0.5 -> 0 | R45: =+I45/L$17*(1+L$16)^0.5 -> 0
B46: =B31 -> Network capability projects | G46: -0.06442479 | H46: -0.29608126 | I46: 0 | N46: 0 | O46: 0 | P46: -0.0693970446 | Q46: -0.3118826456 | R46: 0
B47: =B32 -> Superannuation contributions | E47: -0.1769409071 | F47: -15.36693524 | G47: -15.609406 | H47: -10.340221 | I47: -5.341548 | N47: -0.1992682277 | O47: -17.00029074 | P47: -16.81412767 | Q47: -10.89206214 | R47: -5.529566516
B48: =B33 -> Capitalisation policy changes | G48: 0 | H48: 0 | I48: 0 | N48: 0 | O48: 0 | P48: 0 | Q48: 0 | R48: 0 | U48: Transgrid to nominate base year used to forecast opex (drop down menu)
B49: Movements in provisions related to opex | E49: 1.392024779 | F49: 0.9299478906 | G49: 2.486605311 | H49: 3.501571904 | I49: 0 | N49: 1.56767768 | O49: 1.028792291 | P49: 2.678519552 | Q49: 3.688445223 | R49: 0
B50: =B35 -> Other adjustments or exclusions required by the EBSS | E50: -8.40433074 | F50: -6.57350934 | G50: 0 | H50: 0 | I50: 0 | N50: -9.464832748 | O50: -7.272209338 | P50: 0 | Q50: 0 | R50: 0
B51: Actual opex for EBSS purposes | E51: =E42+SUM(E44:E50) -> 131.9317855 | F51: 154.6183732 | G51: 155.0413775 | H51: 162.399757 | I51: 162.3555775 | J51: 0 | N51: =N42+SUM(N44:N50) -> 148.5796219 | O51: =O42+SUM(O44:O50) -> 171.0527999 | P51: =P42+SUM(P44:P50) -> 167.0073491 | Q51: =Q42+SUM(Q44:Q50) -> 171.0667735 | R51: =R42+SUM(R44:R50) -> 168.0703731 | S51: =IF(T51="2016-17", S36-(R36-R51), S36-(Q36-Q51)) -> 161.2984351 | T51: 2016-17
E52: base year | J52: estimates | N52: base year
L53: =CONCATENATE("Incremental gain $m, real ",dms_DollarReal) -> Incremental gain $m, real June 2018
P54: =(P36-P51)-(O36-O51)+(N36-N51) -> 22.03320358 | Q54: =(Q36-Q51)-(P36-P51) -> -4.89131697 | R54: =(R36-R51)-(Q36-Q51) -> 8.254123307 | S54: =(S36-S51)-(R36-R51) -> 0
L56: Carryover
P57: Current regulatory control period | T57: Forthcoming regulatory control period
P58: =CONCATENATE("$m, real ",dms_DollarReal) -> $m, real June 2018
P59: =CRCP_y2 -> 2014-15 | Q59: =CRCP_y3 -> 2015-16 | R59: =CRCP_y4 -> 2016-17 | S59: =CRCP_y5 -> 2017-18 | T59: 2018-19 | U59: 2019-20 | V59: 2020-21 | W59: 2021-22 | X59: 2022-23 | Y59: Total
L60: 2014-15 | Q60: =$P$54 -> 22.03320358 | R60: =$P$54 -> 22.03320358 | S60: 22.03320358 | T60: 22.03320358 | U60: 22.03320358
L61: 2015-16 | R61: =$Q$54 -> -4.89131697 | S61: =$Q$54 -> -4.89131697 | T61: -4.89131697 | U61: -4.89131697 | V61: -4.89131697
L62: 2016-17 | S62: =$R$54 -> 8.254123307 | T62: =$R$54 -> 8.254123307 | U62: 8.254123307 | V62: 8.254123307 | W62: 8.254123307
L63: 2017-18 | T63: =$S$54 -> 0 | U63: =$S$54 -> 0 | V63: 0 | W63: 0 | X63: 0
L64: Total Carryover Amount | T64: =SUM(T60:T63) -> 25.39600992 | U64: =SUM(U60:U63) -> 25.39600992 | V64: =SUM(V60:V63) -> 3.362806338 | W64: =SUM(W60:W63) -> 8.254123307 | X64: =SUM(X60:X63) -> 0 | Y64: =SUM(T64:X64) -> 62.40894948
L66: PTRM inputs | T66: =T64 -> 25.39600992 | U66: =U64 -> 25.39600992 | V66: =V64 -> 3.362806338 | W66: 8.254123307 | X66: 0 | Y66: =Y64 -> 62.40894948
B69: 7.5.2 - Proposed forecast opex for the EBSS for the forthcoming regulatory control period
C71: Forthcoming regulatory control period
C72: =CONCATENATE("$m, real ",dms_DollarReal) -> $m, real June 2018
C73: =FRCP_y1 -> 2018-19 | D73: =FRCP_y2 -> 2019-20 | E73: =FRCP_y3 -> 2020-21 | F73: =FRCP_y4 -> 2021-22 | G73: =FRCP_y5 -> 2022-23
B74: Forecast opex | C74: 177.1637517 | D74: 178.7662049 | E74: 181.2601046 | F74: 183.9864484 | G74: 186.4368679 | H74: =+SUM(A74:E74) -> 537.1900611 | I74: =+SUM(B74:F74) -> 721.1765095 | J74: =+SUM(C74:G74) -> 907.6133774
B75: Less excluded costs
B76: < Enter category proposed for exclusion > eg. Debt raising costs | C76: 0 | D76: 0 | E76: 0 | F76: 0 | G76: 0 | H76: =+SUM(A76:E76) -> 0 | I76: 0 | J76: 0
C77: 0 | D77: 0 | E77: 0 | F77: 0 | G77: 0 | H77: 0 | I77: 0 | J77: 0
C78: 0 | D78: 0 | E78: 0 | F78: 0 | G78: 0 | H78: 0 | I78: 0 | J78: 0
C79: 0 | D79: 0 | E79: 0 | F79: 0 | G79: 0 | H79: 0 | I79: 0 | J79: 0
C80: 0 | D80: 0 | E80: 0 | F80: 0 | G80: 0 | H80: 0 | I80: 0 | J80: 0
C81: 0 | D81: 0 | E81: 0 | F81: 0 | G81: 0 | H81: 0 | I81: 0 | J81: 0
C82: 0 | D82: 0 | E82: 0 | F82: 0 | G82: 0 | H82: 0 | I82: 0 | J82: 0
C83: 0 | D83: 0 | E83: 0 | F83: 0 | G83: 0 | H83: 0 | I83: 0 | J83: 0
C84: 0 | D84: 0 | E84: 0 | F84: 0 | G84: 0 | H84: 0 | I84: 0 | J84: 0
C85: 0 | D85: 0 | E85: 0 | F85: 0 | G85: 0 | H85: 0 | I85: 0 | J85: 0
B86: Adjusted forecast opex ($m, 2016-17) | C86: =+C74-SUM(C76:C85) -> 177.1637517 | D86: 178.7662049 | E86: 181.2601046 | F86: 183.9864484 | G86: 186.4368679 | H86: =+H74-SUM(H76:H85) -> 537.1900611 | I86: 721.1765095 | J86: 907.6133774

Sheet 7.6 Indicative bill impact
B1: =(LOOKUP(dms_Model,dms_Model_List,dms_Worksheet_List)) -> REGULATORY REPORTING STATEMENT
B2: =INDEX(dms_TradingNameFull_List,MATCH(dms_TradingName,dms_TradingName_List)) -> TransGrid
B3: =IF(SUM(dms_SingleYear_Model)>0,CRY,CONCATENATE(FRCP_y1," to ",dms_MultiYear_FinalYear_Result)) -> 2018-19 to 2022-23
B4: 7.6 INDICATIVE IMPACT ON TRANSMISSION CHARGES AND ELECTRICITY BILLS
B6: Instructions
B7: =CONCATENATE(dms_TradingName," is required to populate all input cells (yellow) in table 7.6.1 presented below. Transmission pricing impact should refer to ",dms_TradingName,"'s related transmission costs only.") -> TransGrid is required to populate all input cells (yellow) in table 7.6.1 presented below. Transmission pricing impact should refer to TransGrid's related transmission costs only.
B9: 7.6.1 - Indicative impact of the revenue proposal on the average residential electricity bills
B11: Transmission costs as a proportion of a typical residential customer's electricity bill (per cent) | C11: 0.096
B12: Transmission costs as a proportion of a typical business customer's electricity bill (per cent) | C12: 0.096
B13: Source data: | C13: AEMC Final Report 2015 Residential Electricty Price trends. 4th December 2015
B15: Typical electricity bill - Residential customer
B16: Tariff type | C16: Description of tariff type | D16: =CONCATENATE("Annual bill amount ($", dms_CRCP_FinalYear_Result,")") -> Annual bill amount ($2017-18)
B17: Representative consumer | C17: In New South Wales, the most common type of residential electricity consumer (the representative consumer) is a two-person household with no pool, no mains gas connection and electric hot water on an off-peak tariff. The representative consumer uses 5,936 kWh of electricity each year, of which 1,900 kWh is allocated to the off-peak tariff. | D17: 1693
B20: <NSP to insert any additional items>
B21: <NSP to insert any additional items>
B22: Source data: | C22: AEMC Final Report: 2015 Residential Electricity Price Trends. 4th December 2015
B24: Typical electricity bill - Business customer
B25: Tariff type | C25: Description of tariff type | D25: =CONCATENATE("Annual bill amount ($", dms_CRCP_FinalYear_Result,")") -> Annual bill amount ($2017-18)
B26: Small Business User - Lowest Price | C26: 10 MWh/year | D26: 2815.675
B27: Small Business User - Highest Price | C27: 10 MWh/year | D27: 4317.3
B28: Medium Business User | C28: 160 MWh/year | D28: 45050.8
B29: Large Business User | C29: 10,000 MWh/year | D29: 2815675
B30: Source data: | C30: Small Business User - p59 "Review of the performance and competitiveness of the retail electricity market in NSW Energy — Final Report" IPART, November 2015 Medium & Large Business USer - "NSW business energy prices to 2020 - FINAL REPORT - Revision 1 - FOR THE NSW OFFICE OF ENVIRONMENT AND HERITAGE" - NICKY ISON, JAY RUTOVITZ AND STEVE HARRIS - INSTITUTE FOR SUSTAINABLE FUTURES - UTS 2011 https://www.energymadeeasy.gov.au/
B32: Indicative annual average transmission price impact as shown in the proposed PTRM (per cent)
C33: =CRCP_y5 -> 2017-18 | D33: =FRCP_y1 -> 2018-19 | E33: =FRCP_y2 -> 2019-20 | F33: =FRCP_y3 -> 2020-21 | G33: =FRCP_y4 -> 2021-22 | H33: =FRCP_y5 -> 2022-23 | I33: Average
B34: Annual price path (per cent, nominal) | D34: 0.09972076036 | E34: 0.03416625547 | F34: 0.03307902242 | G34: 0.03555851935 | H34: 0.03571055446 | I34: =+AVERAGE(D34:H34) -> 0.04764702241
B35: =CONCATENATE("Annual price path (per cent, $",dms_DollarReal) -> Annual price path (per cent, $June 2018 | D35: 0.07404169877 | E35: 0.01001792626 | F35: 0.008956080676 | G35: 0.01137768004 | H35: 0.01152616505 | I35: =+AVERAGE(D35:H35) -> 0.02318391016
B38: Transmission bill component - Residential customer | C38: =CONCATENATE("Real ", dms_DollarReal) -> Real June 2018
B39: Tariff type | C39: =CRCP_y5 -> 2017-18 | D39: =FRCP_y1 -> 2018-19 | E39: =FRCP_y2 -> 2019-20 | F39: =FRCP_y3 -> 2020-21 | G39: =FRCP_y4 -> 2021-22 | H39: =FRCP_y5 -> 2022-23 | I39: =CONCATENATE("Total ",FRCP_y1," to ", IF(SUM(dms_SingleYear_Model)>0,"",dms_MultiYear_FinalYear_Result)) -> Total 2018-19 to 2022-23 | J39: Annual average | K39: Annual impact on customer bill (%)
B41: =+B17 -> Representative consumer | C41: =+D17*$C$11 -> 162.528 | D41: =+C41*(1+IF($C$38="Nominal",D$34,D$35)) -> 174.5618492 | E41: =+D41*(1+IF($C$38="Nominal",E$34,E$35)) -> 176.310597 | F41: =+E41*(1+IF($C$38="Nominal",F$34,F$35)) -> 177.8896489 | G41: =+F41*(1+IF($C$38="Nominal",G$34,G$35)) -> 179.9136204 | H41: =+G41*(1+IF($C$38="Nominal",H$34,H$35)) -> 181.9873345 | I41: =+SUM(D41:H41) -> 890.6630499 | J41: =+AVERAGE(D41:H41) -> 178.13261
B42: Annual change | D42: =+D41-C41 -> 12.03384922 | E42: =+E41-D41 -> 1.748747733 | F42: =+F41-E41 -> 1.57905193 | G42: =+G41-F41 -> 2.023971507 | H42: =+H41-G41 -> 2.073714083 | I42: =+SUM(D42:H42) -> 19.45933447 | J42: =+AVERAGE(D42:H42) -> 3.891866894 | K42: =+J42/D17 -> 0.002298799111
